{"text_format":"3","workbook":"xlsx","n_sheets":15,"sheets":["Slik bruker du denne malen","Studentliste","August","September","Oktober","November","Desember","Januar","Februar","Mars","April","Mai","Juni","Juli","Studentoppmøterapport"],"not_rendered":{"defined_names":16},"read":"whole","date_system":"1900"}

{"sheet":"Slik bruker du denne malen","index":0,"n_rows":25,"n_cols":5,"rows_kept":25,"merged":[[3,2,3,12],[4,4,4,12],[5,4,5,12],[6,4,6,12],[7,4,7,12],[8,4,8,7],[11,2,11,12],[12,4,12,12],[13,4,13,12],[14,4,14,12],[17,2,17,12],[18,4,18,12],[19,4,19,12],[20,4,20,12],[21,4,21,12],[24,2,24,12]]}
["SLIK BRUKER DU DENNE MALEN"]
[]
[null,"HVOR STARTER JEG?"]
[null,null,"Du må gå gjennom noen få trinn før du kan begynne å følge opp studentoppmøte:"]
[{"$nulls":3},"1.","Legg til studentene dine: i Studentliste -arket, skriv inn informasjonen for hver student, for eksempel foresattes navn og kontakt data. Student-IDen er en viktig oppføring fordi den er en unik identifikator for hver enkelt student, og den brukes i hele arbeidsboken i de ulike Student-ID-rullegardinslistene for å forenkle dataregistrering. Informasjonen som er skrevet inn i studentlisten, brukes også i andre ark, for eksempel i studentoppmøterapporten og rapportene for månedlig oppmøte."]
[{"$nulls":3},"2.","Endre kalenderåret for skolen: I August -arket for oppmøte klikker du verdisettingskontrollen øverst til høyre for toppteksten, for å oppdatere kalenderåret for skolen. Denne endringen oppdaterer alle for månedlige oppmøterapporter i hele arbeidsboken. (Vær oppmerksom på at verdisettingsknappen ikke skrives ut.)"]
[{"$nulls":3},"3.","(Valgfritt) Endre fargen i hele arbeidsboken:  Gå først til det siste arket, Studentoppmøterapport, og i kategorien Se igjennom  i Endringer -gruppen, klikker du Opphev arkbeskyttelse.. Deretter, i kategorien Sideoppsett  i  Temaer, -gruppen, klikker du Farger og velger et annet fargesett for temaet fra fargegalleriet. Når du har endret fargene og utført andre temaendringer, går du tilbake til studentoppmøterapporten, og i kategorien Se igjennom i Endringer -gruppen, klikker du Beskytt ark, og deretter klikker du OK."]
[{"$nulls":4},"Tips! Opprett et egendefinert temafargesett som samsvarer med fargene til skolen din! Du gjør dette ved å klikke kategorien   Sideoppsett i Temaer -gruppen, klikke Farger , og deretter, nederst i fargegalleriet, klikker du Opprett nye temafarger. Hvis du vil vite mer om hvordan du oppretter et egendefinert fargesett, kan du se følgende hjelpeemne: "]
[{"$nulls":4},"Tilpasse et dokumenttema."]
[]
[null,"JEG HAR LAGT TIL STUDENTENE MINE. HVA GJØR JEG NÅ?"]
[null,null,"Når studentene diner er skrevet inn på Studentliste-arket, kan du begynne å følge opp oppmøtet deres for skoleåret, med følgende fremgangsmåte:"]
[{"$nulls":3},"1.","Hvis du vil legge til en student i en oppmøteoversikt, klikker du cellen nedenfor \nStudent-ID -kolonnen og velger en ID fra listen. Navnet på studenten vises automatisk når en ID er valgt. "]
[{"$nulls":4},"Tips! Spar dataregistreringstrinn! Når studentene er lagt til i en måned, velger du de registrerte Student-IDene, kopier dem og limer dem deretter inn i  Student-ID -kolonnene for resten av månedene. "]
[{"$nulls":3},"2.","Deretter skriver du inn oppmøteoppføringen for hver dag i måneden, ved hjelp av oppmøtetypene angitt i fargenøkkelen. Studentoppmøte beregnes automatisk etter oppmøtetype for hver student i Totalt-kolonnen. Totalt fravær for hver dag beregnes automatisk i bunnen av tabellen i Totalt-raden."]
[]
[null,"HVORDAN LEGGER JEG TIL FLERE I EN MÅNEDLIG OPPMØTERAPPORT?"]
[null,null,"Oversiktsarkene for det månedlige oppmøtet og studentlisten er Excel-tabeller. Gjør ett av følgende for å legge nye rader til en Excel-tabell:"]
[{"$nulls":3},"● ","Hvis tabellen ikke har en Totalt-rad, begynner du å skrive inn nedenfor tabellen. Den utvides automatisk når du trykker ENTER- eller TAB-tasten."]
[{"$nulls":3},"● ","Plasser cellemarkøren i den siste cellen over Totalt-raden, for eksempel Fraværsdager-cellen for den siste studenten, og trykk deretter TAB-tasten."]
[{"$nulls":3},"● ","Høyreklikk tabellen, og i hurtigmenyen peker du på Sett inn, og klikker deretter Tabellrader over ellerTabellrader under. "]
[{"$nulls":3},"● ","Nederst til høyre i tabellen plasserer du musepekeren på skaleringshåndtaket for tabellen, og drar nedover for å øke antallet tilgjengelige tabellrader."]
[]
[null,"KAN JEG VISE OPPMØTET FOR EN STUDENT FOR HELE SKOLEÅRET?"]
[null,null,"Det siste arket i arbeidsboken, Studentoppmøterapport, holder oversikt over oppmøte til datoen i dag. Hvis du vil vise en rapport for en bestemt student, klikker du cellen nedenfor Student-ID og velger deretter en ID fra rullegardinlisten. Informasjon du skrev inn tidligere i Studentliste-arket for den valgte studenten, vises automatisk. Legg merke til at første gang du bruker studentoppmøterapporten, må du skrive inn skole, karakter, lærer og rom. Denne informasjonen endres ikke hvis du velger en annen student. "]

{"sheet":"Studentliste","index":1,"n_rows":8,"n_cols":19,"rows_kept":8}
["STUDENTLISTE"]
[]
[null,"Student-ID","Studentens fornavn","Studentens etternavn","Kjønn","Fødselsdato","Forelder/foresatt 1","Relasjon til forelder/foresatt 1","Telefonnummer, arbeid til forelder/foresatt 1","Telefonnummer, privat til forelder/foresatt 1","Forelder/foresatt 2","Relasjon til forelder/foresatt 2","Telefonnummer, arbeid til forelder/foresatt 2","Telefonnummer, privat til forelder/foresatt 2","Kontakt i nødsfall","Relasjon til kontakt i nødsfall","Jobbnummer til kontakt i nødsfall","Hjemmenummer til kontakt i nødsfall","Studentens fulle navn"]
[null,"S001","Erik","Andersen","M","1997-03-28","Anne-Jorun","Andersen",1235550134,2345550134,"Berg","Far",1235550134,2345550134,"Henrik Larsen","Bestefar",7895550189,7895550134,{"$f":"Studentliste[[#This Row],[Studentens fornavn]]&\" \" &Studentliste[[#This Row],[Studentens etternavn]]","v":"Erik Andersen"}]
[null,"S002","Student",2,{"$nulls":14},{"$f":"Studentliste[[#This Row],[Studentens fornavn]]&\" \" &Studentliste[[#This Row],[Studentens etternavn]]","v":"Student 2"}]
[null,"S003","Student",3,{"$nulls":14},{"$f":"Studentliste[[#This Row],[Studentens fornavn]]&\" \" &Studentliste[[#This Row],[Studentens etternavn]]","v":"Student 3"}]
[null,"S004","Student",4,{"$nulls":14},{"$f":"Studentliste[[#This Row],[Studentens fornavn]]&\" \" &Studentliste[[#This Row],[Studentens etternavn]]","v":"Student 4"}]
[null,"S005","Student",5,{"$nulls":14},{"$f":"Studentliste[[#This Row],[Studentens fornavn]]&\" \" &Studentliste[[#This Row],[Studentens etternavn]]","v":"Student 5"}]

{"sheet":"August","index":2,"n_rows":12,"n_cols":39,"rows_kept":12,"merged":[[4,34,4,38]]}
["Oversikt over studentoppmøte",{"$nulls":36},"Skoleåret begynner:",2012]
[]
[null,null,"FARGENØKKEL ","S","Sen",null,null,"G","Gyldig",null,null,"U","Ugyldig",null,null,"T","Tilstede",null,null,"F","Skolefri"]
[]
[null,{"$f":"DATE(Kalenderår,8,1)","v":"2012-08-01"},null,{"$f":"TEXT(WEEKDAY(DATE(Kalenderår,8,1),1),\"[$-414]aaa\")","v":"on"},{"$f":"TEXT(WEEKDAY(DATE(Kalenderår,8,2),1),\"[$-414]aaa\")","v":"to"},{"$f":"TEXT(WEEKDAY(DATE(Kalenderår,8,3),1),\"[$-414]aaa\")","v":"fr"},{"$f":"TEXT(WEEKDAY(DATE(Kalenderår,8,4),1),\"[$-414]aaa\")","v":"lø"},{"$f":"TEXT(WEEKDAY(DATE(Kalenderår,8,5),1),\"[$-414]aaa\")","v":"sø"},{"$f":"TEXT(WEEKDAY(DATE(Kalenderår,8,6),1),\"[$-414]aaa\")","v":"ma"},{"$f":"TEXT(WEEKDAY(DATE(Kalenderår,8,7),1),\"[$-414]aaa\")","v":"ti"},{"$f":"TEXT(WEEKDAY(DATE(Kalenderår,8,8),1),\"[$-414]aaa\")","v":"on"},{"$f":"TEXT(WEEKDAY(DATE(Kalenderår,8,9),1),\"[$-414]aaa\")","v":"to"},{"$f":"TEXT(WEEKDAY(DATE(Kalenderår,8,10),1),\"[$-414]aaa\")","v":"fr"},{"$f":"TEXT(WEEKDAY(DATE(Kalenderår,8,11),1),\"[$-414]aaa\")","v":"lø"},{"$f":"TEXT(WEEKDAY(DATE(Kalenderår,8,12),1),\"[$-414]aaa\")","v":"sø"},{"$f":"TEXT(WEEKDAY(DATE(Kalenderår,8,13),1),\"[$-414]aaa\")","v":"ma"},{"$f":"TEXT(WEEKDAY(DATE(Kalenderår,8,14),1),\"[$-414]aaa\")","v":"ti"},{"$f":"TEXT(WEEKDAY(DATE(Kalenderår,8,15),1),\"[$-414]aaa\")","v":"on"},{"$f":"TEXT(WEEKDAY(DATE(Kalenderår,8,16),1),\"[$-414]aaa\")","v":"to"},{"$f":"TEXT(WEEKDAY(DATE(Kalenderår,8,17),1),\"[$-414]aaa\")","v":"fr"},{"$f":"TEXT(WEEKDAY(DATE(Kalenderår,8,18),1),\"[$-414]aaa\")","v":"lø"},{"$f":"TEXT(WEEKDAY(DATE(Kalenderår,8,19),1),\"[$-414]aaa\")","v":"sø"},{"$f":"TEXT(WEEKDAY(DATE(Kalenderår,8,20),1),\"[$-414]aaa\")","v":"ma"},{"$f":"TEXT(WEEKDAY(DATE(Kalenderår,8,21),1),\"[$-414]aaa\")","v":"ti"},{"$f":"TEXT(WEEKDAY(DATE(Kalenderår,8,22),1),\"[$-414]aaa\")","v":"on"},{"$f":"TEXT(WEEKDAY(DATE(Kalenderår,8,23),1),\"[$-414]aaa\")","v":"to"},{"$f":"TEXT(WEEKDAY(DATE(Kalenderår,8,24),1),\"[$-414]aaa\")","v":"fr"},{"$f":"TEXT(WEEKDAY(DATE(Kalenderår,8,25),1),\"[$-414]aaa\")","v":"lø"},{"$f":"TEXT(WEEKDAY(DATE(Kalenderår,8,26),1),\"[$-414]aaa\")","v":"sø"},{"$f":"TEXT(WEEKDAY(DATE(Kalenderår,8,27),1),\"[$-414]aaa\")","v":"ma"},{"$f":"TEXT(WEEKDAY(DATE(Kalenderår,8,28),1),\"[$-414]aaa\")","v":"ti"},{"$f":"TEXT(WEEKDAY(DATE(Kalenderår,8,29),1),\"[$-414]aaa\")","v":"on"},{"$f":"TEXT(WEEKDAY(DATE(Kalenderår,8,30),1),\"[$-414]aaa\")","v":"to"},{"$f":"TEXT(WEEKDAY(DATE(Kalenderår,8,31),1),\"[$-414]aaa\")","v":"fr"},"Totaler"]
[null,"Student-ID","Studentnavn","1","2","3","4","5","6","7","8","9","10","11","12","13","14","15","16","17","18","19","20","21","22","23","24","25","26","27","28","29","30","31","S","G","U","T","Fraværsdager"]
[null,"S001",{"$f":"IFERROR(VLOOKUP(AugustOppmøte[[#This Row],[Student-ID]],Studentliste[],18,FALSE),\"\")","v":"Erik Andersen"},"T","T","S","S","T","F","F","T","T","G","T","T","F","F","T","T","T","T","T","F","F","T","T","T","T","T","F","F","T","T","T",{"$f":"COUNTIF(AugustOppmøte[[#This Row],[1]:[31]],Kode1)","v":2},{"$f":"COUNTIF(AugustOppmøte[[#This Row],[1]:[31]],Kode2)","v":1},{"$f":"COUNTIF(AugustOppmøte[[#This Row],[1]:[31]],Kode3)","v":0},{"$f":"COUNTIF(AugustOppmøte[[#This Row],[1]:[31]],Kode4)","v":20},{"$f":"SUM(AugustOppmøte[[#This Row],[G]:[U]])","v":1}]
[null,"S002",{"$f":"IFERROR(VLOOKUP(AugustOppmøte[[#This Row],[Student-ID]],Studentliste[],18,FALSE),\"\")","v":"Student 2"},"T","U","T","T","T","F","F","T","G","G","G","G","F","F","T","T","T","T","T","F","F","T","T","T","S","S","F","F","T","T","T",{"$f":"COUNTIF(AugustOppmøte[[#This Row],[1]:[31]],Kode1)","v":2},{"$f":"COUNTIF(AugustOppmøte[[#This Row],[1]:[31]],Kode2)","v":4},{"$f":"COUNTIF(AugustOppmøte[[#This Row],[1]:[31]],Kode3)","v":1},{"$f":"COUNTIF(AugustOppmøte[[#This Row],[1]:[31]],Kode4)","v":16},{"$f":"SUM(AugustOppmøte[[#This Row],[G]:[U]])","v":5}]
[null,"S003",{"$f":"IFERROR(VLOOKUP(AugustOppmøte[[#This Row],[Student-ID]],Studentliste[],18,FALSE),\"\")","v":"Student 3"},"T","G","T","T","T","F","F","T","T","U","T","T","F","F","T","T","T","T","T","F","F","T","T","G","G","T","F","F","T","T","T",{"$f":"COUNTIF(AugustOppmøte[[#This Row],[1]:[31]],Kode1)","v":0},{"$f":"COUNTIF(AugustOppmøte[[#This Row],[1]:[31]],Kode2)","v":3},{"$f":"COUNTIF(AugustOppmøte[[#This Row],[1]:[31]],Kode3)","v":1},{"$f":"COUNTIF(AugustOppmøte[[#This Row],[1]:[31]],Kode4)","v":19},{"$f":"SUM(AugustOppmøte[[#This Row],[G]:[U]])","v":4}]
[null,"S004",{"$f":"IFERROR(VLOOKUP(AugustOppmøte[[#This Row],[Student-ID]],Studentliste[],18,FALSE),\"\")","v":"Student 4"},"T","T","T","T","T","F","F","T","T","T","T","T","F","F","T","T","T","T","T","F","F","T","U","T","T","G","F","F","T","G","T",{"$f":"COUNTIF(AugustOppmøte[[#This Row],[1]:[31]],Kode1)","v":0},{"$f":"COUNTIF(AugustOppmøte[[#This Row],[1]:[31]],Kode2)","v":2},{"$f":"COUNTIF(AugustOppmøte[[#This Row],[1]:[31]],Kode3)","v":1},{"$f":"COUNTIF(AugustOppmøte[[#This Row],[1]:[31]],Kode4)","v":20},{"$f":"SUM(AugustOppmøte[[#This Row],[G]:[U]])","v":3}]
[null,"S005",{"$f":"IFERROR(VLOOKUP(AugustOppmøte[[#This Row],[Student-ID]],Studentliste[],18,FALSE),\"\")","v":"Student 5"},"T","T","T","T","T","F","F","T","T","T","T","T","F","F","T","T","T","T","T","F","F","T","T","T","T","T","F","F","T","T","T",{"$f":"COUNTIF(AugustOppmøte[[#This Row],[1]:[31]],Kode1)","v":0},{"$f":"COUNTIF(AugustOppmøte[[#This Row],[1]:[31]],Kode2)","v":0},{"$f":"COUNTIF(AugustOppmøte[[#This Row],[1]:[31]],Kode3)","v":0},{"$f":"COUNTIF(AugustOppmøte[[#This Row],[1]:[31]],Kode4)","v":23},{"$f":"SUM(AugustOppmøte[[#This Row],[G]:[U]])","v":0}]
[null,null,"Totalt antall fraværsdager",{"$f":"COUNTIF(AugustOppmøte[1],\"U\")+COUNTIF(AugustOppmøte[1],\"G\")","v":0},{"$f":"COUNTIF(AugustOppmøte[2],\"U\")+COUNTIF(AugustOppmøte[2],\"G\")","v":2},{"$f":"COUNTIF(AugustOppmøte[3],\"U\")+COUNTIF(AugustOppmøte[3],\"G\")","v":0},{"$f":"COUNTIF(AugustOppmøte[4],\"U\")+COUNTIF(AugustOppmøte[4],\"G\")","v":0},{"$f":"COUNTIF(AugustOppmøte[5],\"U\")+COUNTIF(AugustOppmøte[5],\"G\")","v":0},{"$f":"COUNTIF(AugustOppmøte[6],\"U\")+COUNTIF(AugustOppmøte[6],\"G\")","v":0},{"$f":"COUNTIF(AugustOppmøte[7],\"U\")+COUNTIF(AugustOppmøte[7],\"G\")","v":0},{"$f":"COUNTIF(AugustOppmøte[8],\"U\")+COUNTIF(AugustOppmøte[8],\"G\")","v":0},{"$f":"COUNTIF(AugustOppmøte[9],\"U\")+COUNTIF(AugustOppmøte[9],\"G\")","v":1},{"$f":"COUNTIF(AugustOppmøte[10],\"U\")+COUNTIF(AugustOppmøte[10],\"G\")","v":3},{"$f":"COUNTIF(AugustOppmøte[11],\"U\")+COUNTIF(AugustOppmøte[11],\"G\")","v":1},{"$f":"COUNTIF(AugustOppmøte[12],\"U\")+COUNTIF(AugustOppmøte[12],\"G\")","v":1},{"$f":"COUNTIF(AugustOppmøte[13],\"U\")+COUNTIF(AugustOppmøte[13],\"G\")","v":0},{"$f":"COUNTIF(AugustOppmøte[14],\"U\")+COUNTIF(AugustOppmøte[14],\"G\")","v":0},{"$f":"COUNTIF(AugustOppmøte[15],\"U\")+COUNTIF(AugustOppmøte[15],\"G\")","v":0},{"$f":"COUNTIF(AugustOppmøte[16],\"U\")+COUNTIF(AugustOppmøte[16],\"G\")","v":0},{"$f":"COUNTIF(AugustOppmøte[17],\"U\")+COUNTIF(AugustOppmøte[17],\"G\")","v":0},{"$f":"COUNTIF(AugustOppmøte[18],\"U\")+COUNTIF(AugustOppmøte[18],\"G\")","v":0},{"$f":"COUNTIF(AugustOppmøte[19],\"U\")+COUNTIF(AugustOppmøte[19],\"G\")","v":0},{"$f":"COUNTIF(AugustOppmøte[20],\"U\")+COUNTIF(AugustOppmøte[20],\"G\")","v":0},{"$f":"COUNTIF(AugustOppmøte[21],\"U\")+COUNTIF(AugustOppmøte[21],\"G\")","v":0},{"$f":"COUNTIF(AugustOppmøte[22],\"U\")+COUNTIF(AugustOppmøte[22],\"G\")","v":0},{"$f":"COUNTIF(AugustOppmøte[23],\"U\")+COUNTIF(AugustOppmøte[23],\"G\")","v":1},{"$f":"COUNTIF(AugustOppmøte[24],\"U\")+COUNTIF(AugustOppmøte[24],\"G\")","v":1},{"$f":"COUNTIF(AugustOppmøte[25],\"U\")+COUNTIF(AugustOppmøte[25],\"G\")","v":1},{"$f":"COUNTIF(AugustOppmøte[26],\"U\")+COUNTIF(AugustOppmøte[26],\"G\")","v":1},{"$f":"COUNTIF(AugustOppmøte[27],\"U\")+COUNTIF(AugustOppmøte[27],\"G\")","v":0},{"$f":"COUNTIF(AugustOppmøte[28],\"U\")+COUNTIF(AugustOppmøte[28],\"G\")","v":0},{"$f":"COUNTIF(AugustOppmøte[29],\"U\")+COUNTIF(AugustOppmøte[29],\"G\")","v":0},{"$f":"COUNTIF(AugustOppmøte[30],\"U\")+COUNTIF(AugustOppmøte[30],\"G\")","v":1},{"$f":"COUNTIF(AugustOppmøte[31],\"U\")+COUNTIF(AugustOppmøte[31],\"G\")","v":0},{"$f":"SUBTOTAL(109,AugustOppmøte[S])","v":4},{"$f":"SUBTOTAL(109,AugustOppmøte[G])","v":10},{"$f":"SUBTOTAL(109,AugustOppmøte[U])","v":3},{"$f":"SUBTOTAL(109,AugustOppmøte[T])","v":98},{"$f":"SUBTOTAL(109,AugustOppmøte[Fraværsdager])","v":13}]

{"sheet":"September","index":3,"n_rows":12,"n_cols":39,"rows_kept":12,"merged":[[4,34,4,38]]}
["Oversikt over studentoppmøte",{"$nulls":36},"Skoleåret begynner:",{"$f":"Kalenderår","v":2012}]
[]
[null,null,{"$f":"Fargenøkkeltekst","v":"FARGENØKKEL "},{"$f":"Kode1","v":"S"},{"$f":"Kode1Tekst","v":"Sen"},null,null,{"$f":"Kode2","v":"G"},{"$f":"Kode2Tekst","v":"Gyldig"},null,null,{"$f":"Kode3","v":"U"},{"$f":"Kode3Tekst","v":"Ugyldig"},null,null,{"$f":"Kode4","v":"T"},{"$f":"Kode4Tekst","v":"Tilstede"},null,null,{"$f":"Kode5","v":"F"},{"$f":"Kode5Tekst","v":"Skolefri"}]
[]
[null,{"$f":"DATE(Kalenderår,9,1)","v":"2012-09-01"},null,{"$f":"TEXT(WEEKDAY(DATE(Kalenderår,9,1),1),\"[$-414]aaa\")","v":"lø"},{"$f":"TEXT(WEEKDAY(DATE(Kalenderår,9,2),1),\"[$-414]aaa\")","v":"sø"},{"$f":"TEXT(WEEKDAY(DATE(Kalenderår,9,3),1),\"[$-414]aaa\")","v":"ma"},{"$f":"TEXT(WEEKDAY(DATE(Kalenderår,9,4),1),\"[$-414]aaa\")","v":"ti"},{"$f":"TEXT(WEEKDAY(DATE(Kalenderår,9,5),1),\"[$-414]aaa\")","v":"on"},{"$f":"TEXT(WEEKDAY(DATE(Kalenderår,9,6),1),\"[$-414]aaa\")","v":"to"},{"$f":"TEXT(WEEKDAY(DATE(Kalenderår,9,7),1),\"[$-414]aaa\")","v":"fr"},{"$f":"TEXT(WEEKDAY(DATE(Kalenderår,9,8),1),\"[$-414]aaa\")","v":"lø"},{"$f":"TEXT(WEEKDAY(DATE(Kalenderår,9,9),1),\"[$-414]aaa\")","v":"sø"},{"$f":"TEXT(WEEKDAY(DATE(Kalenderår,9,10),1),\"[$-414]aaa\")","v":"ma"},{"$f":"TEXT(WEEKDAY(DATE(Kalenderår,9,11),1),\"[$-414]aaa\")","v":"ti"},{"$f":"TEXT(WEEKDAY(DATE(Kalenderår,9,12),1),\"[$-414]aaa\")","v":"on"},{"$f":"TEXT(WEEKDAY(DATE(Kalenderår,9,13),1),\"[$-414]aaa\")","v":"to"},{"$f":"TEXT(WEEKDAY(DATE(Kalenderår,9,14),1),\"[$-414]aaa\")","v":"fr"},{"$f":"TEXT(WEEKDAY(DATE(Kalenderår,9,15),1),\"[$-414]aaa\")","v":"lø"},{"$f":"TEXT(WEEKDAY(DATE(Kalenderår,9,16),1),\"[$-414]aaa\")","v":"sø"},{"$f":"TEXT(WEEKDAY(DATE(Kalenderår,9,17),1),\"[$-414]aaa\")","v":"ma"},{"$f":"TEXT(WEEKDAY(DATE(Kalenderår,9,18),1),\"[$-414]aaa\")","v":"ti"},{"$f":"TEXT(WEEKDAY(DATE(Kalenderår,9,19),1),\"[$-414]aaa\")","v":"on"},{"$f":"TEXT(WEEKDAY(DATE(Kalenderår,9,20),1),\"[$-414]aaa\")","v":"to"},{"$f":"TEXT(WEEKDAY(DATE(Kalenderår,9,21),1),\"[$-414]aaa\")","v":"fr"},{"$f":"TEXT(WEEKDAY(DATE(Kalenderår,9,22),1),\"[$-414]aaa\")","v":"lø"},{"$f":"TEXT(WEEKDAY(DATE(Kalenderår,9,23),1),\"[$-414]aaa\")","v":"sø"},{"$f":"TEXT(WEEKDAY(DATE(Kalenderår,9,24),1),\"[$-414]aaa\")","v":"ma"},{"$f":"TEXT(WEEKDAY(DATE(Kalenderår,9,25),1),\"[$-414]aaa\")","v":"ti"},{"$f":"TEXT(WEEKDAY(DATE(Kalenderår,9,26),1),\"[$-414]aaa\")","v":"on"},{"$f":"TEXT(WEEKDAY(DATE(Kalenderår,9,27),1),\"[$-414]aaa\")","v":"to"},{"$f":"TEXT(WEEKDAY(DATE(Kalenderår,9,28),1),\"[$-414]aaa\")","v":"fr"},{"$f":"TEXT(WEEKDAY(DATE(Kalenderår,9,29),1),\"[$-414]aaa\")","v":"lø"},{"$f":"TEXT(WEEKDAY(DATE(Kalenderår,9,30),1),\"[$-414]aaa\")","v":"sø"},null,"Totaler"]
[null,"Student-ID","Studentnavn","1","2","3","4","5","6","7","8","9","10","11","12","13","14","15","16","17","18","19","20","21","22","23","24","25","26","27","28","29","30"," ","S","G","U","T","Fraværsdager"]
[null,null,{"$f":"IFERROR(VLOOKUP(SeptemberOppmøte[[#This Row],[Student-ID]],Studentliste[],18,FALSE),\"\")","v":""},{"$nulls":31},{"$f":"COUNTIF(SeptemberOppmøte[[#This Row],[1]:[ ]],Kode1)","v":0},{"$f":"COUNTIF(SeptemberOppmøte[[#This Row],[1]:[ ]],Kode2)","v":0},{"$f":"COUNTIF(SeptemberOppmøte[[#This Row],[1]:[ ]],Kode3)","v":0},{"$f":"COUNTIF(SeptemberOppmøte[[#This Row],[1]:[ ]],Kode4)","v":0},{"$f":"SUM(SeptemberOppmøte[[#This Row],[G]:[U]])","v":0}]
[null,null,{"$f":"IFERROR(VLOOKUP(SeptemberOppmøte[[#This Row],[Student-ID]],Studentliste[],18,FALSE),\"\")","v":""},{"$nulls":31},{"$f":"COUNTIF(SeptemberOppmøte[[#This Row],[1]:[ ]],Kode1)","v":0},{"$f":"COUNTIF(SeptemberOppmøte[[#This Row],[1]:[ ]],Kode2)","v":0},{"$f":"COUNTIF(SeptemberOppmøte[[#This Row],[1]:[ ]],Kode3)","v":0},{"$f":"COUNTIF(SeptemberOppmøte[[#This Row],[1]:[ ]],Kode4)","v":0},{"$f":"SUM(SeptemberOppmøte[[#This Row],[G]:[U]])","v":0}]
[null,null,{"$f":"IFERROR(VLOOKUP(SeptemberOppmøte[[#This Row],[Student-ID]],Studentliste[],18,FALSE),\"\")","v":""},{"$nulls":31},{"$f":"COUNTIF(SeptemberOppmøte[[#This Row],[1]:[ ]],Kode1)","v":0},{"$f":"COUNTIF(SeptemberOppmøte[[#This Row],[1]:[ ]],Kode2)","v":0},{"$f":"COUNTIF(SeptemberOppmøte[[#This Row],[1]:[ ]],Kode3)","v":0},{"$f":"COUNTIF(SeptemberOppmøte[[#This Row],[1]:[ ]],Kode4)","v":0},{"$f":"SUM(SeptemberOppmøte[[#This Row],[G]:[U]])","v":0}]
[null,null,{"$f":"IFERROR(VLOOKUP(SeptemberOppmøte[[#This Row],[Student-ID]],Studentliste[],18,FALSE),\"\")","v":""},{"$nulls":31},{"$f":"COUNTIF(SeptemberOppmøte[[#This Row],[1]:[ ]],Kode1)","v":0},{"$f":"COUNTIF(SeptemberOppmøte[[#This Row],[1]:[ ]],Kode2)","v":0},{"$f":"COUNTIF(SeptemberOppmøte[[#This Row],[1]:[ ]],Kode3)","v":0},{"$f":"COUNTIF(SeptemberOppmøte[[#This Row],[1]:[ ]],Kode4)","v":0},{"$f":"SUM(SeptemberOppmøte[[#This Row],[G]:[U]])","v":0}]
[null,null,{"$f":"IFERROR(VLOOKUP(SeptemberOppmøte[[#This Row],[Student-ID]],Studentliste[],18,FALSE),\"\")","v":""},{"$nulls":31},{"$f":"COUNTIF(SeptemberOppmøte[[#This Row],[1]:[ ]],Kode1)","v":0},{"$f":"COUNTIF(SeptemberOppmøte[[#This Row],[1]:[ ]],Kode2)","v":0},{"$f":"COUNTIF(SeptemberOppmøte[[#This Row],[1]:[ ]],Kode3)","v":0},{"$f":"COUNTIF(SeptemberOppmøte[[#This Row],[1]:[ ]],Kode4)","v":0},{"$f":"SUM(SeptemberOppmøte[[#This Row],[G]:[U]])","v":0}]
[null,null,"Totalt antall fraværsdager",{"$f":"COUNTIF(SeptemberOppmøte[1],\"U\")+COUNTIF(SeptemberOppmøte[1],\"G\")","v":0},{"$f":"COUNTIF(SeptemberOppmøte[2],\"U\")+COUNTIF(SeptemberOppmøte[2],\"G\")","v":0},{"$f":"COUNTIF(SeptemberOppmøte[3],\"U\")+COUNTIF(SeptemberOppmøte[3],\"G\")","v":0},{"$f":"COUNTIF(SeptemberOppmøte[4],\"U\")+COUNTIF(SeptemberOppmøte[4],\"G\")","v":0},{"$f":"COUNTIF(SeptemberOppmøte[5],\"U\")+COUNTIF(SeptemberOppmøte[5],\"G\")","v":0},{"$f":"COUNTIF(SeptemberOppmøte[6],\"U\")+COUNTIF(SeptemberOppmøte[6],\"G\")","v":0},{"$f":"COUNTIF(SeptemberOppmøte[7],\"U\")+COUNTIF(SeptemberOppmøte[7],\"G\")","v":0},{"$f":"COUNTIF(SeptemberOppmøte[8],\"U\")+COUNTIF(SeptemberOppmøte[8],\"G\")","v":0},{"$f":"COUNTIF(SeptemberOppmøte[9],\"U\")+COUNTIF(SeptemberOppmøte[9],\"G\")","v":0},{"$f":"COUNTIF(SeptemberOppmøte[10],\"U\")+COUNTIF(SeptemberOppmøte[10],\"G\")","v":0},{"$f":"COUNTIF(SeptemberOppmøte[11],\"U\")+COUNTIF(SeptemberOppmøte[11],\"G\")","v":0},{"$f":"COUNTIF(SeptemberOppmøte[12],\"U\")+COUNTIF(SeptemberOppmøte[12],\"G\")","v":0},{"$f":"COUNTIF(SeptemberOppmøte[13],\"U\")+COUNTIF(SeptemberOppmøte[13],\"G\")","v":0},{"$f":"COUNTIF(SeptemberOppmøte[14],\"U\")+COUNTIF(SeptemberOppmøte[14],\"G\")","v":0},{"$f":"COUNTIF(SeptemberOppmøte[15],\"U\")+COUNTIF(SeptemberOppmøte[15],\"G\")","v":0},{"$f":"COUNTIF(SeptemberOppmøte[16],\"U\")+COUNTIF(SeptemberOppmøte[16],\"G\")","v":0},{"$f":"COUNTIF(SeptemberOppmøte[17],\"U\")+COUNTIF(SeptemberOppmøte[17],\"G\")","v":0},{"$f":"COUNTIF(SeptemberOppmøte[18],\"U\")+COUNTIF(SeptemberOppmøte[18],\"G\")","v":0},{"$f":"COUNTIF(SeptemberOppmøte[19],\"U\")+COUNTIF(SeptemberOppmøte[19],\"G\")","v":0},{"$f":"COUNTIF(SeptemberOppmøte[20],\"U\")+COUNTIF(SeptemberOppmøte[20],\"G\")","v":0},{"$f":"COUNTIF(SeptemberOppmøte[21],\"U\")+COUNTIF(SeptemberOppmøte[21],\"G\")","v":0},{"$f":"COUNTIF(SeptemberOppmøte[22],\"U\")+COUNTIF(SeptemberOppmøte[22],\"G\")","v":0},{"$f":"COUNTIF(SeptemberOppmøte[23],\"U\")+COUNTIF(SeptemberOppmøte[23],\"G\")","v":0},{"$f":"COUNTIF(SeptemberOppmøte[24],\"U\")+COUNTIF(SeptemberOppmøte[24],\"G\")","v":0},{"$f":"COUNTIF(SeptemberOppmøte[25],\"U\")+COUNTIF(SeptemberOppmøte[25],\"G\")","v":0},{"$f":"COUNTIF(SeptemberOppmøte[26],\"U\")+COUNTIF(SeptemberOppmøte[26],\"G\")","v":0},{"$f":"COUNTIF(SeptemberOppmøte[27],\"U\")+COUNTIF(SeptemberOppmøte[27],\"G\")","v":0},{"$f":"COUNTIF(SeptemberOppmøte[28],\"U\")+COUNTIF(SeptemberOppmøte[28],\"G\")","v":0},{"$f":"COUNTIF(SeptemberOppmøte[29],\"U\")+COUNTIF(SeptemberOppmøte[29],\"G\")","v":0},{"$f":"COUNTIF(SeptemberOppmøte[30],\"U\")+COUNTIF(SeptemberOppmøte[30],\"G\")","v":0},{"$f":"COUNTIF(SeptemberOppmøte[[ ]],\"U\")+COUNTIF(SeptemberOppmøte[[ ]],\"G\")","v":0},{"$f":"SUBTOTAL(109,SeptemberOppmøte[S])","v":0},{"$f":"SUBTOTAL(109,SeptemberOppmøte[G])","v":0},{"$f":"SUBTOTAL(109,SeptemberOppmøte[U])","v":0},{"$f":"SUBTOTAL(109,SeptemberOppmøte[T])","v":0},{"$f":"SUBTOTAL(109,SeptemberOppmøte[Fraværsdager])","v":0}]

{"sheet":"Oktober","index":4,"n_rows":12,"n_cols":39,"rows_kept":12,"merged":[[4,34,4,38]]}
["Oversikt over studentoppmøte",{"$nulls":36},"Skoleåret begynner:",{"$f":"Kalenderår","v":2012}]
[]
[null,null,{"$f":"Fargenøkkeltekst","v":"FARGENØKKEL "},{"$f":"Kode1","v":"S"},{"$f":"Kode1Tekst","v":"Sen"},null,null,{"$f":"Kode2","v":"G"},{"$f":"Kode2Tekst","v":"Gyldig"},null,null,{"$f":"Kode3","v":"U"},{"$f":"Kode3Tekst","v":"Ugyldig"},null,null,{"$f":"Kode4","v":"T"},{"$f":"Kode4Tekst","v":"Tilstede"},null,null,{"$f":"Kode5","v":"F"},{"$f":"Kode5Tekst","v":"Skolefri"}]
[]
[null,{"$f":"DATE(Kalenderår,10,1)","v":"2012-10-01"},null,{"$f":"TEXT(WEEKDAY(DATE(Kalenderår,10,1),1),\"[$-414]aaa\")","v":"ma"},{"$f":"TEXT(WEEKDAY(DATE(Kalenderår,10,2),1),\"[$-414]aaa\")","v":"ti"},{"$f":"TEXT(WEEKDAY(DATE(Kalenderår,10,3),1),\"[$-414]aaa\")","v":"on"},{"$f":"TEXT(WEEKDAY(DATE(Kalenderår,10,4),1),\"[$-414]aaa\")","v":"to"},{"$f":"TEXT(WEEKDAY(DATE(Kalenderår,10,5),1),\"[$-414]aaa\")","v":"fr"},{"$f":"TEXT(WEEKDAY(DATE(Kalenderår,10,6),1),\"[$-414]aaa\")","v":"lø"},{"$f":"TEXT(WEEKDAY(DATE(Kalenderår,10,7),1),\"[$-414]aaa\")","v":"sø"},{"$f":"TEXT(WEEKDAY(DATE(Kalenderår,10,8),1),\"[$-414]aaa\")","v":"ma"},{"$f":"TEXT(WEEKDAY(DATE(Kalenderår,10,9),1),\"[$-414]aaa\")","v":"ti"},{"$f":"TEXT(WEEKDAY(DATE(Kalenderår,10,10),1),\"[$-414]aaa\")","v":"on"},{"$f":"TEXT(WEEKDAY(DATE(Kalenderår,10,11),1),\"[$-414]aaa\")","v":"to"},{"$f":"TEXT(WEEKDAY(DATE(Kalenderår,10,12),1),\"[$-414]aaa\")","v":"fr"},{"$f":"TEXT(WEEKDAY(DATE(Kalenderår,10,13),1),\"[$-414]aaa\")","v":"lø"},{"$f":"TEXT(WEEKDAY(DATE(Kalenderår,10,14),1),\"[$-414]aaa\")","v":"sø"},{"$f":"TEXT(WEEKDAY(DATE(Kalenderår,10,15),1),\"[$-414]aaa\")","v":"ma"},{"$f":"TEXT(WEEKDAY(DATE(Kalenderår,10,16),1),\"[$-414]aaa\")","v":"ti"},{"$f":"TEXT(WEEKDAY(DATE(Kalenderår,10,17),1),\"[$-414]aaa\")","v":"on"},{"$f":"TEXT(WEEKDAY(DATE(Kalenderår,10,18),1),\"[$-414]aaa\")","v":"to"},{"$f":"TEXT(WEEKDAY(DATE(Kalenderår,10,19),1),\"[$-414]aaa\")","v":"fr"},{"$f":"TEXT(WEEKDAY(DATE(Kalenderår,10,20),1),\"[$-414]aaa\")","v":"lø"},{"$f":"TEXT(WEEKDAY(DATE(Kalenderår,10,21),1),\"[$-414]aaa\")","v":"sø"},{"$f":"TEXT(WEEKDAY(DATE(Kalenderår,10,22),1),\"[$-414]aaa\")","v":"ma"},{"$f":"TEXT(WEEKDAY(DATE(Kalenderår,10,23),1),\"[$-414]aaa\")","v":"ti"},{"$f":"TEXT(WEEKDAY(DATE(Kalenderår,10,24),1),\"[$-414]aaa\")","v":"on"},{"$f":"TEXT(WEEKDAY(DATE(Kalenderår,10,25),1),\"[$-414]aaa\")","v":"to"},{"$f":"TEXT(WEEKDAY(DATE(Kalenderår,10,26),1),\"[$-414]aaa\")","v":"fr"},{"$f":"TEXT(WEEKDAY(DATE(Kalenderår,10,27),1),\"[$-414]aaa\")","v":"lø"},{"$f":"TEXT(WEEKDAY(DATE(Kalenderår,10,28),1),\"[$-414]aaa\")","v":"sø"},{"$f":"TEXT(WEEKDAY(DATE(Kalenderår,10,29),1),\"[$-414]aaa\")","v":"ma"},{"$f":"TEXT(WEEKDAY(DATE(Kalenderår,10,30),1),\"[$-414]aaa\")","v":"ti"},{"$f":"TEXT(WEEKDAY(DATE(Kalenderår,10,31),1),\"[$-414]aaa\")","v":"on"},"Totaler"]
[null,"Student-ID","Studentnavn","1","2","3","4","5","6","7","8","9","10","11","12","13","14","15","16","17","18","19","20","21","22","23","24","25","26","27","28","29","30","31","S","G","U","T","Fraværsdager"]
[null,null,{"$f":"IFERROR(VLOOKUP(OktoberOppmøte[[#This Row],[Student-ID]],Studentliste[],18,FALSE),\"\")","v":""},{"$nulls":31},{"$f":"COUNTIF(OktoberOppmøte[[#This Row],[1]:[31]],Kode1)","v":0},{"$f":"COUNTIF(OktoberOppmøte[[#This Row],[1]:[31]],Kode2)","v":0},{"$f":"COUNTIF(OktoberOppmøte[[#This Row],[1]:[31]],Kode3)","v":0},{"$f":"COUNTIF(OktoberOppmøte[[#This Row],[1]:[31]],Kode4)","v":0},{"$f":"SUM(OktoberOppmøte[[#This Row],[G]:[U]])","v":0}]
[null,null,{"$f":"IFERROR(VLOOKUP(OktoberOppmøte[[#This Row],[Student-ID]],Studentliste[],18,FALSE),\"\")","v":""},{"$nulls":31},{"$f":"COUNTIF(OktoberOppmøte[[#This Row],[1]:[31]],Kode1)","v":0},{"$f":"COUNTIF(OktoberOppmøte[[#This Row],[1]:[31]],Kode2)","v":0},{"$f":"COUNTIF(OktoberOppmøte[[#This Row],[1]:[31]],Kode3)","v":0},{"$f":"COUNTIF(OktoberOppmøte[[#This Row],[1]:[31]],Kode4)","v":0},{"$f":"SUM(OktoberOppmøte[[#This Row],[G]:[U]])","v":0}]
[null,null,{"$f":"IFERROR(VLOOKUP(OktoberOppmøte[[#This Row],[Student-ID]],Studentliste[],18,FALSE),\"\")","v":""},{"$nulls":31},{"$f":"COUNTIF(OktoberOppmøte[[#This Row],[1]:[31]],Kode1)","v":0},{"$f":"COUNTIF(OktoberOppmøte[[#This Row],[1]:[31]],Kode2)","v":0},{"$f":"COUNTIF(OktoberOppmøte[[#This Row],[1]:[31]],Kode3)","v":0},{"$f":"COUNTIF(OktoberOppmøte[[#This Row],[1]:[31]],Kode4)","v":0},{"$f":"SUM(OktoberOppmøte[[#This Row],[G]:[U]])","v":0}]
[null,null,{"$f":"IFERROR(VLOOKUP(OktoberOppmøte[[#This Row],[Student-ID]],Studentliste[],18,FALSE),\"\")","v":""},{"$nulls":31},{"$f":"COUNTIF(OktoberOppmøte[[#This Row],[1]:[31]],Kode1)","v":0},{"$f":"COUNTIF(OktoberOppmøte[[#This Row],[1]:[31]],Kode2)","v":0},{"$f":"COUNTIF(OktoberOppmøte[[#This Row],[1]:[31]],Kode3)","v":0},{"$f":"COUNTIF(OktoberOppmøte[[#This Row],[1]:[31]],Kode4)","v":0},{"$f":"SUM(OktoberOppmøte[[#This Row],[G]:[U]])","v":0}]
[null,null,{"$f":"IFERROR(VLOOKUP(OktoberOppmøte[[#This Row],[Student-ID]],Studentliste[],18,FALSE),\"\")","v":""},{"$nulls":31},{"$f":"COUNTIF(OktoberOppmøte[[#This Row],[1]:[31]],Kode1)","v":0},{"$f":"COUNTIF(OktoberOppmøte[[#This Row],[1]:[31]],Kode2)","v":0},{"$f":"COUNTIF(OktoberOppmøte[[#This Row],[1]:[31]],Kode3)","v":0},{"$f":"COUNTIF(OktoberOppmøte[[#This Row],[1]:[31]],Kode4)","v":0},{"$f":"SUM(OktoberOppmøte[[#This Row],[G]:[U]])","v":0}]
[null,null,"Totalt antall fraværsdager",{"$f":"COUNTIF(OktoberOppmøte[1],\"U\")+COUNTIF(OktoberOppmøte[1],\"G\")","v":0},{"$f":"COUNTIF(OktoberOppmøte[2],\"U\")+COUNTIF(OktoberOppmøte[2],\"G\")","v":0},{"$f":"COUNTIF(OktoberOppmøte[3],\"U\")+COUNTIF(OktoberOppmøte[3],\"G\")","v":0},{"$f":"COUNTIF(OktoberOppmøte[4],\"U\")+COUNTIF(OktoberOppmøte[4],\"G\")","v":0},{"$f":"COUNTIF(OktoberOppmøte[5],\"U\")+COUNTIF(OktoberOppmøte[5],\"G\")","v":0},{"$f":"COUNTIF(OktoberOppmøte[6],\"U\")+COUNTIF(OktoberOppmøte[6],\"G\")","v":0},{"$f":"COUNTIF(OktoberOppmøte[7],\"U\")+COUNTIF(OktoberOppmøte[7],\"G\")","v":0},{"$f":"COUNTIF(OktoberOppmøte[8],\"U\")+COUNTIF(OktoberOppmøte[8],\"G\")","v":0},{"$f":"COUNTIF(OktoberOppmøte[9],\"U\")+COUNTIF(OktoberOppmøte[9],\"G\")","v":0},{"$f":"COUNTIF(OktoberOppmøte[10],\"U\")+COUNTIF(OktoberOppmøte[10],\"G\")","v":0},{"$f":"COUNTIF(OktoberOppmøte[11],\"U\")+COUNTIF(OktoberOppmøte[11],\"G\")","v":0},{"$f":"COUNTIF(OktoberOppmøte[12],\"U\")+COUNTIF(OktoberOppmøte[12],\"G\")","v":0},{"$f":"COUNTIF(OktoberOppmøte[13],\"U\")+COUNTIF(OktoberOppmøte[13],\"G\")","v":0},{"$f":"COUNTIF(OktoberOppmøte[14],\"U\")+COUNTIF(OktoberOppmøte[14],\"G\")","v":0},{"$f":"COUNTIF(OktoberOppmøte[15],\"U\")+COUNTIF(OktoberOppmøte[15],\"G\")","v":0},{"$f":"COUNTIF(OktoberOppmøte[16],\"U\")+COUNTIF(OktoberOppmøte[16],\"G\")","v":0},{"$f":"COUNTIF(OktoberOppmøte[17],\"U\")+COUNTIF(OktoberOppmøte[17],\"G\")","v":0},{"$f":"COUNTIF(OktoberOppmøte[18],\"U\")+COUNTIF(OktoberOppmøte[18],\"G\")","v":0},{"$f":"COUNTIF(OktoberOppmøte[19],\"U\")+COUNTIF(OktoberOppmøte[19],\"G\")","v":0},{"$f":"COUNTIF(OktoberOppmøte[20],\"U\")+COUNTIF(OktoberOppmøte[20],\"G\")","v":0},{"$f":"COUNTIF(OktoberOppmøte[21],\"U\")+COUNTIF(OktoberOppmøte[21],\"G\")","v":0},{"$f":"COUNTIF(OktoberOppmøte[22],\"U\")+COUNTIF(OktoberOppmøte[22],\"G\")","v":0},{"$f":"COUNTIF(OktoberOppmøte[23],\"U\")+COUNTIF(OktoberOppmøte[23],\"G\")","v":0},{"$f":"COUNTIF(OktoberOppmøte[24],\"U\")+COUNTIF(OktoberOppmøte[24],\"G\")","v":0},{"$f":"COUNTIF(OktoberOppmøte[25],\"U\")+COUNTIF(OktoberOppmøte[25],\"G\")","v":0},{"$f":"COUNTIF(OktoberOppmøte[26],\"U\")+COUNTIF(OktoberOppmøte[26],\"G\")","v":0},{"$f":"COUNTIF(OktoberOppmøte[27],\"U\")+COUNTIF(OktoberOppmøte[27],\"G\")","v":0},{"$f":"COUNTIF(OktoberOppmøte[28],\"U\")+COUNTIF(OktoberOppmøte[28],\"G\")","v":0},{"$f":"COUNTIF(OktoberOppmøte[29],\"U\")+COUNTIF(OktoberOppmøte[29],\"G\")","v":0},{"$f":"COUNTIF(OktoberOppmøte[30],\"U\")+COUNTIF(OktoberOppmøte[30],\"G\")","v":0},{"$f":"COUNTIF(OktoberOppmøte[31],\"U\")+COUNTIF(OktoberOppmøte[31],\"G\")","v":0},{"$f":"SUBTOTAL(109,OktoberOppmøte[S])","v":0},{"$f":"SUBTOTAL(109,OktoberOppmøte[G])","v":0},{"$f":"SUBTOTAL(109,OktoberOppmøte[U])","v":0},{"$f":"SUBTOTAL(109,OktoberOppmøte[T])","v":0},{"$f":"SUBTOTAL(109,OktoberOppmøte[Fraværsdager])","v":0}]

{"sheet":"November","index":5,"n_rows":12,"n_cols":39,"rows_kept":12,"merged":[[4,34,4,38]]}
["Oversikt over studentoppmøte",{"$nulls":36},"Skoleåret begynner:",{"$f":"Kalenderår","v":2012}]
[]
[null,null,{"$f":"Fargenøkkeltekst","v":"FARGENØKKEL "},{"$f":"Kode1","v":"S"},{"$f":"Kode1Tekst","v":"Sen"},null,null,{"$f":"Kode2","v":"G"},{"$f":"Kode2Tekst","v":"Gyldig"},null,null,{"$f":"Kode3","v":"U"},{"$f":"Kode3Tekst","v":"Ugyldig"},null,null,{"$f":"Kode4","v":"T"},{"$f":"Kode4Tekst","v":"Tilstede"},null,null,{"$f":"Kode5","v":"F"},{"$f":"Kode5Tekst","v":"Skolefri"}]
[]
[null,{"$f":"DATE(Kalenderår,11,1)","v":"2012-11-01"},null,{"$f":"TEXT(WEEKDAY(DATE(Kalenderår,11,1),1),\"[$-414]aaa\")","v":"to"},{"$f":"TEXT(WEEKDAY(DATE(Kalenderår,11,2),1),\"[$-414]aaa\")","v":"fr"},{"$f":"TEXT(WEEKDAY(DATE(Kalenderår,11,3),1),\"[$-414]aaa\")","v":"lø"},{"$f":"TEXT(WEEKDAY(DATE(Kalenderår,11,4),1),\"[$-414]aaa\")","v":"sø"},{"$f":"TEXT(WEEKDAY(DATE(Kalenderår,11,5),1),\"[$-414]aaa\")","v":"ma"},{"$f":"TEXT(WEEKDAY(DATE(Kalenderår,11,6),1),\"[$-414]aaa\")","v":"ti"},{"$f":"TEXT(WEEKDAY(DATE(Kalenderår,11,7),1),\"[$-414]aaa\")","v":"on"},{"$f":"TEXT(WEEKDAY(DATE(Kalenderår,11,8),1),\"[$-414]aaa\")","v":"to"},{"$f":"TEXT(WEEKDAY(DATE(Kalenderår,11,9),1),\"[$-414]aaa\")","v":"fr"},{"$f":"TEXT(WEEKDAY(DATE(Kalenderår,11,10),1),\"[$-414]aaa\")","v":"lø"},{"$f":"TEXT(WEEKDAY(DATE(Kalenderår,11,11),1),\"[$-414]aaa\")","v":"sø"},{"$f":"TEXT(WEEKDAY(DATE(Kalenderår,11,12),1),\"[$-414]aaa\")","v":"ma"},{"$f":"TEXT(WEEKDAY(DATE(Kalenderår,11,13),1),\"[$-414]aaa\")","v":"ti"},{"$f":"TEXT(WEEKDAY(DATE(Kalenderår,11,14),1),\"[$-414]aaa\")","v":"on"},{"$f":"TEXT(WEEKDAY(DATE(Kalenderår,11,15),1),\"[$-414]aaa\")","v":"to"},{"$f":"TEXT(WEEKDAY(DATE(Kalenderår,11,16),1),\"[$-414]aaa\")","v":"fr"},{"$f":"TEXT(WEEKDAY(DATE(Kalenderår,11,17),1),\"[$-414]aaa\")","v":"lø"},{"$f":"TEXT(WEEKDAY(DATE(Kalenderår,11,18),1),\"[$-414]aaa\")","v":"sø"},{"$f":"TEXT(WEEKDAY(DATE(Kalenderår,11,19),1),\"[$-414]aaa\")","v":"ma"},{"$f":"TEXT(WEEKDAY(DATE(Kalenderår,11,20),1),\"[$-414]aaa\")","v":"ti"},{"$f":"TEXT(WEEKDAY(DATE(Kalenderår,11,21),1),\"[$-414]aaa\")","v":"on"},{"$f":"TEXT(WEEKDAY(DATE(Kalenderår,11,22),1),\"[$-414]aaa\")","v":"to"},{"$f":"TEXT(WEEKDAY(DATE(Kalenderår,11,23),1),\"[$-414]aaa\")","v":"fr"},{"$f":"TEXT(WEEKDAY(DATE(Kalenderår,11,24),1),\"[$-414]aaa\")","v":"lø"},{"$f":"TEXT(WEEKDAY(DATE(Kalenderår,11,25),1),\"[$-414]aaa\")","v":"sø"},{"$f":"TEXT(WEEKDAY(DATE(Kalenderår,11,26),1),\"[$-414]aaa\")","v":"ma"},{"$f":"TEXT(WEEKDAY(DATE(Kalenderår,11,27),1),\"[$-414]aaa\")","v":"ti"},{"$f":"TEXT(WEEKDAY(DATE(Kalenderår,11,28),1),\"[$-414]aaa\")","v":"on"},{"$f":"TEXT(WEEKDAY(DATE(Kalenderår,11,29),1),\"[$-414]aaa\")","v":"to"},{"$f":"TEXT(WEEKDAY(DATE(Kalenderår,11,30),1),\"[$-414]aaa\")","v":"fr"},null,"Totaler"]
[null,"Student-ID","Studentnavn","1","2","3","4","5","6","7","8","9","10","11","12","13","14","15","16","17","18","19","20","21","22","23","24","25","26","27","28","29","30"," ","S","G","U","T","Fraværsdager"]
[null,null,{"$f":"IFERROR(VLOOKUP(NovemberOppmøte[[#This Row],[Student-ID]],Studentliste[],18,FALSE),\"\")","v":""},{"$nulls":31},{"$f":"COUNTIF(NovemberOppmøte[[#This Row],[1]:[ ]],Kode1)","v":0},{"$f":"COUNTIF(NovemberOppmøte[[#This Row],[1]:[ ]],Kode2)","v":0},{"$f":"COUNTIF(NovemberOppmøte[[#This Row],[1]:[ ]],Kode3)","v":0},{"$f":"COUNTIF(NovemberOppmøte[[#This Row],[1]:[ ]],Kode4)","v":0},{"$f":"SUM(NovemberOppmøte[[#This Row],[G]:[U]])","v":0}]
[null,null,{"$f":"IFERROR(VLOOKUP(NovemberOppmøte[[#This Row],[Student-ID]],Studentliste[],18,FALSE),\"\")","v":""},{"$nulls":31},{"$f":"COUNTIF(NovemberOppmøte[[#This Row],[1]:[ ]],Kode1)","v":0},{"$f":"COUNTIF(NovemberOppmøte[[#This Row],[1]:[ ]],Kode2)","v":0},{"$f":"COUNTIF(NovemberOppmøte[[#This Row],[1]:[ ]],Kode3)","v":0},{"$f":"COUNTIF(NovemberOppmøte[[#This Row],[1]:[ ]],Kode4)","v":0},{"$f":"SUM(NovemberOppmøte[[#This Row],[G]:[U]])","v":0}]
[null,null,{"$f":"IFERROR(VLOOKUP(NovemberOppmøte[[#This Row],[Student-ID]],Studentliste[],18,FALSE),\"\")","v":""},{"$nulls":31},{"$f":"COUNTIF(NovemberOppmøte[[#This Row],[1]:[ ]],Kode1)","v":0},{"$f":"COUNTIF(NovemberOppmøte[[#This Row],[1]:[ ]],Kode2)","v":0},{"$f":"COUNTIF(NovemberOppmøte[[#This Row],[1]:[ ]],Kode3)","v":0},{"$f":"COUNTIF(NovemberOppmøte[[#This Row],[1]:[ ]],Kode4)","v":0},{"$f":"SUM(NovemberOppmøte[[#This Row],[G]:[U]])","v":0}]
[null,null,{"$f":"IFERROR(VLOOKUP(NovemberOppmøte[[#This Row],[Student-ID]],Studentliste[],18,FALSE),\"\")","v":""},{"$nulls":31},{"$f":"COUNTIF(NovemberOppmøte[[#This Row],[1]:[ ]],Kode1)","v":0},{"$f":"COUNTIF(NovemberOppmøte[[#This Row],[1]:[ ]],Kode2)","v":0},{"$f":"COUNTIF(NovemberOppmøte[[#This Row],[1]:[ ]],Kode3)","v":0},{"$f":"COUNTIF(NovemberOppmøte[[#This Row],[1]:[ ]],Kode4)","v":0},{"$f":"SUM(NovemberOppmøte[[#This Row],[G]:[U]])","v":0}]
[null,null,{"$f":"IFERROR(VLOOKUP(NovemberOppmøte[[#This Row],[Student-ID]],Studentliste[],18,FALSE),\"\")","v":""},{"$nulls":31},{"$f":"COUNTIF(NovemberOppmøte[[#This Row],[1]:[ ]],Kode1)","v":0},{"$f":"COUNTIF(NovemberOppmøte[[#This Row],[1]:[ ]],Kode2)","v":0},{"$f":"COUNTIF(NovemberOppmøte[[#This Row],[1]:[ ]],Kode3)","v":0},{"$f":"COUNTIF(NovemberOppmøte[[#This Row],[1]:[ ]],Kode4)","v":0},{"$f":"SUM(NovemberOppmøte[[#This Row],[G]:[U]])","v":0}]
[null,null,"Totalt antall fraværsdager",{"$f":"COUNTIF(NovemberOppmøte[1],\"U\")+COUNTIF(NovemberOppmøte[1],\"G\")","v":0},{"$f":"COUNTIF(NovemberOppmøte[2],\"U\")+COUNTIF(NovemberOppmøte[2],\"G\")","v":0},{"$f":"COUNTIF(NovemberOppmøte[3],\"U\")+COUNTIF(NovemberOppmøte[3],\"G\")","v":0},{"$f":"COUNTIF(NovemberOppmøte[4],\"U\")+COUNTIF(NovemberOppmøte[4],\"G\")","v":0},{"$f":"COUNTIF(NovemberOppmøte[5],\"U\")+COUNTIF(NovemberOppmøte[5],\"G\")","v":0},{"$f":"COUNTIF(NovemberOppmøte[6],\"U\")+COUNTIF(NovemberOppmøte[6],\"G\")","v":0},{"$f":"COUNTIF(NovemberOppmøte[7],\"U\")+COUNTIF(NovemberOppmøte[7],\"G\")","v":0},{"$f":"COUNTIF(NovemberOppmøte[8],\"U\")+COUNTIF(NovemberOppmøte[8],\"G\")","v":0},{"$f":"COUNTIF(NovemberOppmøte[9],\"U\")+COUNTIF(NovemberOppmøte[9],\"G\")","v":0},{"$f":"COUNTIF(NovemberOppmøte[10],\"U\")+COUNTIF(NovemberOppmøte[10],\"G\")","v":0},{"$f":"COUNTIF(NovemberOppmøte[11],\"U\")+COUNTIF(NovemberOppmøte[11],\"G\")","v":0},{"$f":"COUNTIF(NovemberOppmøte[12],\"U\")+COUNTIF(NovemberOppmøte[12],\"G\")","v":0},{"$f":"COUNTIF(NovemberOppmøte[13],\"U\")+COUNTIF(NovemberOppmøte[13],\"G\")","v":0},{"$f":"COUNTIF(NovemberOppmøte[14],\"U\")+COUNTIF(NovemberOppmøte[14],\"G\")","v":0},{"$f":"COUNTIF(NovemberOppmøte[15],\"U\")+COUNTIF(NovemberOppmøte[15],\"G\")","v":0},{"$f":"COUNTIF(NovemberOppmøte[16],\"U\")+COUNTIF(NovemberOppmøte[16],\"G\")","v":0},{"$f":"COUNTIF(NovemberOppmøte[17],\"U\")+COUNTIF(NovemberOppmøte[17],\"G\")","v":0},{"$f":"COUNTIF(NovemberOppmøte[18],\"U\")+COUNTIF(NovemberOppmøte[18],\"G\")","v":0},{"$f":"COUNTIF(NovemberOppmøte[19],\"U\")+COUNTIF(NovemberOppmøte[19],\"G\")","v":0},{"$f":"COUNTIF(NovemberOppmøte[20],\"U\")+COUNTIF(NovemberOppmøte[20],\"G\")","v":0},{"$f":"COUNTIF(NovemberOppmøte[21],\"U\")+COUNTIF(NovemberOppmøte[21],\"G\")","v":0},{"$f":"COUNTIF(NovemberOppmøte[22],\"U\")+COUNTIF(NovemberOppmøte[22],\"G\")","v":0},{"$f":"COUNTIF(NovemberOppmøte[23],\"U\")+COUNTIF(NovemberOppmøte[23],\"G\")","v":0},{"$f":"COUNTIF(NovemberOppmøte[24],\"U\")+COUNTIF(NovemberOppmøte[24],\"G\")","v":0},{"$f":"COUNTIF(NovemberOppmøte[25],\"U\")+COUNTIF(NovemberOppmøte[25],\"G\")","v":0},{"$f":"COUNTIF(NovemberOppmøte[26],\"U\")+COUNTIF(NovemberOppmøte[26],\"G\")","v":0},{"$f":"COUNTIF(NovemberOppmøte[27],\"U\")+COUNTIF(NovemberOppmøte[27],\"G\")","v":0},{"$f":"COUNTIF(NovemberOppmøte[28],\"U\")+COUNTIF(NovemberOppmøte[28],\"G\")","v":0},{"$f":"COUNTIF(NovemberOppmøte[29],\"U\")+COUNTIF(NovemberOppmøte[29],\"G\")","v":0},{"$f":"COUNTIF(NovemberOppmøte[30],\"U\")+COUNTIF(NovemberOppmøte[30],\"G\")","v":0},{"$f":"COUNTIF(NovemberOppmøte[[ ]],\"U\")+COUNTIF(NovemberOppmøte[[ ]],\"G\")","v":0},{"$f":"SUBTOTAL(109,NovemberOppmøte[S])","v":0},{"$f":"SUBTOTAL(109,NovemberOppmøte[G])","v":0},{"$f":"SUBTOTAL(109,NovemberOppmøte[U])","v":0},{"$f":"SUBTOTAL(109,NovemberOppmøte[T])","v":0},{"$f":"SUBTOTAL(109,NovemberOppmøte[Fraværsdager])","v":0}]

{"sheet":"Desember","index":6,"n_rows":12,"n_cols":39,"rows_kept":12,"merged":[[4,34,4,38]]}
["Oversikt over studentoppmøte",{"$nulls":36},"Skoleåret begynner:",{"$f":"Kalenderår","v":2012}]
[]
[null,null,{"$f":"Fargenøkkeltekst","v":"FARGENØKKEL "},{"$f":"Kode1","v":"S"},{"$f":"Kode1Tekst","v":"Sen"},null,null,{"$f":"Kode2","v":"G"},{"$f":"Kode2Tekst","v":"Gyldig"},null,null,{"$f":"Kode3","v":"U"},{"$f":"Kode3Tekst","v":"Ugyldig"},null,null,{"$f":"Kode4","v":"T"},{"$f":"Kode4Tekst","v":"Tilstede"},null,null,{"$f":"Kode5","v":"F"},{"$f":"Kode5Tekst","v":"Skolefri"}]
[]
[null,{"$f":"DATE(Kalenderår,12,1)","v":"2012-12-01"},null,{"$f":"TEXT(WEEKDAY(DATE(Kalenderår,12,1),1),\"[$-414]aaa\")","v":"lø"},{"$f":"TEXT(WEEKDAY(DATE(Kalenderår,12,2),1),\"[$-414]aaa\")","v":"sø"},{"$f":"TEXT(WEEKDAY(DATE(Kalenderår,12,3),1),\"[$-414]aaa\")","v":"ma"},{"$f":"TEXT(WEEKDAY(DATE(Kalenderår,12,4),1),\"[$-414]aaa\")","v":"ti"},{"$f":"TEXT(WEEKDAY(DATE(Kalenderår,12,5),1),\"[$-414]aaa\")","v":"on"},{"$f":"TEXT(WEEKDAY(DATE(Kalenderår,12,6),1),\"[$-414]aaa\")","v":"to"},{"$f":"TEXT(WEEKDAY(DATE(Kalenderår,12,7),1),\"[$-414]aaa\")","v":"fr"},{"$f":"TEXT(WEEKDAY(DATE(Kalenderår,12,8),1),\"[$-414]aaa\")","v":"lø"},{"$f":"TEXT(WEEKDAY(DATE(Kalenderår,12,9),1),\"[$-414]aaa\")","v":"sø"},{"$f":"TEXT(WEEKDAY(DATE(Kalenderår,12,10),1),\"[$-414]aaa\")","v":"ma"},{"$f":"TEXT(WEEKDAY(DATE(Kalenderår,12,11),1),\"[$-414]aaa\")","v":"ti"},{"$f":"TEXT(WEEKDAY(DATE(Kalenderår,12,12),1),\"[$-414]aaa\")","v":"on"},{"$f":"TEXT(WEEKDAY(DATE(Kalenderår,12,13),1),\"[$-414]aaa\")","v":"to"},{"$f":"TEXT(WEEKDAY(DATE(Kalenderår,12,14),1),\"[$-414]aaa\")","v":"fr"},{"$f":"TEXT(WEEKDAY(DATE(Kalenderår,12,15),1),\"[$-414]aaa\")","v":"lø"},{"$f":"TEXT(WEEKDAY(DATE(Kalenderår,12,16),1),\"[$-414]aaa\")","v":"sø"},{"$f":"TEXT(WEEKDAY(DATE(Kalenderår,12,17),1),\"[$-414]aaa\")","v":"ma"},{"$f":"TEXT(WEEKDAY(DATE(Kalenderår,12,18),1),\"[$-414]aaa\")","v":"ti"},{"$f":"TEXT(WEEKDAY(DATE(Kalenderår,12,19),1),\"[$-414]aaa\")","v":"on"},{"$f":"TEXT(WEEKDAY(DATE(Kalenderår,12,20),1),\"[$-414]aaa\")","v":"to"},{"$f":"TEXT(WEEKDAY(DATE(Kalenderår,12,21),1),\"[$-414]aaa\")","v":"fr"},{"$f":"TEXT(WEEKDAY(DATE(Kalenderår,12,22),1),\"[$-414]aaa\")","v":"lø"},{"$f":"TEXT(WEEKDAY(DATE(Kalenderår,12,23),1),\"[$-414]aaa\")","v":"sø"},{"$f":"TEXT(WEEKDAY(DATE(Kalenderår,12,24),1),\"[$-414]aaa\")","v":"ma"},{"$f":"TEXT(WEEKDAY(DATE(Kalenderår,12,25),1),\"[$-414]aaa\")","v":"ti"},{"$f":"TEXT(WEEKDAY(DATE(Kalenderår,12,26),1),\"[$-414]aaa\")","v":"on"},{"$f":"TEXT(WEEKDAY(DATE(Kalenderår,12,27),1),\"[$-414]aaa\")","v":"to"},{"$f":"TEXT(WEEKDAY(DATE(Kalenderår,12,28),1),\"[$-414]aaa\")","v":"fr"},{"$f":"TEXT(WEEKDAY(DATE(Kalenderår,12,29),1),\"[$-414]aaa\")","v":"lø"},{"$f":"TEXT(WEEKDAY(DATE(Kalenderår,12,30),1),\"[$-414]aaa\")","v":"sø"},{"$f":"TEXT(WEEKDAY(DATE(Kalenderår,12,31),1),\"[$-414]aaa\")","v":"ma"},"Totaler"]
[null,"Student-ID","Studentnavn","1","2","3","4","5","6","7","8","9","10","11","12","13","14","15","16","17","18","19","20","21","22","23","24","25","26","27","28","29","30","31","S","G","U","T","Fraværsdager"]
[null,null,{"$f":"IFERROR(VLOOKUP(DesemberOppmøte[[#This Row],[Student-ID]],Studentliste[],18,FALSE),\"\")","v":""},{"$nulls":31},{"$f":"COUNTIF(DesemberOppmøte[[#This Row],[1]:[31]],Kode1)","v":0},{"$f":"COUNTIF(DesemberOppmøte[[#This Row],[1]:[31]],Kode2)","v":0},{"$f":"COUNTIF(DesemberOppmøte[[#This Row],[1]:[31]],Kode3)","v":0},{"$f":"COUNTIF(DesemberOppmøte[[#This Row],[1]:[31]],Kode4)","v":0},{"$f":"SUM(DesemberOppmøte[[#This Row],[G]:[U]])","v":0}]
[null,null,{"$f":"IFERROR(VLOOKUP(DesemberOppmøte[[#This Row],[Student-ID]],Studentliste[],18,FALSE),\"\")","v":""},{"$nulls":31},{"$f":"COUNTIF(DesemberOppmøte[[#This Row],[1]:[31]],Kode1)","v":0},{"$f":"COUNTIF(DesemberOppmøte[[#This Row],[1]:[31]],Kode2)","v":0},{"$f":"COUNTIF(DesemberOppmøte[[#This Row],[1]:[31]],Kode3)","v":0},{"$f":"COUNTIF(DesemberOppmøte[[#This Row],[1]:[31]],Kode4)","v":0},{"$f":"SUM(DesemberOppmøte[[#This Row],[G]:[U]])","v":0}]
[null,null,{"$f":"IFERROR(VLOOKUP(DesemberOppmøte[[#This Row],[Student-ID]],Studentliste[],18,FALSE),\"\")","v":""},{"$nulls":31},{"$f":"COUNTIF(DesemberOppmøte[[#This Row],[1]:[31]],Kode1)","v":0},{"$f":"COUNTIF(DesemberOppmøte[[#This Row],[1]:[31]],Kode2)","v":0},{"$f":"COUNTIF(DesemberOppmøte[[#This Row],[1]:[31]],Kode3)","v":0},{"$f":"COUNTIF(DesemberOppmøte[[#This Row],[1]:[31]],Kode4)","v":0},{"$f":"SUM(DesemberOppmøte[[#This Row],[G]:[U]])","v":0}]
[null,null,{"$f":"IFERROR(VLOOKUP(DesemberOppmøte[[#This Row],[Student-ID]],Studentliste[],18,FALSE),\"\")","v":""},{"$nulls":31},{"$f":"COUNTIF(DesemberOppmøte[[#This Row],[1]:[31]],Kode1)","v":0},{"$f":"COUNTIF(DesemberOppmøte[[#This Row],[1]:[31]],Kode2)","v":0},{"$f":"COUNTIF(DesemberOppmøte[[#This Row],[1]:[31]],Kode3)","v":0},{"$f":"COUNTIF(DesemberOppmøte[[#This Row],[1]:[31]],Kode4)","v":0},{"$f":"SUM(DesemberOppmøte[[#This Row],[G]:[U]])","v":0}]
[null,null,{"$f":"IFERROR(VLOOKUP(DesemberOppmøte[[#This Row],[Student-ID]],Studentliste[],18,FALSE),\"\")","v":""},{"$nulls":31},{"$f":"COUNTIF(DesemberOppmøte[[#This Row],[1]:[31]],Kode1)","v":0},{"$f":"COUNTIF(DesemberOppmøte[[#This Row],[1]:[31]],Kode2)","v":0},{"$f":"COUNTIF(DesemberOppmøte[[#This Row],[1]:[31]],Kode3)","v":0},{"$f":"COUNTIF(DesemberOppmøte[[#This Row],[1]:[31]],Kode4)","v":0},{"$f":"SUM(DesemberOppmøte[[#This Row],[G]:[U]])","v":0}]
[null,null,"Totalt antall fraværsdager",{"$f":"COUNTIF(DesemberOppmøte[1],\"U\")+COUNTIF(DesemberOppmøte[1],\"G\")","v":0},{"$f":"COUNTIF(DesemberOppmøte[2],\"U\")+COUNTIF(DesemberOppmøte[2],\"G\")","v":0},{"$f":"COUNTIF(DesemberOppmøte[3],\"U\")+COUNTIF(DesemberOppmøte[3],\"G\")","v":0},{"$f":"COUNTIF(DesemberOppmøte[4],\"U\")+COUNTIF(DesemberOppmøte[4],\"G\")","v":0},{"$f":"COUNTIF(DesemberOppmøte[5],\"U\")+COUNTIF(DesemberOppmøte[5],\"G\")","v":0},{"$f":"COUNTIF(DesemberOppmøte[6],\"U\")+COUNTIF(DesemberOppmøte[6],\"G\")","v":0},{"$f":"COUNTIF(DesemberOppmøte[7],\"U\")+COUNTIF(DesemberOppmøte[7],\"G\")","v":0},{"$f":"COUNTIF(DesemberOppmøte[8],\"U\")+COUNTIF(DesemberOppmøte[8],\"G\")","v":0},{"$f":"COUNTIF(DesemberOppmøte[9],\"U\")+COUNTIF(DesemberOppmøte[9],\"G\")","v":0},{"$f":"COUNTIF(DesemberOppmøte[10],\"U\")+COUNTIF(DesemberOppmøte[10],\"G\")","v":0},{"$f":"COUNTIF(DesemberOppmøte[11],\"U\")+COUNTIF(DesemberOppmøte[11],\"G\")","v":0},{"$f":"COUNTIF(DesemberOppmøte[12],\"U\")+COUNTIF(DesemberOppmøte[12],\"G\")","v":0},{"$f":"COUNTIF(DesemberOppmøte[13],\"U\")+COUNTIF(DesemberOppmøte[13],\"G\")","v":0},{"$f":"COUNTIF(DesemberOppmøte[14],\"U\")+COUNTIF(DesemberOppmøte[14],\"G\")","v":0},{"$f":"COUNTIF(DesemberOppmøte[15],\"U\")+COUNTIF(DesemberOppmøte[15],\"G\")","v":0},{"$f":"COUNTIF(DesemberOppmøte[16],\"U\")+COUNTIF(DesemberOppmøte[16],\"G\")","v":0},{"$f":"COUNTIF(DesemberOppmøte[17],\"U\")+COUNTIF(DesemberOppmøte[17],\"G\")","v":0},{"$f":"COUNTIF(DesemberOppmøte[18],\"U\")+COUNTIF(DesemberOppmøte[18],\"G\")","v":0},{"$f":"COUNTIF(DesemberOppmøte[19],\"U\")+COUNTIF(DesemberOppmøte[19],\"G\")","v":0},{"$f":"COUNTIF(DesemberOppmøte[20],\"U\")+COUNTIF(DesemberOppmøte[20],\"G\")","v":0},{"$f":"COUNTIF(DesemberOppmøte[21],\"U\")+COUNTIF(DesemberOppmøte[21],\"G\")","v":0},{"$f":"COUNTIF(DesemberOppmøte[22],\"U\")+COUNTIF(DesemberOppmøte[22],\"G\")","v":0},{"$f":"COUNTIF(DesemberOppmøte[23],\"U\")+COUNTIF(DesemberOppmøte[23],\"G\")","v":0},{"$f":"COUNTIF(DesemberOppmøte[24],\"U\")+COUNTIF(DesemberOppmøte[24],\"G\")","v":0},{"$f":"COUNTIF(DesemberOppmøte[25],\"U\")+COUNTIF(DesemberOppmøte[25],\"G\")","v":0},{"$f":"COUNTIF(DesemberOppmøte[26],\"U\")+COUNTIF(DesemberOppmøte[26],\"G\")","v":0},{"$f":"COUNTIF(DesemberOppmøte[27],\"U\")+COUNTIF(DesemberOppmøte[27],\"G\")","v":0},{"$f":"COUNTIF(DesemberOppmøte[28],\"U\")+COUNTIF(DesemberOppmøte[28],\"G\")","v":0},{"$f":"COUNTIF(DesemberOppmøte[29],\"U\")+COUNTIF(DesemberOppmøte[29],\"G\")","v":0},{"$f":"COUNTIF(DesemberOppmøte[30],\"U\")+COUNTIF(DesemberOppmøte[30],\"G\")","v":0},{"$f":"COUNTIF(DesemberOppmøte[31],\"U\")+COUNTIF(DesemberOppmøte[31],\"G\")","v":0},{"$f":"SUBTOTAL(109,DesemberOppmøte[S])","v":0},{"$f":"SUBTOTAL(109,DesemberOppmøte[G])","v":0},{"$f":"SUBTOTAL(109,DesemberOppmøte[U])","v":0},{"$f":"SUBTOTAL(109,DesemberOppmøte[T])","v":0},{"$f":"SUBTOTAL(109,DesemberOppmøte[Fraværsdager])","v":0}]

{"sheet":"Januar","index":7,"n_rows":12,"n_cols":39,"rows_kept":12,"merged":[[4,34,4,38]]}
["Oversikt over studentoppmøte",{"$nulls":36},"Skoleåret begynner:",{"$f":"Kalenderår","v":2012}]
[]
[null,null,{"$f":"Fargenøkkeltekst","v":"FARGENØKKEL "},{"$f":"Kode1","v":"S"},{"$f":"Kode1Tekst","v":"Sen"},null,null,{"$f":"Kode2","v":"G"},{"$f":"Kode2Tekst","v":"Gyldig"},null,null,{"$f":"Kode3","v":"U"},{"$f":"Kode3Tekst","v":"Ugyldig"},null,null,{"$f":"Kode4","v":"T"},{"$f":"Kode4Tekst","v":"Tilstede"},null,null,{"$f":"Kode5","v":"F"},{"$f":"Kode5Tekst","v":"Skolefri"}]
[]
[null,{"$f":"DATE(Kalenderår+1,1,1)","v":"2013-01-01"},null,{"$f":"TEXT(WEEKDAY(DATE(Kalenderår+1,1,1),1),\"[$-414]aaa\")","v":"ti"},{"$f":"TEXT(WEEKDAY(DATE(Kalenderår+1,1,2),1),\"[$-414]aaa\")","v":"on"},{"$f":"TEXT(WEEKDAY(DATE(Kalenderår+1,1,3),1),\"[$-414]aaa\")","v":"to"},{"$f":"TEXT(WEEKDAY(DATE(Kalenderår+1,1,4),1),\"[$-414]aaa\")","v":"fr"},{"$f":"TEXT(WEEKDAY(DATE(Kalenderår+1,1,5),1),\"[$-414]aaa\")","v":"lø"},{"$f":"TEXT(WEEKDAY(DATE(Kalenderår+1,1,6),1),\"[$-414]aaa\")","v":"sø"},{"$f":"TEXT(WEEKDAY(DATE(Kalenderår+1,1,7),1),\"[$-414]aaa\")","v":"ma"},{"$f":"TEXT(WEEKDAY(DATE(Kalenderår+1,1,8),1),\"[$-414]aaa\")","v":"ti"},{"$f":"TEXT(WEEKDAY(DATE(Kalenderår+1,1,9),1),\"[$-414]aaa\")","v":"on"},{"$f":"TEXT(WEEKDAY(DATE(Kalenderår+1,1,10),1),\"[$-414]aaa\")","v":"to"},{"$f":"TEXT(WEEKDAY(DATE(Kalenderår+1,1,11),1),\"[$-414]aaa\")","v":"fr"},{"$f":"TEXT(WEEKDAY(DATE(Kalenderår+1,1,12),1),\"[$-414]aaa\")","v":"lø"},{"$f":"TEXT(WEEKDAY(DATE(Kalenderår+1,1,13),1),\"[$-414]aaa\")","v":"sø"},{"$f":"TEXT(WEEKDAY(DATE(Kalenderår+1,1,14),1),\"[$-414]aaa\")","v":"ma"},{"$f":"TEXT(WEEKDAY(DATE(Kalenderår+1,1,15),1),\"[$-414]aaa\")","v":"ti"},{"$f":"TEXT(WEEKDAY(DATE(Kalenderår+1,1,16),1),\"[$-414]aaa\")","v":"on"},{"$f":"TEXT(WEEKDAY(DATE(Kalenderår+1,1,17),1),\"[$-414]aaa\")","v":"to"},{"$f":"TEXT(WEEKDAY(DATE(Kalenderår+1,1,18),1),\"[$-414]aaa\")","v":"fr"},{"$f":"TEXT(WEEKDAY(DATE(Kalenderår+1,1,19),1),\"[$-414]aaa\")","v":"lø"},{"$f":"TEXT(WEEKDAY(DATE(Kalenderår+1,1,20),1),\"[$-414]aaa\")","v":"sø"},{"$f":"TEXT(WEEKDAY(DATE(Kalenderår+1,1,21),1),\"[$-414]aaa\")","v":"ma"},{"$f":"TEXT(WEEKDAY(DATE(Kalenderår+1,1,22),1),\"[$-414]aaa\")","v":"ti"},{"$f":"TEXT(WEEKDAY(DATE(Kalenderår+1,1,23),1),\"[$-414]aaa\")","v":"on"},{"$f":"TEXT(WEEKDAY(DATE(Kalenderår+1,1,24),1),\"[$-414]aaa\")","v":"to"},{"$f":"TEXT(WEEKDAY(DATE(Kalenderår+1,1,25),1),\"[$-414]aaa\")","v":"fr"},{"$f":"TEXT(WEEKDAY(DATE(Kalenderår+1,1,26),1),\"[$-414]aaa\")","v":"lø"},{"$f":"TEXT(WEEKDAY(DATE(Kalenderår+1,1,27),1),\"[$-414]aaa\")","v":"sø"},{"$f":"TEXT(WEEKDAY(DATE(Kalenderår+1,1,28),1),\"[$-414]aaa\")","v":"ma"},{"$f":"TEXT(WEEKDAY(DATE(Kalenderår+1,1,29),1),\"[$-414]aaa\")","v":"ti"},{"$f":"TEXT(WEEKDAY(DATE(Kalenderår+1,1,30),1),\"[$-414]aaa\")","v":"on"},{"$f":"TEXT(WEEKDAY(DATE(Kalenderår+1,1,31),1),\"[$-414]aaa\")","v":"to"},"Totaler"]
[null,"Student-ID","Studentnavn","1","2","3","4","5","6","7","8","9","10","11","12","13","14","15","16","17","18","19","20","21","22","23","24","25","26","27","28","29","30","31","S","G","U","T","Fraværsdager"]
[null,null,{"$f":"IFERROR(VLOOKUP(JanuarOppmøte[[#This Row],[Student-ID]],Studentliste[],18,FALSE),\"\")","v":""},{"$nulls":31},{"$f":"COUNTIF(JanuarOppmøte[[#This Row],[1]:[31]],Kode1)","v":0},{"$f":"COUNTIF(JanuarOppmøte[[#This Row],[1]:[31]],Kode2)","v":0},{"$f":"COUNTIF(JanuarOppmøte[[#This Row],[1]:[31]],Kode3)","v":0},{"$f":"COUNTIF(JanuarOppmøte[[#This Row],[1]:[31]],Kode4)","v":0},{"$f":"SUM(JanuarOppmøte[[#This Row],[G]:[U]])","v":0}]
[null,null,{"$f":"IFERROR(VLOOKUP(JanuarOppmøte[[#This Row],[Student-ID]],Studentliste[],18,FALSE),\"\")","v":""},{"$nulls":31},{"$f":"COUNTIF(JanuarOppmøte[[#This Row],[1]:[31]],Kode1)","v":0},{"$f":"COUNTIF(JanuarOppmøte[[#This Row],[1]:[31]],Kode2)","v":0},{"$f":"COUNTIF(JanuarOppmøte[[#This Row],[1]:[31]],Kode3)","v":0},{"$f":"COUNTIF(JanuarOppmøte[[#This Row],[1]:[31]],Kode4)","v":0},{"$f":"SUM(JanuarOppmøte[[#This Row],[G]:[U]])","v":0}]
[null,null,{"$f":"IFERROR(VLOOKUP(JanuarOppmøte[[#This Row],[Student-ID]],Studentliste[],18,FALSE),\"\")","v":""},{"$nulls":31},{"$f":"COUNTIF(JanuarOppmøte[[#This Row],[1]:[31]],Kode1)","v":0},{"$f":"COUNTIF(JanuarOppmøte[[#This Row],[1]:[31]],Kode2)","v":0},{"$f":"COUNTIF(JanuarOppmøte[[#This Row],[1]:[31]],Kode3)","v":0},{"$f":"COUNTIF(JanuarOppmøte[[#This Row],[1]:[31]],Kode4)","v":0},{"$f":"SUM(JanuarOppmøte[[#This Row],[G]:[U]])","v":0}]
[null,null,{"$f":"IFERROR(VLOOKUP(JanuarOppmøte[[#This Row],[Student-ID]],Studentliste[],18,FALSE),\"\")","v":""},{"$nulls":31},{"$f":"COUNTIF(JanuarOppmøte[[#This Row],[1]:[31]],Kode1)","v":0},{"$f":"COUNTIF(JanuarOppmøte[[#This Row],[1]:[31]],Kode2)","v":0},{"$f":"COUNTIF(JanuarOppmøte[[#This Row],[1]:[31]],Kode3)","v":0},{"$f":"COUNTIF(JanuarOppmøte[[#This Row],[1]:[31]],Kode4)","v":0},{"$f":"SUM(JanuarOppmøte[[#This Row],[G]:[U]])","v":0}]
[null,null,{"$f":"IFERROR(VLOOKUP(JanuarOppmøte[[#This Row],[Student-ID]],Studentliste[],18,FALSE),\"\")","v":""},{"$nulls":31},{"$f":"COUNTIF(JanuarOppmøte[[#This Row],[1]:[31]],Kode1)","v":0},{"$f":"COUNTIF(JanuarOppmøte[[#This Row],[1]:[31]],Kode2)","v":0},{"$f":"COUNTIF(JanuarOppmøte[[#This Row],[1]:[31]],Kode3)","v":0},{"$f":"COUNTIF(JanuarOppmøte[[#This Row],[1]:[31]],Kode4)","v":0},{"$f":"SUM(JanuarOppmøte[[#This Row],[G]:[U]])","v":0}]
[null,null,"Totalt antall fraværsdager",{"$f":"COUNTIF(JanuarOppmøte[1],\"U\")+COUNTIF(JanuarOppmøte[1],\"G\")","v":0},{"$f":"COUNTIF(JanuarOppmøte[2],\"U\")+COUNTIF(JanuarOppmøte[2],\"G\")","v":0},{"$f":"COUNTIF(JanuarOppmøte[3],\"U\")+COUNTIF(JanuarOppmøte[3],\"G\")","v":0},{"$f":"COUNTIF(JanuarOppmøte[4],\"U\")+COUNTIF(JanuarOppmøte[4],\"G\")","v":0},{"$f":"COUNTIF(JanuarOppmøte[5],\"U\")+COUNTIF(JanuarOppmøte[5],\"G\")","v":0},{"$f":"COUNTIF(JanuarOppmøte[6],\"U\")+COUNTIF(JanuarOppmøte[6],\"G\")","v":0},{"$f":"COUNTIF(JanuarOppmøte[7],\"U\")+COUNTIF(JanuarOppmøte[7],\"G\")","v":0},{"$f":"COUNTIF(JanuarOppmøte[8],\"U\")+COUNTIF(JanuarOppmøte[8],\"G\")","v":0},{"$f":"COUNTIF(JanuarOppmøte[9],\"U\")+COUNTIF(JanuarOppmøte[9],\"G\")","v":0},{"$f":"COUNTIF(JanuarOppmøte[10],\"U\")+COUNTIF(JanuarOppmøte[10],\"G\")","v":0},{"$f":"COUNTIF(JanuarOppmøte[11],\"U\")+COUNTIF(JanuarOppmøte[11],\"G\")","v":0},{"$f":"COUNTIF(JanuarOppmøte[12],\"U\")+COUNTIF(JanuarOppmøte[12],\"G\")","v":0},{"$f":"COUNTIF(JanuarOppmøte[13],\"U\")+COUNTIF(JanuarOppmøte[13],\"G\")","v":0},{"$f":"COUNTIF(JanuarOppmøte[14],\"U\")+COUNTIF(JanuarOppmøte[14],\"G\")","v":0},{"$f":"COUNTIF(JanuarOppmøte[15],\"U\")+COUNTIF(JanuarOppmøte[15],\"G\")","v":0},{"$f":"COUNTIF(JanuarOppmøte[16],\"U\")+COUNTIF(JanuarOppmøte[16],\"G\")","v":0},{"$f":"COUNTIF(JanuarOppmøte[17],\"U\")+COUNTIF(JanuarOppmøte[17],\"G\")","v":0},{"$f":"COUNTIF(JanuarOppmøte[18],\"U\")+COUNTIF(JanuarOppmøte[18],\"G\")","v":0},{"$f":"COUNTIF(JanuarOppmøte[19],\"U\")+COUNTIF(JanuarOppmøte[19],\"G\")","v":0},{"$f":"COUNTIF(JanuarOppmøte[20],\"U\")+COUNTIF(JanuarOppmøte[20],\"G\")","v":0},{"$f":"COUNTIF(JanuarOppmøte[21],\"U\")+COUNTIF(JanuarOppmøte[21],\"G\")","v":0},{"$f":"COUNTIF(JanuarOppmøte[22],\"U\")+COUNTIF(JanuarOppmøte[22],\"G\")","v":0},{"$f":"COUNTIF(JanuarOppmøte[23],\"U\")+COUNTIF(JanuarOppmøte[23],\"G\")","v":0},{"$f":"COUNTIF(JanuarOppmøte[24],\"U\")+COUNTIF(JanuarOppmøte[24],\"G\")","v":0},{"$f":"COUNTIF(JanuarOppmøte[25],\"U\")+COUNTIF(JanuarOppmøte[25],\"G\")","v":0},{"$f":"COUNTIF(JanuarOppmøte[26],\"U\")+COUNTIF(JanuarOppmøte[26],\"G\")","v":0},{"$f":"COUNTIF(JanuarOppmøte[27],\"U\")+COUNTIF(JanuarOppmøte[27],\"G\")","v":0},{"$f":"COUNTIF(JanuarOppmøte[28],\"U\")+COUNTIF(JanuarOppmøte[28],\"G\")","v":0},{"$f":"COUNTIF(JanuarOppmøte[29],\"U\")+COUNTIF(JanuarOppmøte[29],\"G\")","v":0},{"$f":"COUNTIF(JanuarOppmøte[30],\"U\")+COUNTIF(JanuarOppmøte[30],\"G\")","v":0},{"$f":"COUNTIF(JanuarOppmøte[31],\"U\")+COUNTIF(JanuarOppmøte[31],\"G\")","v":0},{"$f":"SUBTOTAL(109,JanuarOppmøte[S])","v":0},{"$f":"SUBTOTAL(109,JanuarOppmøte[G])","v":0},{"$f":"SUBTOTAL(109,JanuarOppmøte[U])","v":0},{"$f":"SUBTOTAL(109,JanuarOppmøte[T])","v":0},{"$f":"SUBTOTAL(109,JanuarOppmøte[Fraværsdager])","v":0}]

{"sheet":"Februar","index":8,"n_rows":12,"n_cols":39,"rows_kept":12,"merged":[[4,34,4,38]]}
["Oversikt over studentoppmøte",{"$nulls":36},"Skoleåret begynner:",{"$f":"Kalenderår","v":2012}]
[]
[null,null,{"$f":"Fargenøkkeltekst","v":"FARGENØKKEL "},{"$f":"Kode1","v":"S"},{"$f":"Kode1Tekst","v":"Sen"},null,null,{"$f":"Kode2","v":"G"},{"$f":"Kode2Tekst","v":"Gyldig"},null,null,{"$f":"Kode3","v":"U"},{"$f":"Kode3Tekst","v":"Ugyldig"},null,null,{"$f":"Kode4","v":"T"},{"$f":"Kode4Tekst","v":"Tilstede"},null,null,{"$f":"Kode5","v":"F"},{"$f":"Kode5Tekst","v":"Skolefri"}]
[]
[null,{"$f":"DATE(Kalenderår+1,2,1)","v":"2013-02-01"},null,{"$f":"TEXT(WEEKDAY(DATE(Kalenderår+1,2,1),1),\"[$-414]aaa\")","v":"fr"},{"$f":"TEXT(WEEKDAY(DATE(Kalenderår+1,2,2),1),\"[$-414]aaa\")","v":"lø"},{"$f":"TEXT(WEEKDAY(DATE(Kalenderår+1,2,3),1),\"[$-414]aaa\")","v":"sø"},{"$f":"TEXT(WEEKDAY(DATE(Kalenderår+1,2,4),1),\"[$-414]aaa\")","v":"ma"},{"$f":"TEXT(WEEKDAY(DATE(Kalenderår+1,2,5),1),\"[$-414]aaa\")","v":"ti"},{"$f":"TEXT(WEEKDAY(DATE(Kalenderår+1,2,6),1),\"[$-414]aaa\")","v":"on"},{"$f":"TEXT(WEEKDAY(DATE(Kalenderår+1,2,7),1),\"[$-414]aaa\")","v":"to"},{"$f":"TEXT(WEEKDAY(DATE(Kalenderår+1,2,8),1),\"[$-414]aaa\")","v":"fr"},{"$f":"TEXT(WEEKDAY(DATE(Kalenderår+1,2,9),1),\"[$-414]aaa\")","v":"lø"},{"$f":"TEXT(WEEKDAY(DATE(Kalenderår+1,2,10),1),\"[$-414]aaa\")","v":"sø"},{"$f":"TEXT(WEEKDAY(DATE(Kalenderår+1,2,11),1),\"[$-414]aaa\")","v":"ma"},{"$f":"TEXT(WEEKDAY(DATE(Kalenderår+1,2,12),1),\"[$-414]aaa\")","v":"ti"},{"$f":"TEXT(WEEKDAY(DATE(Kalenderår+1,2,13),1),\"[$-414]aaa\")","v":"on"},{"$f":"TEXT(WEEKDAY(DATE(Kalenderår+1,2,14),1),\"[$-414]aaa\")","v":"to"},{"$f":"TEXT(WEEKDAY(DATE(Kalenderår+1,2,15),1),\"[$-414]aaa\")","v":"fr"},{"$f":"TEXT(WEEKDAY(DATE(Kalenderår+1,2,16),1),\"[$-414]aaa\")","v":"lø"},{"$f":"TEXT(WEEKDAY(DATE(Kalenderår+1,2,17),1),\"[$-414]aaa\")","v":"sø"},{"$f":"TEXT(WEEKDAY(DATE(Kalenderår+1,2,18),1),\"[$-414]aaa\")","v":"ma"},{"$f":"TEXT(WEEKDAY(DATE(Kalenderår+1,2,19),1),\"[$-414]aaa\")","v":"ti"},{"$f":"TEXT(WEEKDAY(DATE(Kalenderår+1,2,20),1),\"[$-414]aaa\")","v":"on"},{"$f":"TEXT(WEEKDAY(DATE(Kalenderår+1,2,21),1),\"[$-414]aaa\")","v":"to"},{"$f":"TEXT(WEEKDAY(DATE(Kalenderår+1,2,22),1),\"[$-414]aaa\")","v":"fr"},{"$f":"TEXT(WEEKDAY(DATE(Kalenderår+1,2,23),1),\"[$-414]aaa\")","v":"lø"},{"$f":"TEXT(WEEKDAY(DATE(Kalenderår+1,2,24),1),\"[$-414]aaa\")","v":"sø"},{"$f":"TEXT(WEEKDAY(DATE(Kalenderår+1,2,25),1),\"[$-414]aaa\")","v":"ma"},{"$f":"TEXT(WEEKDAY(DATE(Kalenderår+1,2,26),1),\"[$-414]aaa\")","v":"ti"},{"$f":"TEXT(WEEKDAY(DATE(Kalenderår+1,2,27),1),\"[$-414]aaa\")","v":"on"},{"$f":"TEXT(WEEKDAY(DATE(Kalenderår+1,2,28),1),\"[$-414]aaa\")","v":"to"},{"$f":"TEXT(WEEKDAY(DATE(Kalenderår+1,2,29),1),\"[$-414]aaa\")","v":"fr"},null,null,"Totaler"]
[null,"Student-ID","Studentnavn","1","2","3","4","5","6","7","8","9","10","11","12","13","14","15","16","17","18","19","20","21","22","23","24","25","26","27","28","29","30","31","S","G","U","T","Fraværsdager"]
[null,null,{"$f":"IFERROR(VLOOKUP(FebruarOppmøte[[#This Row],[Student-ID]],Studentliste[],18,FALSE),\"\")","v":""},{"$nulls":31},{"$f":"COUNTIF(FebruarOppmøte[[#This Row],[1]:[31]],Kode1)","v":0},{"$f":"COUNTIF(FebruarOppmøte[[#This Row],[1]:[31]],Kode2)","v":0},{"$f":"COUNTIF(FebruarOppmøte[[#This Row],[1]:[31]],Kode3)","v":0},{"$f":"COUNTIF(FebruarOppmøte[[#This Row],[1]:[31]],Kode4)","v":0},{"$f":"SUM(FebruarOppmøte[[#This Row],[G]:[U]])","v":0}]
[null,null,{"$f":"IFERROR(VLOOKUP(FebruarOppmøte[[#This Row],[Student-ID]],Studentliste[],18,FALSE),\"\")","v":""},{"$nulls":31},{"$f":"COUNTIF(FebruarOppmøte[[#This Row],[1]:[31]],Kode1)","v":0},{"$f":"COUNTIF(FebruarOppmøte[[#This Row],[1]:[31]],Kode2)","v":0},{"$f":"COUNTIF(FebruarOppmøte[[#This Row],[1]:[31]],Kode3)","v":0},{"$f":"COUNTIF(FebruarOppmøte[[#This Row],[1]:[31]],Kode4)","v":0},{"$f":"SUM(FebruarOppmøte[[#This Row],[G]:[U]])","v":0}]
[null,null,{"$f":"IFERROR(VLOOKUP(FebruarOppmøte[[#This Row],[Student-ID]],Studentliste[],18,FALSE),\"\")","v":""},{"$nulls":31},{"$f":"COUNTIF(FebruarOppmøte[[#This Row],[1]:[31]],Kode1)","v":0},{"$f":"COUNTIF(FebruarOppmøte[[#This Row],[1]:[31]],Kode2)","v":0},{"$f":"COUNTIF(FebruarOppmøte[[#This Row],[1]:[31]],Kode3)","v":0},{"$f":"COUNTIF(FebruarOppmøte[[#This Row],[1]:[31]],Kode4)","v":0},{"$f":"SUM(FebruarOppmøte[[#This Row],[G]:[U]])","v":0}]
[null,null,{"$f":"IFERROR(VLOOKUP(FebruarOppmøte[[#This Row],[Student-ID]],Studentliste[],18,FALSE),\"\")","v":""},{"$nulls":31},{"$f":"COUNTIF(FebruarOppmøte[[#This Row],[1]:[31]],Kode1)","v":0},{"$f":"COUNTIF(FebruarOppmøte[[#This Row],[1]:[31]],Kode2)","v":0},{"$f":"COUNTIF(FebruarOppmøte[[#This Row],[1]:[31]],Kode3)","v":0},{"$f":"COUNTIF(FebruarOppmøte[[#This Row],[1]:[31]],Kode4)","v":0},{"$f":"SUM(FebruarOppmøte[[#This Row],[G]:[U]])","v":0}]
[null,null,{"$f":"IFERROR(VLOOKUP(FebruarOppmøte[[#This Row],[Student-ID]],Studentliste[],18,FALSE),\"\")","v":""},{"$nulls":31},{"$f":"COUNTIF(FebruarOppmøte[[#This Row],[1]:[31]],Kode1)","v":0},{"$f":"COUNTIF(FebruarOppmøte[[#This Row],[1]:[31]],Kode2)","v":0},{"$f":"COUNTIF(FebruarOppmøte[[#This Row],[1]:[31]],Kode3)","v":0},{"$f":"COUNTIF(FebruarOppmøte[[#This Row],[1]:[31]],Kode4)","v":0},{"$f":"SUM(FebruarOppmøte[[#This Row],[G]:[U]])","v":0}]
[null,null,"Totalt antall fraværsdager",{"$f":"COUNTIF(FebruarOppmøte[1],\"U\")+COUNTIF(FebruarOppmøte[1],\"G\")","v":0},{"$f":"COUNTIF(FebruarOppmøte[2],\"U\")+COUNTIF(FebruarOppmøte[2],\"G\")","v":0},{"$f":"COUNTIF(FebruarOppmøte[3],\"U\")+COUNTIF(FebruarOppmøte[3],\"G\")","v":0},{"$f":"COUNTIF(FebruarOppmøte[4],\"U\")+COUNTIF(FebruarOppmøte[4],\"G\")","v":0},{"$f":"COUNTIF(FebruarOppmøte[5],\"U\")+COUNTIF(FebruarOppmøte[5],\"G\")","v":0},{"$f":"COUNTIF(FebruarOppmøte[6],\"U\")+COUNTIF(FebruarOppmøte[6],\"G\")","v":0},{"$f":"COUNTIF(FebruarOppmøte[7],\"U\")+COUNTIF(FebruarOppmøte[7],\"G\")","v":0},{"$f":"COUNTIF(FebruarOppmøte[8],\"U\")+COUNTIF(FebruarOppmøte[8],\"G\")","v":0},{"$f":"COUNTIF(FebruarOppmøte[9],\"U\")+COUNTIF(FebruarOppmøte[9],\"G\")","v":0},{"$f":"COUNTIF(FebruarOppmøte[10],\"U\")+COUNTIF(FebruarOppmøte[10],\"G\")","v":0},{"$f":"COUNTIF(FebruarOppmøte[11],\"U\")+COUNTIF(FebruarOppmøte[11],\"G\")","v":0},{"$f":"COUNTIF(FebruarOppmøte[12],\"U\")+COUNTIF(FebruarOppmøte[12],\"G\")","v":0},{"$f":"COUNTIF(FebruarOppmøte[13],\"U\")+COUNTIF(FebruarOppmøte[13],\"G\")","v":0},{"$f":"COUNTIF(FebruarOppmøte[14],\"U\")+COUNTIF(FebruarOppmøte[14],\"G\")","v":0},{"$f":"COUNTIF(FebruarOppmøte[15],\"U\")+COUNTIF(FebruarOppmøte[15],\"G\")","v":0},{"$f":"COUNTIF(FebruarOppmøte[16],\"U\")+COUNTIF(FebruarOppmøte[16],\"G\")","v":0},{"$f":"COUNTIF(FebruarOppmøte[17],\"U\")+COUNTIF(FebruarOppmøte[17],\"G\")","v":0},{"$f":"COUNTIF(FebruarOppmøte[18],\"U\")+COUNTIF(FebruarOppmøte[18],\"G\")","v":0},{"$f":"COUNTIF(FebruarOppmøte[19],\"U\")+COUNTIF(FebruarOppmøte[19],\"G\")","v":0},{"$f":"COUNTIF(FebruarOppmøte[20],\"U\")+COUNTIF(FebruarOppmøte[20],\"G\")","v":0},{"$f":"COUNTIF(FebruarOppmøte[21],\"U\")+COUNTIF(FebruarOppmøte[21],\"G\")","v":0},{"$f":"COUNTIF(FebruarOppmøte[22],\"U\")+COUNTIF(FebruarOppmøte[22],\"G\")","v":0},{"$f":"COUNTIF(FebruarOppmøte[23],\"U\")+COUNTIF(FebruarOppmøte[23],\"G\")","v":0},{"$f":"COUNTIF(FebruarOppmøte[24],\"U\")+COUNTIF(FebruarOppmøte[24],\"G\")","v":0},{"$f":"COUNTIF(FebruarOppmøte[25],\"U\")+COUNTIF(FebruarOppmøte[25],\"G\")","v":0},{"$f":"COUNTIF(FebruarOppmøte[26],\"U\")+COUNTIF(FebruarOppmøte[26],\"G\")","v":0},{"$f":"COUNTIF(FebruarOppmøte[27],\"U\")+COUNTIF(FebruarOppmøte[27],\"G\")","v":0},{"$f":"COUNTIF(FebruarOppmøte[28],\"U\")+COUNTIF(FebruarOppmøte[28],\"G\")","v":0},{"$f":"COUNTIF(FebruarOppmøte[29],\"U\")+COUNTIF(FebruarOppmøte[29],\"G\")","v":0},{"$f":"COUNTIF(FebruarOppmøte[30],\"U\")+COUNTIF(FebruarOppmøte[30],\"G\")","v":0},{"$f":"COUNTIF(FebruarOppmøte[31],\"U\")+COUNTIF(FebruarOppmøte[31],\"G\")","v":0},{"$f":"SUBTOTAL(109,FebruarOppmøte[S])","v":0},{"$f":"SUBTOTAL(109,FebruarOppmøte[G])","v":0},{"$f":"SUBTOTAL(109,FebruarOppmøte[U])","v":0},{"$f":"SUBTOTAL(109,FebruarOppmøte[T])","v":0},{"$f":"SUBTOTAL(109,FebruarOppmøte[Fraværsdager])","v":0}]

{"sheet":"Mars","index":9,"n_rows":12,"n_cols":39,"rows_kept":12,"merged":[[4,34,4,38]]}
["Oversikt over studentoppmøte",{"$nulls":36},"Skoleåret begynner:",{"$f":"Kalenderår","v":2012}]
[]
[null,null,{"$f":"Fargenøkkeltekst","v":"FARGENØKKEL "},{"$f":"Kode1","v":"S"},{"$f":"Kode1Tekst","v":"Sen"},null,null,{"$f":"Kode2","v":"G"},{"$f":"Kode2Tekst","v":"Gyldig"},null,null,{"$f":"Kode3","v":"U"},{"$f":"Kode3Tekst","v":"Ugyldig"},null,null,{"$f":"Kode4","v":"T"},{"$f":"Kode4Tekst","v":"Tilstede"},null,null,{"$f":"Kode5","v":"F"},{"$f":"Kode5Tekst","v":"Skolefri"}]
[]
[null,{"$f":"DATE(Kalenderår+1,3,1)","v":"2013-03-01"},null,{"$f":"TEXT(WEEKDAY(DATE(Kalenderår+1,3,1),1),\"[$-414]aaa\")","v":"fr"},{"$f":"TEXT(WEEKDAY(DATE(Kalenderår+1,3,2),1),\"[$-414]aaa\")","v":"lø"},{"$f":"TEXT(WEEKDAY(DATE(Kalenderår+1,3,3),1),\"[$-414]aaa\")","v":"sø"},{"$f":"TEXT(WEEKDAY(DATE(Kalenderår+1,3,4),1),\"[$-414]aaa\")","v":"ma"},{"$f":"TEXT(WEEKDAY(DATE(Kalenderår+1,3,5),1),\"[$-414]aaa\")","v":"ti"},{"$f":"TEXT(WEEKDAY(DATE(Kalenderår+1,3,6),1),\"[$-414]aaa\")","v":"on"},{"$f":"TEXT(WEEKDAY(DATE(Kalenderår+1,3,7),1),\"[$-414]aaa\")","v":"to"},{"$f":"TEXT(WEEKDAY(DATE(Kalenderår+1,3,8),1),\"[$-414]aaa\")","v":"fr"},{"$f":"TEXT(WEEKDAY(DATE(Kalenderår+1,3,9),1),\"[$-414]aaa\")","v":"lø"},{"$f":"TEXT(WEEKDAY(DATE(Kalenderår+1,3,10),1),\"[$-414]aaa\")","v":"sø"},{"$f":"TEXT(WEEKDAY(DATE(Kalenderår+1,3,11),1),\"[$-414]aaa\")","v":"ma"},{"$f":"TEXT(WEEKDAY(DATE(Kalenderår+1,3,12),1),\"[$-414]aaa\")","v":"ti"},{"$f":"TEXT(WEEKDAY(DATE(Kalenderår+1,3,13),1),\"[$-414]aaa\")","v":"on"},{"$f":"TEXT(WEEKDAY(DATE(Kalenderår+1,3,14),1),\"[$-414]aaa\")","v":"to"},{"$f":"TEXT(WEEKDAY(DATE(Kalenderår+1,3,15),1),\"[$-414]aaa\")","v":"fr"},{"$f":"TEXT(WEEKDAY(DATE(Kalenderår+1,3,16),1),\"[$-414]aaa\")","v":"lø"},{"$f":"TEXT(WEEKDAY(DATE(Kalenderår+1,3,17),1),\"[$-414]aaa\")","v":"sø"},{"$f":"TEXT(WEEKDAY(DATE(Kalenderår+1,3,18),1),\"[$-414]aaa\")","v":"ma"},{"$f":"TEXT(WEEKDAY(DATE(Kalenderår+1,3,19),1),\"[$-414]aaa\")","v":"ti"},{"$f":"TEXT(WEEKDAY(DATE(Kalenderår+1,3,20),1),\"[$-414]aaa\")","v":"on"},{"$f":"TEXT(WEEKDAY(DATE(Kalenderår+1,3,21),1),\"[$-414]aaa\")","v":"to"},{"$f":"TEXT(WEEKDAY(DATE(Kalenderår+1,3,22),1),\"[$-414]aaa\")","v":"fr"},{"$f":"TEXT(WEEKDAY(DATE(Kalenderår+1,3,23),1),\"[$-414]aaa\")","v":"lø"},{"$f":"TEXT(WEEKDAY(DATE(Kalenderår+1,3,24),1),\"[$-414]aaa\")","v":"sø"},{"$f":"TEXT(WEEKDAY(DATE(Kalenderår+1,3,25),1),\"[$-414]aaa\")","v":"ma"},{"$f":"TEXT(WEEKDAY(DATE(Kalenderår+1,3,26),1),\"[$-414]aaa\")","v":"ti"},{"$f":"TEXT(WEEKDAY(DATE(Kalenderår+1,3,27),1),\"[$-414]aaa\")","v":"on"},{"$f":"TEXT(WEEKDAY(DATE(Kalenderår+1,3,28),1),\"[$-414]aaa\")","v":"to"},{"$f":"TEXT(WEEKDAY(DATE(Kalenderår+1,3,29),1),\"[$-414]aaa\")","v":"fr"},{"$f":"TEXT(WEEKDAY(DATE(Kalenderår+1,3,30),1),\"[$-414]aaa\")","v":"lø"},{"$f":"TEXT(WEEKDAY(DATE(Kalenderår+1,3,31),1),\"[$-414]aaa\")","v":"sø"},"Totaler"]
[null,"Student-ID","Studentnavn","1","2","3","4","5","6","7","8","9","10","11","12","13","14","15","16","17","18","19","20","21","22","23","24","25","26","27","28","29","30","31","S","G","U","T","Fraværsdager"]
[null,null,{"$f":"IFERROR(VLOOKUP(MarsOppmøte[[#This Row],[Student-ID]],Studentliste[],18,FALSE),\"\")","v":""},{"$nulls":31},{"$f":"COUNTIF(MarsOppmøte[[#This Row],[1]:[31]],Kode1)","v":0},{"$f":"COUNTIF(MarsOppmøte[[#This Row],[1]:[31]],Kode2)","v":0},{"$f":"COUNTIF(MarsOppmøte[[#This Row],[1]:[31]],Kode3)","v":0},{"$f":"COUNTIF(MarsOppmøte[[#This Row],[1]:[31]],Kode4)","v":0},{"$f":"SUM(MarsOppmøte[[#This Row],[G]:[U]])","v":0}]
[null,null,{"$f":"IFERROR(VLOOKUP(MarsOppmøte[[#This Row],[Student-ID]],Studentliste[],18,FALSE),\"\")","v":""},{"$nulls":31},{"$f":"COUNTIF(MarsOppmøte[[#This Row],[1]:[31]],Kode1)","v":0},{"$f":"COUNTIF(MarsOppmøte[[#This Row],[1]:[31]],Kode2)","v":0},{"$f":"COUNTIF(MarsOppmøte[[#This Row],[1]:[31]],Kode3)","v":0},{"$f":"COUNTIF(MarsOppmøte[[#This Row],[1]:[31]],Kode4)","v":0},{"$f":"SUM(MarsOppmøte[[#This Row],[G]:[U]])","v":0}]
[null,null,{"$f":"IFERROR(VLOOKUP(MarsOppmøte[[#This Row],[Student-ID]],Studentliste[],18,FALSE),\"\")","v":""},{"$nulls":31},{"$f":"COUNTIF(MarsOppmøte[[#This Row],[1]:[31]],Kode1)","v":0},{"$f":"COUNTIF(MarsOppmøte[[#This Row],[1]:[31]],Kode2)","v":0},{"$f":"COUNTIF(MarsOppmøte[[#This Row],[1]:[31]],Kode3)","v":0},{"$f":"COUNTIF(MarsOppmøte[[#This Row],[1]:[31]],Kode4)","v":0},{"$f":"SUM(MarsOppmøte[[#This Row],[G]:[U]])","v":0}]
[null,null,{"$f":"IFERROR(VLOOKUP(MarsOppmøte[[#This Row],[Student-ID]],Studentliste[],18,FALSE),\"\")","v":""},{"$nulls":31},{"$f":"COUNTIF(MarsOppmøte[[#This Row],[1]:[31]],Kode1)","v":0},{"$f":"COUNTIF(MarsOppmøte[[#This Row],[1]:[31]],Kode2)","v":0},{"$f":"COUNTIF(MarsOppmøte[[#This Row],[1]:[31]],Kode3)","v":0},{"$f":"COUNTIF(MarsOppmøte[[#This Row],[1]:[31]],Kode4)","v":0},{"$f":"SUM(MarsOppmøte[[#This Row],[G]:[U]])","v":0}]
[null,null,{"$f":"IFERROR(VLOOKUP(MarsOppmøte[[#This Row],[Student-ID]],Studentliste[],18,FALSE),\"\")","v":""},{"$nulls":31},{"$f":"COUNTIF(MarsOppmøte[[#This Row],[1]:[31]],Kode1)","v":0},{"$f":"COUNTIF(MarsOppmøte[[#This Row],[1]:[31]],Kode2)","v":0},{"$f":"COUNTIF(MarsOppmøte[[#This Row],[1]:[31]],Kode3)","v":0},{"$f":"COUNTIF(MarsOppmøte[[#This Row],[1]:[31]],Kode4)","v":0},{"$f":"SUM(MarsOppmøte[[#This Row],[G]:[U]])","v":0}]
[null,null,"Totalt antall fraværsdager",{"$f":"COUNTIF(MarsOppmøte[1],\"U\")+COUNTIF(MarsOppmøte[1],\"G\")","v":0},{"$f":"COUNTIF(MarsOppmøte[2],\"U\")+COUNTIF(MarsOppmøte[2],\"G\")","v":0},{"$f":"COUNTIF(MarsOppmøte[3],\"U\")+COUNTIF(MarsOppmøte[3],\"G\")","v":0},{"$f":"COUNTIF(MarsOppmøte[4],\"U\")+COUNTIF(MarsOppmøte[4],\"G\")","v":0},{"$f":"COUNTIF(MarsOppmøte[5],\"U\")+COUNTIF(MarsOppmøte[5],\"G\")","v":0},{"$f":"COUNTIF(MarsOppmøte[6],\"U\")+COUNTIF(MarsOppmøte[6],\"G\")","v":0},{"$f":"COUNTIF(MarsOppmøte[7],\"U\")+COUNTIF(MarsOppmøte[7],\"G\")","v":0},{"$f":"COUNTIF(MarsOppmøte[8],\"U\")+COUNTIF(MarsOppmøte[8],\"G\")","v":0},{"$f":"COUNTIF(MarsOppmøte[9],\"U\")+COUNTIF(MarsOppmøte[9],\"G\")","v":0},{"$f":"COUNTIF(MarsOppmøte[10],\"U\")+COUNTIF(MarsOppmøte[10],\"G\")","v":0},{"$f":"COUNTIF(MarsOppmøte[11],\"U\")+COUNTIF(MarsOppmøte[11],\"G\")","v":0},{"$f":"COUNTIF(MarsOppmøte[12],\"U\")+COUNTIF(MarsOppmøte[12],\"G\")","v":0},{"$f":"COUNTIF(MarsOppmøte[13],\"U\")+COUNTIF(MarsOppmøte[13],\"G\")","v":0},{"$f":"COUNTIF(MarsOppmøte[14],\"U\")+COUNTIF(MarsOppmøte[14],\"G\")","v":0},{"$f":"COUNTIF(MarsOppmøte[15],\"U\")+COUNTIF(MarsOppmøte[15],\"G\")","v":0},{"$f":"COUNTIF(MarsOppmøte[16],\"U\")+COUNTIF(MarsOppmøte[16],\"G\")","v":0},{"$f":"COUNTIF(MarsOppmøte[17],\"U\")+COUNTIF(MarsOppmøte[17],\"G\")","v":0},{"$f":"COUNTIF(MarsOppmøte[18],\"U\")+COUNTIF(MarsOppmøte[18],\"G\")","v":0},{"$f":"COUNTIF(MarsOppmøte[19],\"U\")+COUNTIF(MarsOppmøte[19],\"G\")","v":0},{"$f":"COUNTIF(MarsOppmøte[20],\"U\")+COUNTIF(MarsOppmøte[20],\"G\")","v":0},{"$f":"COUNTIF(MarsOppmøte[21],\"U\")+COUNTIF(MarsOppmøte[21],\"G\")","v":0},{"$f":"COUNTIF(MarsOppmøte[22],\"U\")+COUNTIF(MarsOppmøte[22],\"G\")","v":0},{"$f":"COUNTIF(MarsOppmøte[23],\"U\")+COUNTIF(MarsOppmøte[23],\"G\")","v":0},{"$f":"COUNTIF(MarsOppmøte[24],\"U\")+COUNTIF(MarsOppmøte[24],\"G\")","v":0},{"$f":"COUNTIF(MarsOppmøte[25],\"U\")+COUNTIF(MarsOppmøte[25],\"G\")","v":0},{"$f":"COUNTIF(MarsOppmøte[26],\"U\")+COUNTIF(MarsOppmøte[26],\"G\")","v":0},{"$f":"COUNTIF(MarsOppmøte[27],\"U\")+COUNTIF(MarsOppmøte[27],\"G\")","v":0},{"$f":"COUNTIF(MarsOppmøte[28],\"U\")+COUNTIF(MarsOppmøte[28],\"G\")","v":0},{"$f":"COUNTIF(MarsOppmøte[29],\"U\")+COUNTIF(MarsOppmøte[29],\"G\")","v":0},{"$f":"COUNTIF(MarsOppmøte[30],\"U\")+COUNTIF(MarsOppmøte[30],\"G\")","v":0},{"$f":"COUNTIF(MarsOppmøte[31],\"U\")+COUNTIF(MarsOppmøte[31],\"G\")","v":0},{"$f":"SUBTOTAL(109,MarsOppmøte[S])","v":0},{"$f":"SUBTOTAL(109,MarsOppmøte[G])","v":0},{"$f":"SUBTOTAL(109,MarsOppmøte[U])","v":0},{"$f":"SUBTOTAL(109,MarsOppmøte[T])","v":0},{"$f":"SUBTOTAL(109,MarsOppmøte[Fraværsdager])","v":0}]

{"sheet":"April","index":10,"n_rows":12,"n_cols":39,"rows_kept":12,"merged":[[4,34,4,38]]}
["Oversikt over studentoppmøte",{"$nulls":36},"Skoleåret begynner:",{"$f":"Kalenderår","v":2012}]
[]
[null,null,{"$f":"Fargenøkkeltekst","v":"FARGENØKKEL "},{"$f":"Kode1","v":"S"},{"$f":"Kode1Tekst","v":"Sen"},null,null,{"$f":"Kode2","v":"G"},{"$f":"Kode2Tekst","v":"Gyldig"},null,null,{"$f":"Kode3","v":"U"},{"$f":"Kode3Tekst","v":"Ugyldig"},null,null,{"$f":"Kode4","v":"T"},{"$f":"Kode4Tekst","v":"Tilstede"},null,null,{"$f":"Kode5","v":"F"},{"$f":"Kode5Tekst","v":"Skolefri"}]
[]
[null,{"$f":"DATE(Kalenderår+1,4,1)","v":"2013-04-01"},null,{"$f":"TEXT(WEEKDAY(DATE(Kalenderår+1,4,1),1),\"[$-414]aaa\")","v":"ma"},{"$f":"TEXT(WEEKDAY(DATE(Kalenderår+1,4,2),1),\"[$-414]aaa\")","v":"ti"},{"$f":"TEXT(WEEKDAY(DATE(Kalenderår+1,4,3),1),\"[$-414]aaa\")","v":"on"},{"$f":"TEXT(WEEKDAY(DATE(Kalenderår+1,4,4),1),\"[$-414]aaa\")","v":"to"},{"$f":"TEXT(WEEKDAY(DATE(Kalenderår+1,4,5),1),\"[$-414]aaa\")","v":"fr"},{"$f":"TEXT(WEEKDAY(DATE(Kalenderår+1,4,6),1),\"[$-414]aaa\")","v":"lø"},{"$f":"TEXT(WEEKDAY(DATE(Kalenderår+1,4,7),1),\"[$-414]aaa\")","v":"sø"},{"$f":"TEXT(WEEKDAY(DATE(Kalenderår+1,4,8),1),\"[$-414]aaa\")","v":"ma"},{"$f":"TEXT(WEEKDAY(DATE(Kalenderår+1,4,9),1),\"[$-414]aaa\")","v":"ti"},{"$f":"TEXT(WEEKDAY(DATE(Kalenderår+1,4,10),1),\"[$-414]aaa\")","v":"on"},{"$f":"TEXT(WEEKDAY(DATE(Kalenderår+1,4,11),1),\"[$-414]aaa\")","v":"to"},{"$f":"TEXT(WEEKDAY(DATE(Kalenderår+1,4,12),1),\"[$-414]aaa\")","v":"fr"},{"$f":"TEXT(WEEKDAY(DATE(Kalenderår+1,4,13),1),\"[$-414]aaa\")","v":"lø"},{"$f":"TEXT(WEEKDAY(DATE(Kalenderår+1,4,14),1),\"[$-414]aaa\")","v":"sø"},{"$f":"TEXT(WEEKDAY(DATE(Kalenderår+1,4,15),1),\"[$-414]aaa\")","v":"ma"},{"$f":"TEXT(WEEKDAY(DATE(Kalenderår+1,4,16),1),\"[$-414]aaa\")","v":"ti"},{"$f":"TEXT(WEEKDAY(DATE(Kalenderår+1,4,17),1),\"[$-414]aaa\")","v":"on"},{"$f":"TEXT(WEEKDAY(DATE(Kalenderår+1,4,18),1),\"[$-414]aaa\")","v":"to"},{"$f":"TEXT(WEEKDAY(DATE(Kalenderår+1,4,19),1),\"[$-414]aaa\")","v":"fr"},{"$f":"TEXT(WEEKDAY(DATE(Kalenderår+1,4,20),1),\"[$-414]aaa\")","v":"lø"},{"$f":"TEXT(WEEKDAY(DATE(Kalenderår+1,4,21),1),\"[$-414]aaa\")","v":"sø"},{"$f":"TEXT(WEEKDAY(DATE(Kalenderår+1,4,22),1),\"[$-414]aaa\")","v":"ma"},{"$f":"TEXT(WEEKDAY(DATE(Kalenderår+1,4,23),1),\"[$-414]aaa\")","v":"ti"},{"$f":"TEXT(WEEKDAY(DATE(Kalenderår+1,4,24),1),\"[$-414]aaa\")","v":"on"},{"$f":"TEXT(WEEKDAY(DATE(Kalenderår+1,4,25),1),\"[$-414]aaa\")","v":"to"},{"$f":"TEXT(WEEKDAY(DATE(Kalenderår+1,4,26),1),\"[$-414]aaa\")","v":"fr"},{"$f":"TEXT(WEEKDAY(DATE(Kalenderår+1,4,27),1),\"[$-414]aaa\")","v":"lø"},{"$f":"TEXT(WEEKDAY(DATE(Kalenderår+1,4,28),1),\"[$-414]aaa\")","v":"sø"},{"$f":"TEXT(WEEKDAY(DATE(Kalenderår+1,4,29),1),\"[$-414]aaa\")","v":"ma"},{"$f":"TEXT(WEEKDAY(DATE(Kalenderår+1,4,30),1),\"[$-414]aaa\")","v":"ti"},null,"Totaler"]
[null,"Student-ID","Studentnavn","1","2","3","4","5","6","7","8","9","10","11","12","13","14","15","16","17","18","19","20","21","22","23","24","25","26","27","28","29","30"," ","S","G","U","T","Fraværsdager"]
[null,null,{"$f":"IFERROR(VLOOKUP(AprilOppmøte[[#This Row],[Student-ID]],Studentliste[],18,FALSE),\"\")","v":""},{"$nulls":31},{"$f":"COUNTIF(AprilOppmøte[[#This Row],[1]:[ ]],Kode1)","v":0},{"$f":"COUNTIF(AprilOppmøte[[#This Row],[1]:[ ]],Kode2)","v":0},{"$f":"COUNTIF(AprilOppmøte[[#This Row],[1]:[ ]],Kode3)","v":0},{"$f":"COUNTIF(AprilOppmøte[[#This Row],[1]:[ ]],Kode4)","v":0},{"$f":"SUM(AprilOppmøte[[#This Row],[G]:[U]])","v":0}]
[null,null,{"$f":"IFERROR(VLOOKUP(AprilOppmøte[[#This Row],[Student-ID]],Studentliste[],18,FALSE),\"\")","v":""},{"$nulls":31},{"$f":"COUNTIF(AprilOppmøte[[#This Row],[1]:[ ]],Kode1)","v":0},{"$f":"COUNTIF(AprilOppmøte[[#This Row],[1]:[ ]],Kode2)","v":0},{"$f":"COUNTIF(AprilOppmøte[[#This Row],[1]:[ ]],Kode3)","v":0},{"$f":"COUNTIF(AprilOppmøte[[#This Row],[1]:[ ]],Kode4)","v":0},{"$f":"SUM(AprilOppmøte[[#This Row],[G]:[U]])","v":0}]
[null,null,{"$f":"IFERROR(VLOOKUP(AprilOppmøte[[#This Row],[Student-ID]],Studentliste[],18,FALSE),\"\")","v":""},{"$nulls":31},{"$f":"COUNTIF(AprilOppmøte[[#This Row],[1]:[ ]],Kode1)","v":0},{"$f":"COUNTIF(AprilOppmøte[[#This Row],[1]:[ ]],Kode2)","v":0},{"$f":"COUNTIF(AprilOppmøte[[#This Row],[1]:[ ]],Kode3)","v":0},{"$f":"COUNTIF(AprilOppmøte[[#This Row],[1]:[ ]],Kode4)","v":0},{"$f":"SUM(AprilOppmøte[[#This Row],[G]:[U]])","v":0}]
[null,null,{"$f":"IFERROR(VLOOKUP(AprilOppmøte[[#This Row],[Student-ID]],Studentliste[],18,FALSE),\"\")","v":""},{"$nulls":31},{"$f":"COUNTIF(AprilOppmøte[[#This Row],[1]:[ ]],Kode1)","v":0},{"$f":"COUNTIF(AprilOppmøte[[#This Row],[1]:[ ]],Kode2)","v":0},{"$f":"COUNTIF(AprilOppmøte[[#This Row],[1]:[ ]],Kode3)","v":0},{"$f":"COUNTIF(AprilOppmøte[[#This Row],[1]:[ ]],Kode4)","v":0},{"$f":"SUM(AprilOppmøte[[#This Row],[G]:[U]])","v":0}]
[null,null,{"$f":"IFERROR(VLOOKUP(AprilOppmøte[[#This Row],[Student-ID]],Studentliste[],18,FALSE),\"\")","v":""},{"$nulls":31},{"$f":"COUNTIF(AprilOppmøte[[#This Row],[1]:[ ]],Kode1)","v":0},{"$f":"COUNTIF(AprilOppmøte[[#This Row],[1]:[ ]],Kode2)","v":0},{"$f":"COUNTIF(AprilOppmøte[[#This Row],[1]:[ ]],Kode3)","v":0},{"$f":"COUNTIF(AprilOppmøte[[#This Row],[1]:[ ]],Kode4)","v":0},{"$f":"SUM(AprilOppmøte[[#This Row],[G]:[U]])","v":0}]
[null,null,"Totalt antall fraværsdager",{"$f":"COUNTIF(AprilOppmøte[1],\"U\")+COUNTIF(AprilOppmøte[1],\"G\")","v":0},{"$f":"COUNTIF(AprilOppmøte[2],\"U\")+COUNTIF(AprilOppmøte[2],\"G\")","v":0},{"$f":"COUNTIF(AprilOppmøte[3],\"U\")+COUNTIF(AprilOppmøte[3],\"G\")","v":0},{"$f":"COUNTIF(AprilOppmøte[4],\"U\")+COUNTIF(AprilOppmøte[4],\"G\")","v":0},{"$f":"COUNTIF(AprilOppmøte[5],\"U\")+COUNTIF(AprilOppmøte[5],\"G\")","v":0},{"$f":"COUNTIF(AprilOppmøte[6],\"U\")+COUNTIF(AprilOppmøte[6],\"G\")","v":0},{"$f":"COUNTIF(AprilOppmøte[7],\"U\")+COUNTIF(AprilOppmøte[7],\"G\")","v":0},{"$f":"COUNTIF(AprilOppmøte[8],\"U\")+COUNTIF(AprilOppmøte[8],\"G\")","v":0},{"$f":"COUNTIF(AprilOppmøte[9],\"U\")+COUNTIF(AprilOppmøte[9],\"G\")","v":0},{"$f":"COUNTIF(AprilOppmøte[10],\"U\")+COUNTIF(AprilOppmøte[10],\"G\")","v":0},{"$f":"COUNTIF(AprilOppmøte[11],\"U\")+COUNTIF(AprilOppmøte[11],\"G\")","v":0},{"$f":"COUNTIF(AprilOppmøte[12],\"U\")+COUNTIF(AprilOppmøte[12],\"G\")","v":0},{"$f":"COUNTIF(AprilOppmøte[13],\"U\")+COUNTIF(AprilOppmøte[13],\"G\")","v":0},{"$f":"COUNTIF(AprilOppmøte[14],\"U\")+COUNTIF(AprilOppmøte[14],\"G\")","v":0},{"$f":"COUNTIF(AprilOppmøte[15],\"U\")+COUNTIF(AprilOppmøte[15],\"G\")","v":0},{"$f":"COUNTIF(AprilOppmøte[16],\"U\")+COUNTIF(AprilOppmøte[16],\"G\")","v":0},{"$f":"COUNTIF(AprilOppmøte[17],\"U\")+COUNTIF(AprilOppmøte[17],\"G\")","v":0},{"$f":"COUNTIF(AprilOppmøte[18],\"U\")+COUNTIF(AprilOppmøte[18],\"G\")","v":0},{"$f":"COUNTIF(AprilOppmøte[19],\"U\")+COUNTIF(AprilOppmøte[19],\"G\")","v":0},{"$f":"COUNTIF(AprilOppmøte[20],\"U\")+COUNTIF(AprilOppmøte[20],\"G\")","v":0},{"$f":"COUNTIF(AprilOppmøte[21],\"U\")+COUNTIF(AprilOppmøte[21],\"G\")","v":0},{"$f":"COUNTIF(AprilOppmøte[22],\"U\")+COUNTIF(AprilOppmøte[22],\"G\")","v":0},{"$f":"COUNTIF(AprilOppmøte[23],\"U\")+COUNTIF(AprilOppmøte[23],\"G\")","v":0},{"$f":"COUNTIF(AprilOppmøte[24],\"U\")+COUNTIF(AprilOppmøte[24],\"G\")","v":0},{"$f":"COUNTIF(AprilOppmøte[25],\"U\")+COUNTIF(AprilOppmøte[25],\"G\")","v":0},{"$f":"COUNTIF(AprilOppmøte[26],\"U\")+COUNTIF(AprilOppmøte[26],\"G\")","v":0},{"$f":"COUNTIF(AprilOppmøte[27],\"U\")+COUNTIF(AprilOppmøte[27],\"G\")","v":0},{"$f":"COUNTIF(AprilOppmøte[28],\"U\")+COUNTIF(AprilOppmøte[28],\"G\")","v":0},{"$f":"COUNTIF(AprilOppmøte[29],\"U\")+COUNTIF(AprilOppmøte[29],\"G\")","v":0},{"$f":"COUNTIF(AprilOppmøte[30],\"U\")+COUNTIF(AprilOppmøte[30],\"G\")","v":0},{"$f":"COUNTIF(AprilOppmøte[[ ]],\"U\")+COUNTIF(AprilOppmøte[[ ]],\"G\")","v":0},{"$f":"SUBTOTAL(109,AprilOppmøte[S])","v":0},{"$f":"SUBTOTAL(109,AprilOppmøte[G])","v":0},{"$f":"SUBTOTAL(109,AprilOppmøte[U])","v":0},{"$f":"SUBTOTAL(109,AprilOppmøte[T])","v":0},{"$f":"SUBTOTAL(109,AprilOppmøte[Fraværsdager])","v":0}]

{"sheet":"Mai","index":11,"n_rows":12,"n_cols":39,"rows_kept":12,"merged":[[4,34,4,38]]}
["Oversikt over studentoppmøte",{"$nulls":36},"Skoleåret begynner:",{"$f":"Kalenderår","v":2012}]
[]
[null,null,{"$f":"Fargenøkkeltekst","v":"FARGENØKKEL "},{"$f":"Kode1","v":"S"},{"$f":"Kode1Tekst","v":"Sen"},null,null,{"$f":"Kode2","v":"G"},{"$f":"Kode2Tekst","v":"Gyldig"},null,null,{"$f":"Kode3","v":"U"},{"$f":"Kode3Tekst","v":"Ugyldig"},null,null,{"$f":"Kode4","v":"T"},{"$f":"Kode4Tekst","v":"Tilstede"},null,null,{"$f":"Kode5","v":"F"},{"$f":"Kode5Tekst","v":"Skolefri"}]
[]
[null,{"$f":"DATE(Kalenderår+1,5,1)","v":"2013-05-01"},null,{"$f":"TEXT(WEEKDAY(DATE(Kalenderår+1,5,1),1),\"[$-414]aaa\")","v":"on"},{"$f":"TEXT(WEEKDAY(DATE(Kalenderår+1,5,2),1),\"[$-414]aaa\")","v":"to"},{"$f":"TEXT(WEEKDAY(DATE(Kalenderår+1,5,3),1),\"[$-414]aaa\")","v":"fr"},{"$f":"TEXT(WEEKDAY(DATE(Kalenderår+1,5,4),1),\"[$-414]aaa\")","v":"lø"},{"$f":"TEXT(WEEKDAY(DATE(Kalenderår+1,5,5),1),\"[$-414]aaa\")","v":"sø"},{"$f":"TEXT(WEEKDAY(DATE(Kalenderår+1,5,6),1),\"[$-414]aaa\")","v":"ma"},{"$f":"TEXT(WEEKDAY(DATE(Kalenderår+1,5,7),1),\"[$-414]aaa\")","v":"ti"},{"$f":"TEXT(WEEKDAY(DATE(Kalenderår+1,5,8),1),\"[$-414]aaa\")","v":"on"},{"$f":"TEXT(WEEKDAY(DATE(Kalenderår+1,5,9),1),\"[$-414]aaa\")","v":"to"},{"$f":"TEXT(WEEKDAY(DATE(Kalenderår+1,5,10),1),\"[$-414]aaa\")","v":"fr"},{"$f":"TEXT(WEEKDAY(DATE(Kalenderår+1,5,11),1),\"[$-414]aaa\")","v":"lø"},{"$f":"TEXT(WEEKDAY(DATE(Kalenderår+1,5,12),1),\"[$-414]aaa\")","v":"sø"},{"$f":"TEXT(WEEKDAY(DATE(Kalenderår+1,5,13),1),\"[$-414]aaa\")","v":"ma"},{"$f":"TEXT(WEEKDAY(DATE(Kalenderår+1,5,14),1),\"[$-414]aaa\")","v":"ti"},{"$f":"TEXT(WEEKDAY(DATE(Kalenderår+1,5,15),1),\"[$-414]aaa\")","v":"on"},{"$f":"TEXT(WEEKDAY(DATE(Kalenderår+1,5,16),1),\"[$-414]aaa\")","v":"to"},{"$f":"TEXT(WEEKDAY(DATE(Kalenderår+1,5,17),1),\"[$-414]aaa\")","v":"fr"},{"$f":"TEXT(WEEKDAY(DATE(Kalenderår+1,5,18),1),\"[$-414]aaa\")","v":"lø"},{"$f":"TEXT(WEEKDAY(DATE(Kalenderår+1,5,19),1),\"[$-414]aaa\")","v":"sø"},{"$f":"TEXT(WEEKDAY(DATE(Kalenderår+1,5,20),1),\"[$-414]aaa\")","v":"ma"},{"$f":"TEXT(WEEKDAY(DATE(Kalenderår+1,5,21),1),\"[$-414]aaa\")","v":"ti"},{"$f":"TEXT(WEEKDAY(DATE(Kalenderår+1,5,22),1),\"[$-414]aaa\")","v":"on"},{"$f":"TEXT(WEEKDAY(DATE(Kalenderår+1,5,23),1),\"[$-414]aaa\")","v":"to"},{"$f":"TEXT(WEEKDAY(DATE(Kalenderår+1,5,24),1),\"[$-414]aaa\")","v":"fr"},{"$f":"TEXT(WEEKDAY(DATE(Kalenderår+1,5,25),1),\"[$-414]aaa\")","v":"lø"},{"$f":"TEXT(WEEKDAY(DATE(Kalenderår+1,5,26),1),\"[$-414]aaa\")","v":"sø"},{"$f":"TEXT(WEEKDAY(DATE(Kalenderår+1,5,27),1),\"[$-414]aaa\")","v":"ma"},{"$f":"TEXT(WEEKDAY(DATE(Kalenderår+1,5,28),1),\"[$-414]aaa\")","v":"ti"},{"$f":"TEXT(WEEKDAY(DATE(Kalenderår+1,5,29),1),\"[$-414]aaa\")","v":"on"},{"$f":"TEXT(WEEKDAY(DATE(Kalenderår+1,5,30),1),\"[$-414]aaa\")","v":"to"},{"$f":"TEXT(WEEKDAY(DATE(Kalenderår+1,5,31),1),\"[$-414]aaa\")","v":"fr"},"Totaler"]
[null,"Student-ID","Studentnavn","1","2","3","4","5","6","7","8","9","10","11","12","13","14","15","16","17","18","19","20","21","22","23","24","25","26","27","28","29","30","31","S","G","U","T","Fraværsdager"]
[null,null,{"$f":"IFERROR(VLOOKUP(MaiOppmøte[[#This Row],[Student-ID]],Studentliste[],18,FALSE),\"\")","v":""},{"$nulls":31},{"$f":"COUNTIF(MaiOppmøte[[#This Row],[1]:[31]],Kode1)","v":0},{"$f":"COUNTIF(MaiOppmøte[[#This Row],[1]:[31]],Kode2)","v":0},{"$f":"COUNTIF(MaiOppmøte[[#This Row],[1]:[31]],Kode3)","v":0},{"$f":"COUNTIF(MaiOppmøte[[#This Row],[1]:[31]],Kode4)","v":0},{"$f":"SUM(MaiOppmøte[[#This Row],[G]:[U]])","v":0}]
[null,null,{"$f":"IFERROR(VLOOKUP(MaiOppmøte[[#This Row],[Student-ID]],Studentliste[],18,FALSE),\"\")","v":""},{"$nulls":31},{"$f":"COUNTIF(MaiOppmøte[[#This Row],[1]:[31]],Kode1)","v":0},{"$f":"COUNTIF(MaiOppmøte[[#This Row],[1]:[31]],Kode2)","v":0},{"$f":"COUNTIF(MaiOppmøte[[#This Row],[1]:[31]],Kode3)","v":0},{"$f":"COUNTIF(MaiOppmøte[[#This Row],[1]:[31]],Kode4)","v":0},{"$f":"SUM(MaiOppmøte[[#This Row],[G]:[U]])","v":0}]
[null,null,{"$f":"IFERROR(VLOOKUP(MaiOppmøte[[#This Row],[Student-ID]],Studentliste[],18,FALSE),\"\")","v":""},{"$nulls":31},{"$f":"COUNTIF(MaiOppmøte[[#This Row],[1]:[31]],Kode1)","v":0},{"$f":"COUNTIF(MaiOppmøte[[#This Row],[1]:[31]],Kode2)","v":0},{"$f":"COUNTIF(MaiOppmøte[[#This Row],[1]:[31]],Kode3)","v":0},{"$f":"COUNTIF(MaiOppmøte[[#This Row],[1]:[31]],Kode4)","v":0},{"$f":"SUM(MaiOppmøte[[#This Row],[G]:[U]])","v":0}]
[null,null,{"$f":"IFERROR(VLOOKUP(MaiOppmøte[[#This Row],[Student-ID]],Studentliste[],18,FALSE),\"\")","v":""},{"$nulls":31},{"$f":"COUNTIF(MaiOppmøte[[#This Row],[1]:[31]],Kode1)","v":0},{"$f":"COUNTIF(MaiOppmøte[[#This Row],[1]:[31]],Kode2)","v":0},{"$f":"COUNTIF(MaiOppmøte[[#This Row],[1]:[31]],Kode3)","v":0},{"$f":"COUNTIF(MaiOppmøte[[#This Row],[1]:[31]],Kode4)","v":0},{"$f":"SUM(MaiOppmøte[[#This Row],[G]:[U]])","v":0}]
[null,null,{"$f":"IFERROR(VLOOKUP(MaiOppmøte[[#This Row],[Student-ID]],Studentliste[],18,FALSE),\"\")","v":""},{"$nulls":31},{"$f":"COUNTIF(MaiOppmøte[[#This Row],[1]:[31]],Kode1)","v":0},{"$f":"COUNTIF(MaiOppmøte[[#This Row],[1]:[31]],Kode2)","v":0},{"$f":"COUNTIF(MaiOppmøte[[#This Row],[1]:[31]],Kode3)","v":0},{"$f":"COUNTIF(MaiOppmøte[[#This Row],[1]:[31]],Kode4)","v":0},{"$f":"SUM(MaiOppmøte[[#This Row],[G]:[U]])","v":0}]
[null,null,"Totalt antall fraværsdager",{"$f":"COUNTIF(MaiOppmøte[1],\"U\")+COUNTIF(MaiOppmøte[1],\"G\")","v":0},{"$f":"COUNTIF(MaiOppmøte[2],\"U\")+COUNTIF(MaiOppmøte[2],\"G\")","v":0},{"$f":"COUNTIF(MaiOppmøte[3],\"U\")+COUNTIF(MaiOppmøte[3],\"G\")","v":0},{"$f":"COUNTIF(MaiOppmøte[4],\"U\")+COUNTIF(MaiOppmøte[4],\"G\")","v":0},{"$f":"COUNTIF(MaiOppmøte[5],\"U\")+COUNTIF(MaiOppmøte[5],\"G\")","v":0},{"$f":"COUNTIF(MaiOppmøte[6],\"U\")+COUNTIF(MaiOppmøte[6],\"G\")","v":0},{"$f":"COUNTIF(MaiOppmøte[7],\"U\")+COUNTIF(MaiOppmøte[7],\"G\")","v":0},{"$f":"COUNTIF(MaiOppmøte[8],\"U\")+COUNTIF(MaiOppmøte[8],\"G\")","v":0},{"$f":"COUNTIF(MaiOppmøte[9],\"U\")+COUNTIF(MaiOppmøte[9],\"G\")","v":0},{"$f":"COUNTIF(MaiOppmøte[10],\"U\")+COUNTIF(MaiOppmøte[10],\"G\")","v":0},{"$f":"COUNTIF(MaiOppmøte[11],\"U\")+COUNTIF(MaiOppmøte[11],\"G\")","v":0},{"$f":"COUNTIF(MaiOppmøte[12],\"U\")+COUNTIF(MaiOppmøte[12],\"G\")","v":0},{"$f":"COUNTIF(MaiOppmøte[13],\"U\")+COUNTIF(MaiOppmøte[13],\"G\")","v":0},{"$f":"COUNTIF(MaiOppmøte[14],\"U\")+COUNTIF(MaiOppmøte[14],\"G\")","v":0},{"$f":"COUNTIF(MaiOppmøte[15],\"U\")+COUNTIF(MaiOppmøte[15],\"G\")","v":0},{"$f":"COUNTIF(MaiOppmøte[16],\"U\")+COUNTIF(MaiOppmøte[16],\"G\")","v":0},{"$f":"COUNTIF(MaiOppmøte[17],\"U\")+COUNTIF(MaiOppmøte[17],\"G\")","v":0},{"$f":"COUNTIF(MaiOppmøte[18],\"U\")+COUNTIF(MaiOppmøte[18],\"G\")","v":0},{"$f":"COUNTIF(MaiOppmøte[19],\"U\")+COUNTIF(MaiOppmøte[19],\"G\")","v":0},{"$f":"COUNTIF(MaiOppmøte[20],\"U\")+COUNTIF(MaiOppmøte[20],\"G\")","v":0},{"$f":"COUNTIF(MaiOppmøte[21],\"U\")+COUNTIF(MaiOppmøte[21],\"G\")","v":0},{"$f":"COUNTIF(MaiOppmøte[22],\"U\")+COUNTIF(MaiOppmøte[22],\"G\")","v":0},{"$f":"COUNTIF(MaiOppmøte[23],\"U\")+COUNTIF(MaiOppmøte[23],\"G\")","v":0},{"$f":"COUNTIF(MaiOppmøte[24],\"U\")+COUNTIF(MaiOppmøte[24],\"G\")","v":0},{"$f":"COUNTIF(MaiOppmøte[25],\"U\")+COUNTIF(MaiOppmøte[25],\"G\")","v":0},{"$f":"COUNTIF(MaiOppmøte[26],\"U\")+COUNTIF(MaiOppmøte[26],\"G\")","v":0},{"$f":"COUNTIF(MaiOppmøte[27],\"U\")+COUNTIF(MaiOppmøte[27],\"G\")","v":0},{"$f":"COUNTIF(MaiOppmøte[28],\"U\")+COUNTIF(MaiOppmøte[28],\"G\")","v":0},{"$f":"COUNTIF(MaiOppmøte[29],\"U\")+COUNTIF(MaiOppmøte[29],\"G\")","v":0},{"$f":"COUNTIF(MaiOppmøte[30],\"U\")+COUNTIF(MaiOppmøte[30],\"G\")","v":0},{"$f":"COUNTIF(MaiOppmøte[31],\"U\")+COUNTIF(MaiOppmøte[31],\"G\")","v":0},{"$f":"SUBTOTAL(109,MaiOppmøte[S])","v":0},{"$f":"SUBTOTAL(109,MaiOppmøte[G])","v":0},{"$f":"SUBTOTAL(109,MaiOppmøte[U])","v":0},{"$f":"SUBTOTAL(109,MaiOppmøte[T])","v":0},{"$f":"SUBTOTAL(109,MaiOppmøte[Fraværsdager])","v":0}]

{"sheet":"Juni","index":12,"n_rows":12,"n_cols":39,"rows_kept":12,"merged":[[4,34,4,38]]}
["Oversikt over studentoppmøte",{"$nulls":36},"Skoleåret begynner:",{"$f":"Kalenderår","v":2012}]
[]
[null,null,{"$f":"Fargenøkkeltekst","v":"FARGENØKKEL "},{"$f":"Kode1","v":"S"},{"$f":"Kode1Tekst","v":"Sen"},null,null,{"$f":"Kode2","v":"G"},{"$f":"Kode2Tekst","v":"Gyldig"},null,null,{"$f":"Kode3","v":"U"},{"$f":"Kode3Tekst","v":"Ugyldig"},null,null,{"$f":"Kode4","v":"T"},{"$f":"Kode4Tekst","v":"Tilstede"},null,null,{"$f":"Kode5","v":"F"},{"$f":"Kode5Tekst","v":"Skolefri"}]
[]
[null,{"$f":"DATE(Kalenderår+1,6,1)","v":"2013-06-01"},null,{"$f":"TEXT(WEEKDAY(DATE(Kalenderår+1,6,1),1),\"[$-414]aaa\")","v":"lø"},{"$f":"TEXT(WEEKDAY(DATE(Kalenderår+1,6,2),1),\"[$-414]aaa\")","v":"sø"},{"$f":"TEXT(WEEKDAY(DATE(Kalenderår+1,6,3),1),\"[$-414]aaa\")","v":"ma"},{"$f":"TEXT(WEEKDAY(DATE(Kalenderår+1,6,4),1),\"[$-414]aaa\")","v":"ti"},{"$f":"TEXT(WEEKDAY(DATE(Kalenderår+1,6,5),1),\"[$-414]aaa\")","v":"on"},{"$f":"TEXT(WEEKDAY(DATE(Kalenderår+1,6,6),1),\"[$-414]aaa\")","v":"to"},{"$f":"TEXT(WEEKDAY(DATE(Kalenderår+1,6,7),1),\"[$-414]aaa\")","v":"fr"},{"$f":"TEXT(WEEKDAY(DATE(Kalenderår+1,6,8),1),\"[$-414]aaa\")","v":"lø"},{"$f":"TEXT(WEEKDAY(DATE(Kalenderår+1,6,9),1),\"[$-414]aaa\")","v":"sø"},{"$f":"TEXT(WEEKDAY(DATE(Kalenderår+1,6,10),1),\"[$-414]aaa\")","v":"ma"},{"$f":"TEXT(WEEKDAY(DATE(Kalenderår+1,6,11),1),\"[$-414]aaa\")","v":"ti"},{"$f":"TEXT(WEEKDAY(DATE(Kalenderår+1,6,12),1),\"[$-414]aaa\")","v":"on"},{"$f":"TEXT(WEEKDAY(DATE(Kalenderår+1,6,13),1),\"[$-414]aaa\")","v":"to"},{"$f":"TEXT(WEEKDAY(DATE(Kalenderår+1,6,14),1),\"[$-414]aaa\")","v":"fr"},{"$f":"TEXT(WEEKDAY(DATE(Kalenderår+1,6,15),1),\"[$-414]aaa\")","v":"lø"},{"$f":"TEXT(WEEKDAY(DATE(Kalenderår+1,6,16),1),\"[$-414]aaa\")","v":"sø"},{"$f":"TEXT(WEEKDAY(DATE(Kalenderår+1,6,17),1),\"[$-414]aaa\")","v":"ma"},{"$f":"TEXT(WEEKDAY(DATE(Kalenderår+1,6,18),1),\"[$-414]aaa\")","v":"ti"},{"$f":"TEXT(WEEKDAY(DATE(Kalenderår+1,6,19),1),\"[$-414]aaa\")","v":"on"},{"$f":"TEXT(WEEKDAY(DATE(Kalenderår+1,6,20),1),\"[$-414]aaa\")","v":"to"},{"$f":"TEXT(WEEKDAY(DATE(Kalenderår+1,6,21),1),\"[$-414]aaa\")","v":"fr"},{"$f":"TEXT(WEEKDAY(DATE(Kalenderår+1,6,22),1),\"[$-414]aaa\")","v":"lø"},{"$f":"TEXT(WEEKDAY(DATE(Kalenderår+1,6,23),1),\"[$-414]aaa\")","v":"sø"},{"$f":"TEXT(WEEKDAY(DATE(Kalenderår+1,6,24),1),\"[$-414]aaa\")","v":"ma"},{"$f":"TEXT(WEEKDAY(DATE(Kalenderår+1,6,25),1),\"[$-414]aaa\")","v":"ti"},{"$f":"TEXT(WEEKDAY(DATE(Kalenderår+1,6,26),1),\"[$-414]aaa\")","v":"on"},{"$f":"TEXT(WEEKDAY(DATE(Kalenderår+1,6,27),1),\"[$-414]aaa\")","v":"to"},{"$f":"TEXT(WEEKDAY(DATE(Kalenderår+1,6,28),1),\"[$-414]aaa\")","v":"fr"},{"$f":"TEXT(WEEKDAY(DATE(Kalenderår+1,6,29),1),\"[$-414]aaa\")","v":"lø"},{"$f":"TEXT(WEEKDAY(DATE(Kalenderår+1,6,30),1),\"[$-414]aaa\")","v":"sø"},null,"Totaler"]
[null,"Student-ID","Studentnavn","1","2","3","4","5","6","7","8","9","10","11","12","13","14","15","16","17","18","19","20","21","22","23","24","25","26","27","28","29","30"," ","S","G","U","T","Fraværsdager"]
[null,null,{"$f":"IFERROR(VLOOKUP(JuniOppmøte[[#This Row],[Student-ID]],Studentliste[],18,FALSE),\"\")","v":""},{"$nulls":31},{"$f":"COUNTIF(JuniOppmøte[[#This Row],[1]:[ ]],Kode1)","v":0},{"$f":"COUNTIF(JuniOppmøte[[#This Row],[1]:[ ]],Kode2)","v":0},{"$f":"COUNTIF(JuniOppmøte[[#This Row],[1]:[ ]],Kode3)","v":0},{"$f":"COUNTIF(JuniOppmøte[[#This Row],[1]:[ ]],Kode4)","v":0},{"$f":"SUM(JuniOppmøte[[#This Row],[G]:[U]])","v":0}]
[null,null,{"$f":"IFERROR(VLOOKUP(JuniOppmøte[[#This Row],[Student-ID]],Studentliste[],18,FALSE),\"\")","v":""},{"$nulls":31},{"$f":"COUNTIF(JuniOppmøte[[#This Row],[1]:[ ]],Kode1)","v":0},{"$f":"COUNTIF(JuniOppmøte[[#This Row],[1]:[ ]],Kode2)","v":0},{"$f":"COUNTIF(JuniOppmøte[[#This Row],[1]:[ ]],Kode3)","v":0},{"$f":"COUNTIF(JuniOppmøte[[#This Row],[1]:[ ]],Kode4)","v":0},{"$f":"SUM(JuniOppmøte[[#This Row],[G]:[U]])","v":0}]
[null,null,{"$f":"IFERROR(VLOOKUP(JuniOppmøte[[#This Row],[Student-ID]],Studentliste[],18,FALSE),\"\")","v":""},{"$nulls":31},{"$f":"COUNTIF(JuniOppmøte[[#This Row],[1]:[ ]],Kode1)","v":0},{"$f":"COUNTIF(JuniOppmøte[[#This Row],[1]:[ ]],Kode2)","v":0},{"$f":"COUNTIF(JuniOppmøte[[#This Row],[1]:[ ]],Kode3)","v":0},{"$f":"COUNTIF(JuniOppmøte[[#This Row],[1]:[ ]],Kode4)","v":0},{"$f":"SUM(JuniOppmøte[[#This Row],[G]:[U]])","v":0}]
[null,null,{"$f":"IFERROR(VLOOKUP(JuniOppmøte[[#This Row],[Student-ID]],Studentliste[],18,FALSE),\"\")","v":""},{"$nulls":31},{"$f":"COUNTIF(JuniOppmøte[[#This Row],[1]:[ ]],Kode1)","v":0},{"$f":"COUNTIF(JuniOppmøte[[#This Row],[1]:[ ]],Kode2)","v":0},{"$f":"COUNTIF(JuniOppmøte[[#This Row],[1]:[ ]],Kode3)","v":0},{"$f":"COUNTIF(JuniOppmøte[[#This Row],[1]:[ ]],Kode4)","v":0},{"$f":"SUM(JuniOppmøte[[#This Row],[G]:[U]])","v":0}]
[null,null,{"$f":"IFERROR(VLOOKUP(JuniOppmøte[[#This Row],[Student-ID]],Studentliste[],18,FALSE),\"\")","v":""},{"$nulls":31},{"$f":"COUNTIF(JuniOppmøte[[#This Row],[1]:[ ]],Kode1)","v":0},{"$f":"COUNTIF(JuniOppmøte[[#This Row],[1]:[ ]],Kode2)","v":0},{"$f":"COUNTIF(JuniOppmøte[[#This Row],[1]:[ ]],Kode3)","v":0},{"$f":"COUNTIF(JuniOppmøte[[#This Row],[1]:[ ]],Kode4)","v":0},{"$f":"SUM(JuniOppmøte[[#This Row],[G]:[U]])","v":0}]
[null,null,"Totalt antall fraværsdager",{"$f":"COUNTIF(JuniOppmøte[1],\"U\")+COUNTIF(JuniOppmøte[1],\"G\")","v":0},{"$f":"COUNTIF(JuniOppmøte[2],\"U\")+COUNTIF(JuniOppmøte[2],\"G\")","v":0},{"$f":"COUNTIF(JuniOppmøte[3],\"U\")+COUNTIF(JuniOppmøte[3],\"G\")","v":0},{"$f":"COUNTIF(JuniOppmøte[4],\"U\")+COUNTIF(JuniOppmøte[4],\"G\")","v":0},{"$f":"COUNTIF(JuniOppmøte[5],\"U\")+COUNTIF(JuniOppmøte[5],\"G\")","v":0},{"$f":"COUNTIF(JuniOppmøte[6],\"U\")+COUNTIF(JuniOppmøte[6],\"G\")","v":0},{"$f":"COUNTIF(JuniOppmøte[7],\"U\")+COUNTIF(JuniOppmøte[7],\"G\")","v":0},{"$f":"COUNTIF(JuniOppmøte[8],\"U\")+COUNTIF(JuniOppmøte[8],\"G\")","v":0},{"$f":"COUNTIF(JuniOppmøte[9],\"U\")+COUNTIF(JuniOppmøte[9],\"G\")","v":0},{"$f":"COUNTIF(JuniOppmøte[10],\"U\")+COUNTIF(JuniOppmøte[10],\"G\")","v":0},{"$f":"COUNTIF(JuniOppmøte[11],\"U\")+COUNTIF(JuniOppmøte[11],\"G\")","v":0},{"$f":"COUNTIF(JuniOppmøte[12],\"U\")+COUNTIF(JuniOppmøte[12],\"G\")","v":0},{"$f":"COUNTIF(JuniOppmøte[13],\"U\")+COUNTIF(JuniOppmøte[13],\"G\")","v":0},{"$f":"COUNTIF(JuniOppmøte[14],\"U\")+COUNTIF(JuniOppmøte[14],\"G\")","v":0},{"$f":"COUNTIF(JuniOppmøte[15],\"U\")+COUNTIF(JuniOppmøte[15],\"G\")","v":0},{"$f":"COUNTIF(JuniOppmøte[16],\"U\")+COUNTIF(JuniOppmøte[16],\"G\")","v":0},{"$f":"COUNTIF(JuniOppmøte[17],\"U\")+COUNTIF(JuniOppmøte[17],\"G\")","v":0},{"$f":"COUNTIF(JuniOppmøte[18],\"U\")+COUNTIF(JuniOppmøte[18],\"G\")","v":0},{"$f":"COUNTIF(JuniOppmøte[19],\"U\")+COUNTIF(JuniOppmøte[19],\"G\")","v":0},{"$f":"COUNTIF(JuniOppmøte[20],\"U\")+COUNTIF(JuniOppmøte[20],\"G\")","v":0},{"$f":"COUNTIF(JuniOppmøte[21],\"U\")+COUNTIF(JuniOppmøte[21],\"G\")","v":0},{"$f":"COUNTIF(JuniOppmøte[22],\"U\")+COUNTIF(JuniOppmøte[22],\"G\")","v":0},{"$f":"COUNTIF(JuniOppmøte[23],\"U\")+COUNTIF(JuniOppmøte[23],\"G\")","v":0},{"$f":"COUNTIF(JuniOppmøte[24],\"U\")+COUNTIF(JuniOppmøte[24],\"G\")","v":0},{"$f":"COUNTIF(JuniOppmøte[25],\"U\")+COUNTIF(JuniOppmøte[25],\"G\")","v":0},{"$f":"COUNTIF(JuniOppmøte[26],\"U\")+COUNTIF(JuniOppmøte[26],\"G\")","v":0},{"$f":"COUNTIF(JuniOppmøte[27],\"U\")+COUNTIF(JuniOppmøte[27],\"G\")","v":0},{"$f":"COUNTIF(JuniOppmøte[28],\"U\")+COUNTIF(JuniOppmøte[28],\"G\")","v":0},{"$f":"COUNTIF(JuniOppmøte[29],\"U\")+COUNTIF(JuniOppmøte[29],\"G\")","v":0},{"$f":"COUNTIF(JuniOppmøte[30],\"U\")+COUNTIF(JuniOppmøte[30],\"G\")","v":0},{"$f":"COUNTIF(JuniOppmøte[[ ]],\"U\")+COUNTIF(JuniOppmøte[[ ]],\"G\")","v":0},{"$f":"SUBTOTAL(109,JuniOppmøte[S])","v":0},{"$f":"SUBTOTAL(109,JuniOppmøte[G])","v":0},{"$f":"SUBTOTAL(109,JuniOppmøte[U])","v":0},{"$f":"SUBTOTAL(109,JuniOppmøte[T])","v":0},{"$f":"SUBTOTAL(109,JuniOppmøte[Fraværsdager])","v":0}]

{"sheet":"Juli","index":13,"n_rows":12,"n_cols":39,"rows_kept":12,"merged":[[4,34,4,38]]}
["Oversikt over studentoppmøte",{"$nulls":36},"Skoleåret begynner:",{"$f":"Kalenderår","v":2012}]
[]
[null,null,{"$f":"Fargenøkkeltekst","v":"FARGENØKKEL "},{"$f":"Kode1","v":"S"},{"$f":"Kode1Tekst","v":"Sen"},null,null,{"$f":"Kode2","v":"G"},{"$f":"Kode2Tekst","v":"Gyldig"},null,null,{"$f":"Kode3","v":"U"},{"$f":"Kode3Tekst","v":"Ugyldig"},null,null,{"$f":"Kode4","v":"T"},{"$f":"Kode4Tekst","v":"Tilstede"},null,null,{"$f":"Kode5","v":"F"},{"$f":"Kode5Tekst","v":"Skolefri"}]
[]
[null,{"$f":"DATE(Kalenderår+1,7,1)","v":"2013-07-01"},null,{"$f":"TEXT(WEEKDAY(DATE(Kalenderår+1,7,1),1),\"[$-414]aaa\")","v":"ma"},{"$f":"TEXT(WEEKDAY(DATE(Kalenderår+1,7,2),1),\"[$-414]aaa\")","v":"ti"},{"$f":"TEXT(WEEKDAY(DATE(Kalenderår+1,7,3),1),\"[$-414]aaa\")","v":"on"},{"$f":"TEXT(WEEKDAY(DATE(Kalenderår+1,7,4),1),\"[$-414]aaa\")","v":"to"},{"$f":"TEXT(WEEKDAY(DATE(Kalenderår+1,7,5),1),\"[$-414]aaa\")","v":"fr"},{"$f":"TEXT(WEEKDAY(DATE(Kalenderår+1,7,6),1),\"[$-414]aaa\")","v":"lø"},{"$f":"TEXT(WEEKDAY(DATE(Kalenderår+1,7,7),1),\"[$-414]aaa\")","v":"sø"},{"$f":"TEXT(WEEKDAY(DATE(Kalenderår+1,7,8),1),\"[$-414]aaa\")","v":"ma"},{"$f":"TEXT(WEEKDAY(DATE(Kalenderår+1,7,9),1),\"[$-414]aaa\")","v":"ti"},{"$f":"TEXT(WEEKDAY(DATE(Kalenderår+1,7,10),1),\"[$-414]aaa\")","v":"on"},{"$f":"TEXT(WEEKDAY(DATE(Kalenderår+1,7,11),1),\"[$-414]aaa\")","v":"to"},{"$f":"TEXT(WEEKDAY(DATE(Kalenderår+1,7,12),1),\"[$-414]aaa\")","v":"fr"},{"$f":"TEXT(WEEKDAY(DATE(Kalenderår+1,7,13),1),\"[$-414]aaa\")","v":"lø"},{"$f":"TEXT(WEEKDAY(DATE(Kalenderår+1,7,14),1),\"[$-414]aaa\")","v":"sø"},{"$f":"TEXT(WEEKDAY(DATE(Kalenderår+1,7,15),1),\"[$-414]aaa\")","v":"ma"},{"$f":"TEXT(WEEKDAY(DATE(Kalenderår+1,7,16),1),\"[$-414]aaa\")","v":"ti"},{"$f":"TEXT(WEEKDAY(DATE(Kalenderår+1,7,17),1),\"[$-414]aaa\")","v":"on"},{"$f":"TEXT(WEEKDAY(DATE(Kalenderår+1,7,18),1),\"[$-414]aaa\")","v":"to"},{"$f":"TEXT(WEEKDAY(DATE(Kalenderår+1,7,19),1),\"[$-414]aaa\")","v":"fr"},{"$f":"TEXT(WEEKDAY(DATE(Kalenderår+1,7,20),1),\"[$-414]aaa\")","v":"lø"},{"$f":"TEXT(WEEKDAY(DATE(Kalenderår+1,7,21),1),\"[$-414]aaa\")","v":"sø"},{"$f":"TEXT(WEEKDAY(DATE(Kalenderår+1,7,22),1),\"[$-414]aaa\")","v":"ma"},{"$f":"TEXT(WEEKDAY(DATE(Kalenderår+1,7,23),1),\"[$-414]aaa\")","v":"ti"},{"$f":"TEXT(WEEKDAY(DATE(Kalenderår+1,7,24),1),\"[$-414]aaa\")","v":"on"},{"$f":"TEXT(WEEKDAY(DATE(Kalenderår+1,7,25),1),\"[$-414]aaa\")","v":"to"},{"$f":"TEXT(WEEKDAY(DATE(Kalenderår+1,7,26),1),\"[$-414]aaa\")","v":"fr"},{"$f":"TEXT(WEEKDAY(DATE(Kalenderår+1,7,27),1),\"[$-414]aaa\")","v":"lø"},{"$f":"TEXT(WEEKDAY(DATE(Kalenderår+1,7,28),1),\"[$-414]aaa\")","v":"sø"},{"$f":"TEXT(WEEKDAY(DATE(Kalenderår+1,7,29),1),\"[$-414]aaa\")","v":"ma"},{"$f":"TEXT(WEEKDAY(DATE(Kalenderår+1,7,30),1),\"[$-414]aaa\")","v":"ti"},{"$f":"TEXT(WEEKDAY(DATE(Kalenderår+1,7,31),1),\"[$-414]aaa\")","v":"on"},"Totaler"]
[null,"Student-ID","Studentnavn","1","2","3","4","5","6","7","8","9","10","11","12","13","14","15","16","17","18","19","20","21","22","23","24","25","26","27","28","29","30","31","S","G","U","T","Fraværsdager"]
[null,null,{"$f":"IFERROR(VLOOKUP(JuliOppmøte[[#This Row],[Student-ID]],Studentliste[],18,FALSE),\"\")","v":""},{"$nulls":31},{"$f":"COUNTIF(JuliOppmøte[[#This Row],[1]:[31]],Kode1)","v":0},{"$f":"COUNTIF(JuliOppmøte[[#This Row],[1]:[31]],Kode2)","v":0},{"$f":"COUNTIF(JuliOppmøte[[#This Row],[1]:[31]],Kode3)","v":0},{"$f":"COUNTIF(JuliOppmøte[[#This Row],[1]:[31]],Kode4)","v":0},{"$f":"SUM(JuliOppmøte[[#This Row],[G]:[U]])","v":0}]
[null,null,{"$f":"IFERROR(VLOOKUP(JuliOppmøte[[#This Row],[Student-ID]],Studentliste[],18,FALSE),\"\")","v":""},{"$nulls":31},{"$f":"COUNTIF(JuliOppmøte[[#This Row],[1]:[31]],Kode1)","v":0},{"$f":"COUNTIF(JuliOppmøte[[#This Row],[1]:[31]],Kode2)","v":0},{"$f":"COUNTIF(JuliOppmøte[[#This Row],[1]:[31]],Kode3)","v":0},{"$f":"COUNTIF(JuliOppmøte[[#This Row],[1]:[31]],Kode4)","v":0},{"$f":"SUM(JuliOppmøte[[#This Row],[G]:[U]])","v":0}]
[null,null,{"$f":"IFERROR(VLOOKUP(JuliOppmøte[[#This Row],[Student-ID]],Studentliste[],18,FALSE),\"\")","v":""},{"$nulls":31},{"$f":"COUNTIF(JuliOppmøte[[#This Row],[1]:[31]],Kode1)","v":0},{"$f":"COUNTIF(JuliOppmøte[[#This Row],[1]:[31]],Kode2)","v":0},{"$f":"COUNTIF(JuliOppmøte[[#This Row],[1]:[31]],Kode3)","v":0},{"$f":"COUNTIF(JuliOppmøte[[#This Row],[1]:[31]],Kode4)","v":0},{"$f":"SUM(JuliOppmøte[[#This Row],[G]:[U]])","v":0}]
[null,null,{"$f":"IFERROR(VLOOKUP(JuliOppmøte[[#This Row],[Student-ID]],Studentliste[],18,FALSE),\"\")","v":""},{"$nulls":31},{"$f":"COUNTIF(JuliOppmøte[[#This Row],[1]:[31]],Kode1)","v":0},{"$f":"COUNTIF(JuliOppmøte[[#This Row],[1]:[31]],Kode2)","v":0},{"$f":"COUNTIF(JuliOppmøte[[#This Row],[1]:[31]],Kode3)","v":0},{"$f":"COUNTIF(JuliOppmøte[[#This Row],[1]:[31]],Kode4)","v":0},{"$f":"SUM(JuliOppmøte[[#This Row],[G]:[U]])","v":0}]
[null,null,{"$f":"IFERROR(VLOOKUP(JuliOppmøte[[#This Row],[Student-ID]],Studentliste[],18,FALSE),\"\")","v":""},{"$nulls":31},{"$f":"COUNTIF(JuliOppmøte[[#This Row],[1]:[31]],Kode1)","v":0},{"$f":"COUNTIF(JuliOppmøte[[#This Row],[1]:[31]],Kode2)","v":0},{"$f":"COUNTIF(JuliOppmøte[[#This Row],[1]:[31]],Kode3)","v":0},{"$f":"COUNTIF(JuliOppmøte[[#This Row],[1]:[31]],Kode4)","v":0},{"$f":"SUM(JuliOppmøte[[#This Row],[G]:[U]])","v":0}]
[null,null,"Totalt antall fraværsdager",{"$f":"COUNTIF(JuliOppmøte[1],\"U\")+COUNTIF(JuliOppmøte[1],\"G\")","v":0},{"$f":"COUNTIF(JuliOppmøte[2],\"U\")+COUNTIF(JuliOppmøte[2],\"G\")","v":0},{"$f":"COUNTIF(JuliOppmøte[3],\"U\")+COUNTIF(JuliOppmøte[3],\"G\")","v":0},{"$f":"COUNTIF(JuliOppmøte[4],\"U\")+COUNTIF(JuliOppmøte[4],\"G\")","v":0},{"$f":"COUNTIF(JuliOppmøte[5],\"U\")+COUNTIF(JuliOppmøte[5],\"G\")","v":0},{"$f":"COUNTIF(JuliOppmøte[6],\"U\")+COUNTIF(JuliOppmøte[6],\"G\")","v":0},{"$f":"COUNTIF(JuliOppmøte[7],\"U\")+COUNTIF(JuliOppmøte[7],\"G\")","v":0},{"$f":"COUNTIF(JuliOppmøte[8],\"U\")+COUNTIF(JuliOppmøte[8],\"G\")","v":0},{"$f":"COUNTIF(JuliOppmøte[9],\"U\")+COUNTIF(JuliOppmøte[9],\"G\")","v":0},{"$f":"COUNTIF(JuliOppmøte[10],\"U\")+COUNTIF(JuliOppmøte[10],\"G\")","v":0},{"$f":"COUNTIF(JuliOppmøte[11],\"U\")+COUNTIF(JuliOppmøte[11],\"G\")","v":0},{"$f":"COUNTIF(JuliOppmøte[12],\"U\")+COUNTIF(JuliOppmøte[12],\"G\")","v":0},{"$f":"COUNTIF(JuliOppmøte[13],\"U\")+COUNTIF(JuliOppmøte[13],\"G\")","v":0},{"$f":"COUNTIF(JuliOppmøte[14],\"U\")+COUNTIF(JuliOppmøte[14],\"G\")","v":0},{"$f":"COUNTIF(JuliOppmøte[15],\"U\")+COUNTIF(JuliOppmøte[15],\"G\")","v":0},{"$f":"COUNTIF(JuliOppmøte[16],\"U\")+COUNTIF(JuliOppmøte[16],\"G\")","v":0},{"$f":"COUNTIF(JuliOppmøte[17],\"U\")+COUNTIF(JuliOppmøte[17],\"G\")","v":0},{"$f":"COUNTIF(JuliOppmøte[18],\"U\")+COUNTIF(JuliOppmøte[18],\"G\")","v":0},{"$f":"COUNTIF(JuliOppmøte[19],\"U\")+COUNTIF(JuliOppmøte[19],\"G\")","v":0},{"$f":"COUNTIF(JuliOppmøte[20],\"U\")+COUNTIF(JuliOppmøte[20],\"G\")","v":0},{"$f":"COUNTIF(JuliOppmøte[21],\"U\")+COUNTIF(JuliOppmøte[21],\"G\")","v":0},{"$f":"COUNTIF(JuliOppmøte[22],\"U\")+COUNTIF(JuliOppmøte[22],\"G\")","v":0},{"$f":"COUNTIF(JuliOppmøte[23],\"U\")+COUNTIF(JuliOppmøte[23],\"G\")","v":0},{"$f":"COUNTIF(JuliOppmøte[24],\"U\")+COUNTIF(JuliOppmøte[24],\"G\")","v":0},{"$f":"COUNTIF(JuliOppmøte[25],\"U\")+COUNTIF(JuliOppmøte[25],\"G\")","v":0},{"$f":"COUNTIF(JuliOppmøte[26],\"U\")+COUNTIF(JuliOppmøte[26],\"G\")","v":0},{"$f":"COUNTIF(JuliOppmøte[27],\"U\")+COUNTIF(JuliOppmøte[27],\"G\")","v":0},{"$f":"COUNTIF(JuliOppmøte[28],\"U\")+COUNTIF(JuliOppmøte[28],\"G\")","v":0},{"$f":"COUNTIF(JuliOppmøte[29],\"U\")+COUNTIF(JuliOppmøte[29],\"G\")","v":0},{"$f":"COUNTIF(JuliOppmøte[30],\"U\")+COUNTIF(JuliOppmøte[30],\"G\")","v":0},{"$f":"COUNTIF(JuliOppmøte[31],\"U\")+COUNTIF(JuliOppmøte[31],\"G\")","v":0},{"$f":"SUBTOTAL(109,JuliOppmøte[S])","v":0},{"$f":"SUBTOTAL(109,JuliOppmøte[G])","v":0},{"$f":"SUBTOTAL(109,JuliOppmøte[U])","v":0},{"$f":"SUBTOTAL(109,JuliOppmøte[T])","v":0},{"$f":"SUBTOTAL(109,JuliOppmøte[Fraværsdager])","v":0}]

{"sheet":"Studentoppmøterapport","index":14,"n_rows":40,"n_cols":37,"rows_kept":40,"merged":[[2,3,2,14],[2,15,2,17],[2,18,2,21],[2,22,2,29],[2,30,2,31],[2,32,2,35],[3,1,3,2],[3,3,3,14],[3,15,3,17],[3,18,3,21],[3,22,3,29],[3,30,3,31],[3,32,3,35],[4,1,4,9],[4,10,4,21],[4,22,4,29],[4,30,4,36],[5,1,5,9],[5,10,5,21],[5,22,5,29],[5,30,5,36],[6,1,6,9],[6,10,6,21],[6,22,6,29],[6,30,6,36],[7,1,7,9],[7,10,7,21],[7,22,7,29],[7,30,7,36],[8,1,8,9],[8,10,8,21],[8,22,8,29],[8,30,8,36],[9,1,9,9],[9,10,9,21],[9,22,9,29],[9,30,9,36],[13,1,14,32],[13,33,13,36],[15,1,16,1],[15,33,16,33],[15,34,16,34],[15,35,16,35],[15,36,16,36],[17,1,18,1],[17,33,18,33],[17,34,18,34],[17,35,18,35],[17,36,18,36],[19,1,20,1],[19,33,20,33],[19,34,20,34],[19,35,20,35],[19,36,20,36],[21,1,22,1],[21,33,22,33],[21,34,22,34],[21,35,22,35],[21,36,22,36],[23,1,24,1],[23,33,24,33],[23,34,24,34],[23,35,24,35],[23,36,24,36],[25,1,26,1],[25,33,26,33],[25,34,26,34],[25,35,26,35],[25,36,26,36],[27,1,28,1],[27,33,28,33],[27,34,28,34],[27,35,28,35],[27,36,28,36],[29,1,30,1],[29,33,30,33],[29,34,30,34],[29,35,30,35],[29,36,30,36],[31,1,32,1],[31,33,32,33],[31,34,32,34],[31,35,32,35],[31,36,32,36],[33,1,34,1],[33,33,34,33],[33,34,34,34],[33,35,34,35],[33,36,34,36],[35,1,36,1],[35,33,36,33],[35,34,36,34],[35,35,36,35],[35,36,36,36],[37,1,38,1],[37,33,38,33],[37,34,38,34],[37,35,38,35],[37,36,38,36],[39,30,39,32]]}
[{"$f":"\"Oppmøterapport for \"","v":"Oppmøterapport for "},{"$nulls":6},{"$f":"D4","v":"Erik Andersen"}]
[]
[null,"Student-ID",null,"Studentnavn",{"$nulls":11},"Kjønn",null,null,"Fødselsdato",{"$nulls":3},"Skole",{"$nulls":7},"Karakter",null,"Lærer",{"$nulls":3},"Rom"]
[null,"S001",null,{"$f":"IFERROR(VLOOKUP(Studentoppslag,Studentliste[],18,FALSE),\"\")","v":"Erik Andersen"},{"$nulls":11},{"$f":"IFERROR(VLOOKUP(Studentoppslag,Studentliste[],4,FALSE),\"\")","v":"M"},null,null,{"$f":"IFERROR(VLOOKUP(Studentoppslag,Studentliste[],5,FALSE),\"\")","v":"1997-03-28"},{"$nulls":3},"Kunstakademiet ",{"$nulls":7},7,null,"Thomas Jensen",{"$nulls":3},123]
[null,"Navn på forelder/foresatt 1",{"$nulls":8},"Relasjon",{"$nulls":11},"Telefon, arbeid",{"$nulls":7},"Telefon, hjem"]
[null,{"$f":"IFERROR(VLOOKUP(Studentoppslag,Studentliste[],6,FALSE),\"\")","v":"Anne-Jorun"},{"$nulls":8},{"$f":"IFERROR(VLOOKUP(Studentoppslag,Studentliste[],7,FALSE),\"\")","v":"Andersen"},{"$nulls":11},{"$f":"IFERROR(VLOOKUP(Studentoppslag,Studentliste[],8,FALSE),\"\")","v":1235550134},{"$nulls":7},{"$f":"IFERROR(VLOOKUP(Studentoppslag,Studentliste[],9,FALSE),\"\")","v":2345550134}]
[null,"Navn på forelder/foresatt 2",{"$nulls":8},"Relasjon",{"$nulls":11},"Telefon, arbeid",{"$nulls":7},"Telefon, hjem"]
[null,{"$f":"IFERROR(VLOOKUP(Studentoppslag,Studentliste[],10,FALSE),\"\")","v":"Berg"},{"$nulls":8},{"$f":"IFERROR(VLOOKUP(Studentoppslag,Studentliste[],11,FALSE),\"\")","v":"Far"},{"$nulls":11},{"$f":"IFERROR(VLOOKUP(Studentoppslag,Studentliste[],12,FALSE),\"\")","v":1235550134},{"$nulls":7},{"$f":"IFERROR(VLOOKUP(Studentoppslag,Studentliste[],13,FALSE),\"\")","v":2345550134}]
[null,"Kontakt i nødsfall",{"$nulls":8},"Relasjon",{"$nulls":11},"Telefon, arbeid",{"$nulls":7},"Telefon, hjem"]
[null,{"$f":"IFERROR(VLOOKUP(Studentoppslag,Studentliste[],14,FALSE),\"\")","v":"Henrik Larsen"},{"$nulls":8},{"$f":"IFERROR(VLOOKUP(Studentoppslag,Studentliste[],15,FALSE),\"\")","v":"Bestefar"},{"$nulls":11},{"$f":"IFERROR(VLOOKUP(Studentoppslag,Studentliste[],16,FALSE),\"\")","v":7895550189},{"$nulls":7},{"$f":"IFERROR(VLOOKUP(Studentoppslag,Studentliste[],17,FALSE),\"\")","v":7895550134}]
[]
[null,{"$f":"August!C3","v":"FARGENØKKEL "},{"$f":"August!D3","v":"S"},{"$f":"August!E3","v":"Sen"},null,null,{"$f":"August!H3","v":"G"},{"$f":"August!I3","v":"Gyldig"},null,null,{"$f":"August!L3","v":"U"},{"$f":"August!M3","v":"Ugyldig"},{"$nulls":3},{"$f":"August!P3","v":"T"},{"$f":"August!Q3","v":"Tilstede"},null,null,{"$f":"August!T3","v":"F"},{"$f":"August!U3","v":"Skolefri"}]
[]
[null,"Oppmøte",{"$nulls":31},"Oppmøtetotaler"]
[{"$nulls":33},"S","G","U","T"]
[null,"August",1,2,3,4,5,6,7,8,9,10,11,12,13,14,15,16,17,18,19,20,21,22,23,24,25,26,27,28,29,30,31,{"$f":"COUNTIF($D17:$AH17,Kode1)","v":2},{"$f":"COUNTIF($D17:$AH17,Kode2)","v":1},{"$f":"COUNTIF($D17:$AH17,Kode3)","v":0},{"$f":"COUNTIF($D17:$AH17,Kode4)","v":19}]
[null,null,{"$f":"IFERROR(VLOOKUP(Studentoppslag,AugustOppmøte[],3,FALSE),\"\")","v":"T"},{"$f":"IFERROR(VLOOKUP(Studentoppslag,AugustOppmøte[],4,FALSE),\"\")","v":"T"},{"$f":"IFERROR(VLOOKUP(Studentoppslag,AugustOppmøte[],5,FALSE),\"\")","v":"S"},{"$f":"IFERROR(VLOOKUP(Studentoppslag,AugustOppmøte[],6,FALSE),\"\")","v":"S"},{"$f":"IFERROR(VLOOKUP(Studentoppslag,AugustOppmøte[],7,FALSE),\"\")","v":"T"},{"$f":"IFERROR(VLOOKUP(Studentoppslag,AugustOppmøte[],8,FALSE),\"\")","v":"F"},{"$f":"IFERROR(VLOOKUP(Studentoppslag,AugustOppmøte[],9,FALSE),\"\")","v":"F"},{"$f":"IFERROR(VLOOKUP(Studentoppslag,AugustOppmøte[],10,FALSE),\"\")","v":"T"},{"$f":"IFERROR(VLOOKUP(Studentoppslag,AugustOppmøte[],11,FALSE),\"\")","v":"T"},{"$f":"IFERROR(VLOOKUP(Studentoppslag,AugustOppmøte[],12,FALSE),\"\")","v":"G"},{"$f":"IFERROR(VLOOKUP(Studentoppslag,AugustOppmøte[],13,FALSE),\"\")","v":"T"},{"$f":"IFERROR(VLOOKUP(Studentoppslag,AugustOppmøte[],14,FALSE),\"\")","v":"T"},{"$f":"IFERROR(VLOOKUP(Studentoppslag,AugustOppmøte[],15,FALSE),\"\")","v":"F"},{"$f":"IFERROR(VLOOKUP(Studentoppslag,AugustOppmøte[],16,FALSE),\"\")","v":"F"},{"$f":"IFERROR(VLOOKUP(Studentoppslag,AugustOppmøte[],17,FALSE),\"\")","v":"T"},{"$f":"IFERROR(VLOOKUP(Studentoppslag,AugustOppmøte[],18,FALSE),\"\")","v":"T"},{"$f":"IFERROR(VLOOKUP(Studentoppslag,AugustOppmøte[],19,FALSE),\"\")","v":"T"},{"$f":"IFERROR(VLOOKUP(Studentoppslag,AugustOppmøte[],20,FALSE),\"\")","v":"T"},{"$f":"IFERROR(VLOOKUP(Studentoppslag,AugustOppmøte[],21,FALSE),\"\")","v":"T"},{"$f":"IFERROR(VLOOKUP(Studentoppslag,AugustOppmøte[],22,FALSE),\"\")","v":"F"},{"$f":"IFERROR(VLOOKUP(Studentoppslag,AugustOppmøte[],23,FALSE),\"\")","v":"F"},{"$f":"IFERROR(VLOOKUP(Studentoppslag,AugustOppmøte[],24,FALSE),\"\")","v":"T"},{"$f":"IFERROR(VLOOKUP(Studentoppslag,AugustOppmøte[],25,FALSE),\"\")","v":"T"},{"$f":"IFERROR(VLOOKUP(Studentoppslag,AugustOppmøte[],26,FALSE),\"\")","v":"T"},{"$f":"IFERROR(VLOOKUP(Studentoppslag,AugustOppmøte[],27,FALSE),\"\")","v":"T"},{"$f":"IFERROR(VLOOKUP(Studentoppslag,AugustOppmøte[],28,FALSE),\"\")","v":"T"},{"$f":"IFERROR(VLOOKUP(Studentoppslag,AugustOppmøte[],29,FALSE),\"\")","v":"F"},{"$f":"IFERROR(VLOOKUP(Studentoppslag,AugustOppmøte[],30,FALSE),\"\")","v":"F"},{"$f":"IFERROR(VLOOKUP(Studentoppslag,AugustOppmøte[],31,FALSE),\"\")","v":"T"},{"$f":"IFERROR(VLOOKUP(Studentoppslag,AugustOppmøte[],32,FALSE),\"\")","v":"T"},{"$f":"IFERROR(VLOOKUP(Studentoppslag,AugustOppmøte[],33,FALSE),\"\")","v":"T"}]
[null,"September",1,2,3,4,5,6,7,8,9,10,11,12,13,14,15,16,17,18,19,20,21,22,23,24,25,26,27,28,29,30,null,{"$f":"COUNTIF($D19:$AH19,Kode1)","v":0},{"$f":"COUNTIF($D19:$AH19,Kode2)","v":0},{"$f":"COUNTIF($D19:$AH19,Kode3)","v":0},{"$f":"COUNTIF($D19:$AH19,Kode4)","v":0}]
[null,null,{"$f":"IFERROR(VLOOKUP(Studentoppslag,SeptemberOppmøte[],3,FALSE),\"\")","v":""},{"$f":"IFERROR(VLOOKUP(Studentoppslag,SeptemberOppmøte[],4,FALSE),\"\")","v":""},{"$f":"IFERROR(VLOOKUP(Studentoppslag,SeptemberOppmøte[],5,FALSE),\"\")","v":""},{"$f":"IFERROR(VLOOKUP(Studentoppslag,SeptemberOppmøte[],6,FALSE),\"\")","v":""},{"$f":"IFERROR(VLOOKUP(Studentoppslag,SeptemberOppmøte[],7,FALSE),\"\")","v":""},{"$f":"IFERROR(VLOOKUP(Studentoppslag,SeptemberOppmøte[],8,FALSE),\"\")","v":""},{"$f":"IFERROR(VLOOKUP(Studentoppslag,SeptemberOppmøte[],9,FALSE),\"\")","v":""},{"$f":"IFERROR(VLOOKUP(Studentoppslag,SeptemberOppmøte[],10,FALSE),\"\")","v":""},{"$f":"IFERROR(VLOOKUP(Studentoppslag,SeptemberOppmøte[],11,FALSE),\"\")","v":""},{"$f":"IFERROR(VLOOKUP(Studentoppslag,SeptemberOppmøte[],12,FALSE),\"\")","v":""},{"$f":"IFERROR(VLOOKUP(Studentoppslag,SeptemberOppmøte[],13,FALSE),\"\")","v":""},{"$f":"IFERROR(VLOOKUP(Studentoppslag,SeptemberOppmøte[],14,FALSE),\"\")","v":""},{"$f":"IFERROR(VLOOKUP(Studentoppslag,SeptemberOppmøte[],15,FALSE),\"\")","v":""},{"$f":"IFERROR(VLOOKUP(Studentoppslag,SeptemberOppmøte[],16,FALSE),\"\")","v":""},{"$f":"IFERROR(VLOOKUP(Studentoppslag,SeptemberOppmøte[],17,FALSE),\"\")","v":""},{"$f":"IFERROR(VLOOKUP(Studentoppslag,SeptemberOppmøte[],18,FALSE),\"\")","v":""},{"$f":"IFERROR(VLOOKUP(Studentoppslag,SeptemberOppmøte[],19,FALSE),\"\")","v":""},{"$f":"IFERROR(VLOOKUP(Studentoppslag,SeptemberOppmøte[],20,FALSE),\"\")","v":""},{"$f":"IFERROR(VLOOKUP(Studentoppslag,SeptemberOppmøte[],21,FALSE),\"\")","v":""},{"$f":"IFERROR(VLOOKUP(Studentoppslag,SeptemberOppmøte[],22,FALSE),\"\")","v":""},{"$f":"IFERROR(VLOOKUP(Studentoppslag,SeptemberOppmøte[],23,FALSE),\"\")","v":""},{"$f":"IFERROR(VLOOKUP(Studentoppslag,SeptemberOppmøte[],24,FALSE),\"\")","v":""},{"$f":"IFERROR(VLOOKUP(Studentoppslag,SeptemberOppmøte[],25,FALSE),\"\")","v":""},{"$f":"IFERROR(VLOOKUP(Studentoppslag,SeptemberOppmøte[],26,FALSE),\"\")","v":""},{"$f":"IFERROR(VLOOKUP(Studentoppslag,SeptemberOppmøte[],27,FALSE),\"\")","v":""},{"$f":"IFERROR(VLOOKUP(Studentoppslag,SeptemberOppmøte[],28,FALSE),\"\")","v":""},{"$f":"IFERROR(VLOOKUP(Studentoppslag,SeptemberOppmøte[],29,FALSE),\"\")","v":""},{"$f":"IFERROR(VLOOKUP(Studentoppslag,SeptemberOppmøte[],30,FALSE),\"\")","v":""},{"$f":"IFERROR(VLOOKUP(Studentoppslag,SeptemberOppmøte[],31,FALSE),\"\")","v":""},{"$f":"IFERROR(VLOOKUP(Studentoppslag,SeptemberOppmøte[],32,FALSE),\"\")","v":""}]
[null,"Oktober",1,2,3,4,5,6,7,8,9,10,11,12,13,14,15,16,17,18,19,20,21,22,23,24,25,26,27,28,29,30,31,{"$f":"COUNTIF($D21:$AH21,Kode1)","v":0},{"$f":"COUNTIF($D21:$AH21,Kode2)","v":0},{"$f":"COUNTIF($D21:$AH21,Kode3)","v":0},{"$f":"COUNTIF($D21:$AH21,Kode4)","v":0}]
[null,null,{"$f":"IFERROR(VLOOKUP(Studentoppslag,OktoberOppmøte[],3,FALSE),\"\")","v":""},{"$f":"IFERROR(VLOOKUP(Studentoppslag,OktoberOppmøte[],4,FALSE),\"\")","v":""},{"$f":"IFERROR(VLOOKUP(Studentoppslag,OktoberOppmøte[],5,FALSE),\"\")","v":""},{"$f":"IFERROR(VLOOKUP(Studentoppslag,OktoberOppmøte[],6,FALSE),\"\")","v":""},{"$f":"IFERROR(VLOOKUP(Studentoppslag,OktoberOppmøte[],7,FALSE),\"\")","v":""},{"$f":"IFERROR(VLOOKUP(Studentoppslag,OktoberOppmøte[],8,FALSE),\"\")","v":""},{"$f":"IFERROR(VLOOKUP(Studentoppslag,OktoberOppmøte[],9,FALSE),\"\")","v":""},{"$f":"IFERROR(VLOOKUP(Studentoppslag,OktoberOppmøte[],10,FALSE),\"\")","v":""},{"$f":"IFERROR(VLOOKUP(Studentoppslag,OktoberOppmøte[],11,FALSE),\"\")","v":""},{"$f":"IFERROR(VLOOKUP(Studentoppslag,OktoberOppmøte[],12,FALSE),\"\")","v":""},{"$f":"IFERROR(VLOOKUP(Studentoppslag,OktoberOppmøte[],13,FALSE),\"\")","v":""},{"$f":"IFERROR(VLOOKUP(Studentoppslag,OktoberOppmøte[],14,FALSE),\"\")","v":""},{"$f":"IFERROR(VLOOKUP(Studentoppslag,OktoberOppmøte[],15,FALSE),\"\")","v":""},{"$f":"IFERROR(VLOOKUP(Studentoppslag,OktoberOppmøte[],16,FALSE),\"\")","v":""},{"$f":"IFERROR(VLOOKUP(Studentoppslag,OktoberOppmøte[],17,FALSE),\"\")","v":""},{"$f":"IFERROR(VLOOKUP(Studentoppslag,OktoberOppmøte[],18,FALSE),\"\")","v":""},{"$f":"IFERROR(VLOOKUP(Studentoppslag,OktoberOppmøte[],19,FALSE),\"\")","v":""},{"$f":"IFERROR(VLOOKUP(Studentoppslag,OktoberOppmøte[],20,FALSE),\"\")","v":""},{"$f":"IFERROR(VLOOKUP(Studentoppslag,OktoberOppmøte[],21,FALSE),\"\")","v":""},{"$f":"IFERROR(VLOOKUP(Studentoppslag,OktoberOppmøte[],22,FALSE),\"\")","v":""},{"$f":"IFERROR(VLOOKUP(Studentoppslag,OktoberOppmøte[],23,FALSE),\"\")","v":""},{"$f":"IFERROR(VLOOKUP(Studentoppslag,OktoberOppmøte[],24,FALSE),\"\")","v":""},{"$f":"IFERROR(VLOOKUP(Studentoppslag,OktoberOppmøte[],25,FALSE),\"\")","v":""},{"$f":"IFERROR(VLOOKUP(Studentoppslag,OktoberOppmøte[],26,FALSE),\"\")","v":""},{"$f":"IFERROR(VLOOKUP(Studentoppslag,OktoberOppmøte[],27,FALSE),\"\")","v":""},{"$f":"IFERROR(VLOOKUP(Studentoppslag,OktoberOppmøte[],28,FALSE),\"\")","v":""},{"$f":"IFERROR(VLOOKUP(Studentoppslag,OktoberOppmøte[],29,FALSE),\"\")","v":""},{"$f":"IFERROR(VLOOKUP(Studentoppslag,OktoberOppmøte[],30,FALSE),\"\")","v":""},{"$f":"IFERROR(VLOOKUP(Studentoppslag,OktoberOppmøte[],31,FALSE),\"\")","v":""},{"$f":"IFERROR(VLOOKUP(Studentoppslag,OktoberOppmøte[],32,FALSE),\"\")","v":""},{"$f":"IFERROR(VLOOKUP(Studentoppslag,OktoberOppmøte[],33,FALSE),\"\")","v":""}]
[null,"November",1,2,3,4,5,6,7,8,9,10,11,12,13,14,15,16,17,18,19,20,21,22,23,24,25,26,27,28,29,30,null,{"$f":"COUNTIF($D23:$AH23,Kode1)","v":0},{"$f":"COUNTIF($D23:$AH23,Kode2)","v":0},{"$f":"COUNTIF($D23:$AH23,Kode3)","v":0},{"$f":"COUNTIF($D23:$AH23,Kode4)","v":0}]
[null,null,{"$f":"IFERROR(VLOOKUP(Studentoppslag,NovemberOppmøte[],3,FALSE),\"\")","v":""},{"$f":"IFERROR(VLOOKUP(Studentoppslag,NovemberOppmøte[],4,FALSE),\"\")","v":""},{"$f":"IFERROR(VLOOKUP(Studentoppslag,NovemberOppmøte[],5,FALSE),\"\")","v":""},{"$f":"IFERROR(VLOOKUP(Studentoppslag,NovemberOppmøte[],6,FALSE),\"\")","v":""},{"$f":"IFERROR(VLOOKUP(Studentoppslag,NovemberOppmøte[],7,FALSE),\"\")","v":""},{"$f":"IFERROR(VLOOKUP(Studentoppslag,NovemberOppmøte[],8,FALSE),\"\")","v":""},{"$f":"IFERROR(VLOOKUP(Studentoppslag,NovemberOppmøte[],9,FALSE),\"\")","v":""},{"$f":"IFERROR(VLOOKUP(Studentoppslag,NovemberOppmøte[],10,FALSE),\"\")","v":""},{"$f":"IFERROR(VLOOKUP(Studentoppslag,NovemberOppmøte[],11,FALSE),\"\")","v":""},{"$f":"IFERROR(VLOOKUP(Studentoppslag,NovemberOppmøte[],12,FALSE),\"\")","v":""},{"$f":"IFERROR(VLOOKUP(Studentoppslag,NovemberOppmøte[],13,FALSE),\"\")","v":""},{"$f":"IFERROR(VLOOKUP(Studentoppslag,NovemberOppmøte[],14,FALSE),\"\")","v":""},{"$f":"IFERROR(VLOOKUP(Studentoppslag,NovemberOppmøte[],15,FALSE),\"\")","v":""},{"$f":"IFERROR(VLOOKUP(Studentoppslag,NovemberOppmøte[],16,FALSE),\"\")","v":""},{"$f":"IFERROR(VLOOKUP(Studentoppslag,NovemberOppmøte[],17,FALSE),\"\")","v":""},{"$f":"IFERROR(VLOOKUP(Studentoppslag,NovemberOppmøte[],18,FALSE),\"\")","v":""},{"$f":"IFERROR(VLOOKUP(Studentoppslag,NovemberOppmøte[],19,FALSE),\"\")","v":""},{"$f":"IFERROR(VLOOKUP(Studentoppslag,NovemberOppmøte[],20,FALSE),\"\")","v":""},{"$f":"IFERROR(VLOOKUP(Studentoppslag,NovemberOppmøte[],21,FALSE),\"\")","v":""},{"$f":"IFERROR(VLOOKUP(Studentoppslag,NovemberOppmøte[],22,FALSE),\"\")","v":""},{"$f":"IFERROR(VLOOKUP(Studentoppslag,NovemberOppmøte[],23,FALSE),\"\")","v":""},{"$f":"IFERROR(VLOOKUP(Studentoppslag,NovemberOppmøte[],24,FALSE),\"\")","v":""},{"$f":"IFERROR(VLOOKUP(Studentoppslag,NovemberOppmøte[],25,FALSE),\"\")","v":""},{"$f":"IFERROR(VLOOKUP(Studentoppslag,NovemberOppmøte[],26,FALSE),\"\")","v":""},{"$f":"IFERROR(VLOOKUP(Studentoppslag,NovemberOppmøte[],27,FALSE),\"\")","v":""},{"$f":"IFERROR(VLOOKUP(Studentoppslag,NovemberOppmøte[],28,FALSE),\"\")","v":""},{"$f":"IFERROR(VLOOKUP(Studentoppslag,NovemberOppmøte[],29,FALSE),\"\")","v":""},{"$f":"IFERROR(VLOOKUP(Studentoppslag,NovemberOppmøte[],30,FALSE),\"\")","v":""},{"$f":"IFERROR(VLOOKUP(Studentoppslag,NovemberOppmøte[],31,FALSE),\"\")","v":""},{"$f":"IFERROR(VLOOKUP(Studentoppslag,NovemberOppmøte[],32,FALSE),\"\")","v":""}]
[null,"Desember",1,2,3,4,5,6,7,8,9,10,11,12,13,14,15,16,17,18,19,20,21,22,23,24,25,26,27,28,29,30,31,{"$f":"COUNTIF($D25:$AH25,Kode1)","v":0},{"$f":"COUNTIF($D25:$AH25,Kode2)","v":0},{"$f":"COUNTIF($D25:$AH25,Kode3)","v":0},{"$f":"COUNTIF($D25:$AH25,Kode4)","v":0}]
[null,null,{"$f":"IFERROR(VLOOKUP(Studentoppslag,DesemberOppmøte[],3,FALSE),\"\")","v":""},{"$f":"IFERROR(VLOOKUP(Studentoppslag,DesemberOppmøte[],4,FALSE),\"\")","v":""},{"$f":"IFERROR(VLOOKUP(Studentoppslag,DesemberOppmøte[],5,FALSE),\"\")","v":""},{"$f":"IFERROR(VLOOKUP(Studentoppslag,DesemberOppmøte[],6,FALSE),\"\")","v":""},{"$f":"IFERROR(VLOOKUP(Studentoppslag,DesemberOppmøte[],7,FALSE),\"\")","v":""},{"$f":"IFERROR(VLOOKUP(Studentoppslag,DesemberOppmøte[],8,FALSE),\"\")","v":""},{"$f":"IFERROR(VLOOKUP(Studentoppslag,DesemberOppmøte[],9,FALSE),\"\")","v":""},{"$f":"IFERROR(VLOOKUP(Studentoppslag,DesemberOppmøte[],10,FALSE),\"\")","v":""},{"$f":"IFERROR(VLOOKUP(Studentoppslag,DesemberOppmøte[],11,FALSE),\"\")","v":""},{"$f":"IFERROR(VLOOKUP(Studentoppslag,DesemberOppmøte[],12,FALSE),\"\")","v":""},{"$f":"IFERROR(VLOOKUP(Studentoppslag,DesemberOppmøte[],13,FALSE),\"\")","v":""},{"$f":"IFERROR(VLOOKUP(Studentoppslag,DesemberOppmøte[],14,FALSE),\"\")","v":""},{"$f":"IFERROR(VLOOKUP(Studentoppslag,DesemberOppmøte[],15,FALSE),\"\")","v":""},{"$f":"IFERROR(VLOOKUP(Studentoppslag,DesemberOppmøte[],16,FALSE),\"\")","v":""},{"$f":"IFERROR(VLOOKUP(Studentoppslag,DesemberOppmøte[],17,FALSE),\"\")","v":""},{"$f":"IFERROR(VLOOKUP(Studentoppslag,DesemberOppmøte[],18,FALSE),\"\")","v":""},{"$f":"IFERROR(VLOOKUP(Studentoppslag,DesemberOppmøte[],19,FALSE),\"\")","v":""},{"$f":"IFERROR(VLOOKUP(Studentoppslag,DesemberOppmøte[],20,FALSE),\"\")","v":""},{"$f":"IFERROR(VLOOKUP(Studentoppslag,DesemberOppmøte[],21,FALSE),\"\")","v":""},{"$f":"IFERROR(VLOOKUP(Studentoppslag,DesemberOppmøte[],22,FALSE),\"\")","v":""},{"$f":"IFERROR(VLOOKUP(Studentoppslag,DesemberOppmøte[],23,FALSE),\"\")","v":""},{"$f":"IFERROR(VLOOKUP(Studentoppslag,DesemberOppmøte[],24,FALSE),\"\")","v":""},{"$f":"IFERROR(VLOOKUP(Studentoppslag,DesemberOppmøte[],25,FALSE),\"\")","v":""},{"$f":"IFERROR(VLOOKUP(Studentoppslag,DesemberOppmøte[],26,FALSE),\"\")","v":""},{"$f":"IFERROR(VLOOKUP(Studentoppslag,DesemberOppmøte[],27,FALSE),\"\")","v":""},{"$f":"IFERROR(VLOOKUP(Studentoppslag,DesemberOppmøte[],28,FALSE),\"\")","v":""},{"$f":"IFERROR(VLOOKUP(Studentoppslag,DesemberOppmøte[],29,FALSE),\"\")","v":""},{"$f":"IFERROR(VLOOKUP(Studentoppslag,DesemberOppmøte[],30,FALSE),\"\")","v":""},{"$f":"IFERROR(VLOOKUP(Studentoppslag,DesemberOppmøte[],31,FALSE),\"\")","v":""},{"$f":"IFERROR(VLOOKUP(Studentoppslag,DesemberOppmøte[],32,FALSE),\"\")","v":""},{"$f":"IFERROR(VLOOKUP(Studentoppslag,DesemberOppmøte[],33,FALSE),\"\")","v":""}]
[null,"Januar",1,2,3,4,5,6,7,8,9,10,11,12,13,14,15,16,17,18,19,20,21,22,23,24,25,26,27,28,29,30,31,{"$f":"COUNTIF($D27:$AH27,Kode1)","v":0},{"$f":"COUNTIF($D27:$AH27,Kode2)","v":0},{"$f":"COUNTIF($D27:$AH27,Kode3)","v":0},{"$f":"COUNTIF($D27:$AH27,Kode4)","v":0}]
[null,null,{"$f":"IFERROR(VLOOKUP(Studentoppslag,JanuarOppmøte[],3,FALSE),\"\")","v":""},{"$f":"IFERROR(VLOOKUP(Studentoppslag,JanuarOppmøte[],4,FALSE),\"\")","v":""},{"$f":"IFERROR(VLOOKUP(Studentoppslag,JanuarOppmøte[],5,FALSE),\"\")","v":""},{"$f":"IFERROR(VLOOKUP(Studentoppslag,JanuarOppmøte[],6,FALSE),\"\")","v":""},{"$f":"IFERROR(VLOOKUP(Studentoppslag,JanuarOppmøte[],7,FALSE),\"\")","v":""},{"$f":"IFERROR(VLOOKUP(Studentoppslag,JanuarOppmøte[],8,FALSE),\"\")","v":""},{"$f":"IFERROR(VLOOKUP(Studentoppslag,JanuarOppmøte[],9,FALSE),\"\")","v":""},{"$f":"IFERROR(VLOOKUP(Studentoppslag,JanuarOppmøte[],10,FALSE),\"\")","v":""},{"$f":"IFERROR(VLOOKUP(Studentoppslag,JanuarOppmøte[],11,FALSE),\"\")","v":""},{"$f":"IFERROR(VLOOKUP(Studentoppslag,JanuarOppmøte[],12,FALSE),\"\")","v":""},{"$f":"IFERROR(VLOOKUP(Studentoppslag,JanuarOppmøte[],13,FALSE),\"\")","v":""},{"$f":"IFERROR(VLOOKUP(Studentoppslag,JanuarOppmøte[],14,FALSE),\"\")","v":""},{"$f":"IFERROR(VLOOKUP(Studentoppslag,JanuarOppmøte[],15,FALSE),\"\")","v":""},{"$f":"IFERROR(VLOOKUP(Studentoppslag,JanuarOppmøte[],16,FALSE),\"\")","v":""},{"$f":"IFERROR(VLOOKUP(Studentoppslag,JanuarOppmøte[],17,FALSE),\"\")","v":""},{"$f":"IFERROR(VLOOKUP(Studentoppslag,JanuarOppmøte[],18,FALSE),\"\")","v":""},{"$f":"IFERROR(VLOOKUP(Studentoppslag,JanuarOppmøte[],19,FALSE),\"\")","v":""},{"$f":"IFERROR(VLOOKUP(Studentoppslag,JanuarOppmøte[],20,FALSE),\"\")","v":""},{"$f":"IFERROR(VLOOKUP(Studentoppslag,JanuarOppmøte[],21,FALSE),\"\")","v":""},{"$f":"IFERROR(VLOOKUP(Studentoppslag,JanuarOppmøte[],22,FALSE),\"\")","v":""},{"$f":"IFERROR(VLOOKUP(Studentoppslag,JanuarOppmøte[],23,FALSE),\"\")","v":""},{"$f":"IFERROR(VLOOKUP(Studentoppslag,JanuarOppmøte[],24,FALSE),\"\")","v":""},{"$f":"IFERROR(VLOOKUP(Studentoppslag,JanuarOppmøte[],25,FALSE),\"\")","v":""},{"$f":"IFERROR(VLOOKUP(Studentoppslag,JanuarOppmøte[],26,FALSE),\"\")","v":""},{"$f":"IFERROR(VLOOKUP(Studentoppslag,JanuarOppmøte[],27,FALSE),\"\")","v":""},{"$f":"IFERROR(VLOOKUP(Studentoppslag,JanuarOppmøte[],28,FALSE),\"\")","v":""},{"$f":"IFERROR(VLOOKUP(Studentoppslag,JanuarOppmøte[],29,FALSE),\"\")","v":""},{"$f":"IFERROR(VLOOKUP(Studentoppslag,JanuarOppmøte[],30,FALSE),\"\")","v":""},{"$f":"IFERROR(VLOOKUP(Studentoppslag,JanuarOppmøte[],31,FALSE),\"\")","v":""},{"$f":"IFERROR(VLOOKUP(Studentoppslag,JanuarOppmøte[],32,FALSE),\"\")","v":""},{"$f":"IFERROR(VLOOKUP(Studentoppslag,JanuarOppmøte[],33,FALSE),\"\")","v":""}]
[null,"Februar",1,2,3,4,5,6,7,8,9,10,11,12,13,14,15,16,17,18,19,20,21,22,23,24,25,26,27,28,29,null,null,{"$f":"COUNTIF($D29:$AH29,Kode1)","v":0},{"$f":"COUNTIF($D29:$AH29,Kode2)","v":0},{"$f":"COUNTIF($D29:$AH29,Kode3)","v":0},{"$f":"COUNTIF($D29:$AH29,Kode4)","v":0}]
[null,null,{"$f":"IFERROR(VLOOKUP(Studentoppslag,FebruarOppmøte[],3,FALSE),\"\")","v":""},{"$f":"IFERROR(VLOOKUP(Studentoppslag,FebruarOppmøte[],4,FALSE),\"\")","v":""},{"$f":"IFERROR(VLOOKUP(Studentoppslag,FebruarOppmøte[],5,FALSE),\"\")","v":""},{"$f":"IFERROR(VLOOKUP(Studentoppslag,FebruarOppmøte[],6,FALSE),\"\")","v":""},{"$f":"IFERROR(VLOOKUP(Studentoppslag,FebruarOppmøte[],7,FALSE),\"\")","v":""},{"$f":"IFERROR(VLOOKUP(Studentoppslag,FebruarOppmøte[],8,FALSE),\"\")","v":""},{"$f":"IFERROR(VLOOKUP(Studentoppslag,FebruarOppmøte[],9,FALSE),\"\")","v":""},{"$f":"IFERROR(VLOOKUP(Studentoppslag,FebruarOppmøte[],10,FALSE),\"\")","v":""},{"$f":"IFERROR(VLOOKUP(Studentoppslag,FebruarOppmøte[],11,FALSE),\"\")","v":""},{"$f":"IFERROR(VLOOKUP(Studentoppslag,FebruarOppmøte[],12,FALSE),\"\")","v":""},{"$f":"IFERROR(VLOOKUP(Studentoppslag,FebruarOppmøte[],13,FALSE),\"\")","v":""},{"$f":"IFERROR(VLOOKUP(Studentoppslag,FebruarOppmøte[],14,FALSE),\"\")","v":""},{"$f":"IFERROR(VLOOKUP(Studentoppslag,FebruarOppmøte[],15,FALSE),\"\")","v":""},{"$f":"IFERROR(VLOOKUP(Studentoppslag,FebruarOppmøte[],16,FALSE),\"\")","v":""},{"$f":"IFERROR(VLOOKUP(Studentoppslag,FebruarOppmøte[],17,FALSE),\"\")","v":""},{"$f":"IFERROR(VLOOKUP(Studentoppslag,FebruarOppmøte[],18,FALSE),\"\")","v":""},{"$f":"IFERROR(VLOOKUP(Studentoppslag,FebruarOppmøte[],19,FALSE),\"\")","v":""},{"$f":"IFERROR(VLOOKUP(Studentoppslag,FebruarOppmøte[],20,FALSE),\"\")","v":""},{"$f":"IFERROR(VLOOKUP(Studentoppslag,FebruarOppmøte[],21,FALSE),\"\")","v":""},{"$f":"IFERROR(VLOOKUP(Studentoppslag,FebruarOppmøte[],22,FALSE),\"\")","v":""},{"$f":"IFERROR(VLOOKUP(Studentoppslag,FebruarOppmøte[],23,FALSE),\"\")","v":""},{"$f":"IFERROR(VLOOKUP(Studentoppslag,FebruarOppmøte[],24,FALSE),\"\")","v":""},{"$f":"IFERROR(VLOOKUP(Studentoppslag,FebruarOppmøte[],25,FALSE),\"\")","v":""},{"$f":"IFERROR(VLOOKUP(Studentoppslag,FebruarOppmøte[],26,FALSE),\"\")","v":""},{"$f":"IFERROR(VLOOKUP(Studentoppslag,FebruarOppmøte[],27,FALSE),\"\")","v":""},{"$f":"IFERROR(VLOOKUP(Studentoppslag,FebruarOppmøte[],28,FALSE),\"\")","v":""},{"$f":"IFERROR(VLOOKUP(Studentoppslag,FebruarOppmøte[],29,FALSE),\"\")","v":""},{"$f":"IFERROR(VLOOKUP(Studentoppslag,FebruarOppmøte[],30,FALSE),\"\")","v":""},{"$f":"IFERROR(VLOOKUP(Studentoppslag,FebruarOppmøte[],31,FALSE),\"\")","v":""}]
[null,"Mars",1,2,3,4,5,6,7,8,9,10,11,12,13,14,15,16,17,18,19,20,21,22,23,24,25,26,27,28,29,30,31,{"$f":"COUNTIF($D31:$AH31,Kode1)","v":0},{"$f":"COUNTIF($D31:$AH31,Kode2)","v":0},{"$f":"COUNTIF($D31:$AH31,Kode3)","v":0},{"$f":"COUNTIF($D31:$AH31,Kode4)","v":0}]
[null,null,{"$f":"IFERROR(VLOOKUP(Studentoppslag,MarsOppmøte[],3,FALSE),\"\")","v":""},{"$f":"IFERROR(VLOOKUP(Studentoppslag,MarsOppmøte[],4,FALSE),\"\")","v":""},{"$f":"IFERROR(VLOOKUP(Studentoppslag,MarsOppmøte[],5,FALSE),\"\")","v":""},{"$f":"IFERROR(VLOOKUP(Studentoppslag,MarsOppmøte[],6,FALSE),\"\")","v":""},{"$f":"IFERROR(VLOOKUP(Studentoppslag,MarsOppmøte[],7,FALSE),\"\")","v":""},{"$f":"IFERROR(VLOOKUP(Studentoppslag,MarsOppmøte[],8,FALSE),\"\")","v":""},{"$f":"IFERROR(VLOOKUP(Studentoppslag,MarsOppmøte[],9,FALSE),\"\")","v":""},{"$f":"IFERROR(VLOOKUP(Studentoppslag,MarsOppmøte[],10,FALSE),\"\")","v":""},{"$f":"IFERROR(VLOOKUP(Studentoppslag,MarsOppmøte[],11,FALSE),\"\")","v":""},{"$f":"IFERROR(VLOOKUP(Studentoppslag,MarsOppmøte[],12,FALSE),\"\")","v":""},{"$f":"IFERROR(VLOOKUP(Studentoppslag,MarsOppmøte[],13,FALSE),\"\")","v":""},{"$f":"IFERROR(VLOOKUP(Studentoppslag,MarsOppmøte[],14,FALSE),\"\")","v":""},{"$f":"IFERROR(VLOOKUP(Studentoppslag,MarsOppmøte[],15,FALSE),\"\")","v":""},{"$f":"IFERROR(VLOOKUP(Studentoppslag,MarsOppmøte[],16,FALSE),\"\")","v":""},{"$f":"IFERROR(VLOOKUP(Studentoppslag,MarsOppmøte[],17,FALSE),\"\")","v":""},{"$f":"IFERROR(VLOOKUP(Studentoppslag,MarsOppmøte[],18,FALSE),\"\")","v":""},{"$f":"IFERROR(VLOOKUP(Studentoppslag,MarsOppmøte[],19,FALSE),\"\")","v":""},{"$f":"IFERROR(VLOOKUP(Studentoppslag,MarsOppmøte[],20,FALSE),\"\")","v":""},{"$f":"IFERROR(VLOOKUP(Studentoppslag,MarsOppmøte[],21,FALSE),\"\")","v":""},{"$f":"IFERROR(VLOOKUP(Studentoppslag,MarsOppmøte[],22,FALSE),\"\")","v":""},{"$f":"IFERROR(VLOOKUP(Studentoppslag,MarsOppmøte[],23,FALSE),\"\")","v":""},{"$f":"IFERROR(VLOOKUP(Studentoppslag,MarsOppmøte[],24,FALSE),\"\")","v":""},{"$f":"IFERROR(VLOOKUP(Studentoppslag,MarsOppmøte[],25,FALSE),\"\")","v":""},{"$f":"IFERROR(VLOOKUP(Studentoppslag,MarsOppmøte[],26,FALSE),\"\")","v":""},{"$f":"IFERROR(VLOOKUP(Studentoppslag,MarsOppmøte[],27,FALSE),\"\")","v":""},{"$f":"IFERROR(VLOOKUP(Studentoppslag,MarsOppmøte[],28,FALSE),\"\")","v":""},{"$f":"IFERROR(VLOOKUP(Studentoppslag,MarsOppmøte[],29,FALSE),\"\")","v":""},{"$f":"IFERROR(VLOOKUP(Studentoppslag,MarsOppmøte[],30,FALSE),\"\")","v":""},{"$f":"IFERROR(VLOOKUP(Studentoppslag,MarsOppmøte[],31,FALSE),\"\")","v":""},{"$f":"IFERROR(VLOOKUP(Studentoppslag,MarsOppmøte[],32,FALSE),\"\")","v":""},{"$f":"IFERROR(VLOOKUP(Studentoppslag,MarsOppmøte[],33,FALSE),\"\")","v":""}]
[null,"April",1,2,3,4,5,6,7,8,9,10,11,12,13,14,15,16,17,18,19,20,21,22,23,24,25,26,27,28,29,30,null,{"$f":"COUNTIF($D33:$AH33,Kode1)","v":0},{"$f":"COUNTIF($D33:$AH33,Kode2)","v":0},{"$f":"COUNTIF($D33:$AH33,Kode3)","v":0},{"$f":"COUNTIF($D33:$AH33,Kode4)","v":0}]
[null,null,{"$f":"IFERROR(VLOOKUP(Studentoppslag,AprilOppmøte[],3,FALSE),\"\")","v":""},{"$f":"IFERROR(VLOOKUP(Studentoppslag,AprilOppmøte[],4,FALSE),\"\")","v":""},{"$f":"IFERROR(VLOOKUP(Studentoppslag,AprilOppmøte[],5,FALSE),\"\")","v":""},{"$f":"IFERROR(VLOOKUP(Studentoppslag,AprilOppmøte[],6,FALSE),\"\")","v":""},{"$f":"IFERROR(VLOOKUP(Studentoppslag,AprilOppmøte[],7,FALSE),\"\")","v":""},{"$f":"IFERROR(VLOOKUP(Studentoppslag,AprilOppmøte[],8,FALSE),\"\")","v":""},{"$f":"IFERROR(VLOOKUP(Studentoppslag,AprilOppmøte[],9,FALSE),\"\")","v":""},{"$f":"IFERROR(VLOOKUP(Studentoppslag,AprilOppmøte[],10,FALSE),\"\")","v":""},{"$f":"IFERROR(VLOOKUP(Studentoppslag,AprilOppmøte[],11,FALSE),\"\")","v":""},{"$f":"IFERROR(VLOOKUP(Studentoppslag,AprilOppmøte[],12,FALSE),\"\")","v":""},{"$f":"IFERROR(VLOOKUP(Studentoppslag,AprilOppmøte[],13,FALSE),\"\")","v":""},{"$f":"IFERROR(VLOOKUP(Studentoppslag,AprilOppmøte[],14,FALSE),\"\")","v":""},{"$f":"IFERROR(VLOOKUP(Studentoppslag,AprilOppmøte[],15,FALSE),\"\")","v":""},{"$f":"IFERROR(VLOOKUP(Studentoppslag,AprilOppmøte[],16,FALSE),\"\")","v":""},{"$f":"IFERROR(VLOOKUP(Studentoppslag,AprilOppmøte[],17,FALSE),\"\")","v":""},{"$f":"IFERROR(VLOOKUP(Studentoppslag,AprilOppmøte[],18,FALSE),\"\")","v":""},{"$f":"IFERROR(VLOOKUP(Studentoppslag,AprilOppmøte[],19,FALSE),\"\")","v":""},{"$f":"IFERROR(VLOOKUP(Studentoppslag,AprilOppmøte[],20,FALSE),\"\")","v":""},{"$f":"IFERROR(VLOOKUP(Studentoppslag,AprilOppmøte[],21,FALSE),\"\")","v":""},{"$f":"IFERROR(VLOOKUP(Studentoppslag,AprilOppmøte[],22,FALSE),\"\")","v":""},{"$f":"IFERROR(VLOOKUP(Studentoppslag,AprilOppmøte[],23,FALSE),\"\")","v":""},{"$f":"IFERROR(VLOOKUP(Studentoppslag,AprilOppmøte[],24,FALSE),\"\")","v":""},{"$f":"IFERROR(VLOOKUP(Studentoppslag,AprilOppmøte[],25,FALSE),\"\")","v":""},{"$f":"IFERROR(VLOOKUP(Studentoppslag,AprilOppmøte[],26,FALSE),\"\")","v":""},{"$f":"IFERROR(VLOOKUP(Studentoppslag,AprilOppmøte[],27,FALSE),\"\")","v":""},{"$f":"IFERROR(VLOOKUP(Studentoppslag,AprilOppmøte[],28,FALSE),\"\")","v":""},{"$f":"IFERROR(VLOOKUP(Studentoppslag,AprilOppmøte[],29,FALSE),\"\")","v":""},{"$f":"IFERROR(VLOOKUP(Studentoppslag,AprilOppmøte[],30,FALSE),\"\")","v":""},{"$f":"IFERROR(VLOOKUP(Studentoppslag,AprilOppmøte[],31,FALSE),\"\")","v":""},{"$f":"IFERROR(VLOOKUP(Studentoppslag,AprilOppmøte[],32,FALSE),\"\")","v":""}]
[null,"Mai",1,2,3,4,5,6,7,8,9,10,11,12,13,14,15,16,17,18,19,20,21,22,23,24,25,26,27,28,29,30,31,{"$f":"COUNTIF($D35:$AH35,Kode1)","v":0},{"$f":"COUNTIF($D35:$AH35,Kode2)","v":0},{"$f":"COUNTIF($D35:$AH35,Kode3)","v":0},{"$f":"COUNTIF($D35:$AH35,Kode4)","v":0}]
[null,null,{"$f":"IFERROR(VLOOKUP(Studentoppslag,MaiOppmøte[],3,FALSE),\"\")","v":""},{"$f":"IFERROR(VLOOKUP(Studentoppslag,MaiOppmøte[],4,FALSE),\"\")","v":""},{"$f":"IFERROR(VLOOKUP(Studentoppslag,MaiOppmøte[],5,FALSE),\"\")","v":""},{"$f":"IFERROR(VLOOKUP(Studentoppslag,MaiOppmøte[],6,FALSE),\"\")","v":""},{"$f":"IFERROR(VLOOKUP(Studentoppslag,MaiOppmøte[],7,FALSE),\"\")","v":""},{"$f":"IFERROR(VLOOKUP(Studentoppslag,MaiOppmøte[],8,FALSE),\"\")","v":""},{"$f":"IFERROR(VLOOKUP(Studentoppslag,MaiOppmøte[],9,FALSE),\"\")","v":""},{"$f":"IFERROR(VLOOKUP(Studentoppslag,MaiOppmøte[],10,FALSE),\"\")","v":""},{"$f":"IFERROR(VLOOKUP(Studentoppslag,MaiOppmøte[],11,FALSE),\"\")","v":""},{"$f":"IFERROR(VLOOKUP(Studentoppslag,MaiOppmøte[],12,FALSE),\"\")","v":""},{"$f":"IFERROR(VLOOKUP(Studentoppslag,MaiOppmøte[],13,FALSE),\"\")","v":""},{"$f":"IFERROR(VLOOKUP(Studentoppslag,MaiOppmøte[],14,FALSE),\"\")","v":""},{"$f":"IFERROR(VLOOKUP(Studentoppslag,MaiOppmøte[],15,FALSE),\"\")","v":""},{"$f":"IFERROR(VLOOKUP(Studentoppslag,MaiOppmøte[],16,FALSE),\"\")","v":""},{"$f":"IFERROR(VLOOKUP(Studentoppslag,MaiOppmøte[],17,FALSE),\"\")","v":""},{"$f":"IFERROR(VLOOKUP(Studentoppslag,MaiOppmøte[],18,FALSE),\"\")","v":""},{"$f":"IFERROR(VLOOKUP(Studentoppslag,MaiOppmøte[],19,FALSE),\"\")","v":""},{"$f":"IFERROR(VLOOKUP(Studentoppslag,MaiOppmøte[],20,FALSE),\"\")","v":""},{"$f":"IFERROR(VLOOKUP(Studentoppslag,MaiOppmøte[],21,FALSE),\"\")","v":""},{"$f":"IFERROR(VLOOKUP(Studentoppslag,MaiOppmøte[],22,FALSE),\"\")","v":""},{"$f":"IFERROR(VLOOKUP(Studentoppslag,MaiOppmøte[],23,FALSE),\"\")","v":""},{"$f":"IFERROR(VLOOKUP(Studentoppslag,MaiOppmøte[],24,FALSE),\"\")","v":""},{"$f":"IFERROR(VLOOKUP(Studentoppslag,MaiOppmøte[],25,FALSE),\"\")","v":""},{"$f":"IFERROR(VLOOKUP(Studentoppslag,MaiOppmøte[],26,FALSE),\"\")","v":""},{"$f":"IFERROR(VLOOKUP(Studentoppslag,MaiOppmøte[],27,FALSE),\"\")","v":""},{"$f":"IFERROR(VLOOKUP(Studentoppslag,MaiOppmøte[],28,FALSE),\"\")","v":""},{"$f":"IFERROR(VLOOKUP(Studentoppslag,MaiOppmøte[],29,FALSE),\"\")","v":""},{"$f":"IFERROR(VLOOKUP(Studentoppslag,MaiOppmøte[],30,FALSE),\"\")","v":""},{"$f":"IFERROR(VLOOKUP(Studentoppslag,MaiOppmøte[],31,FALSE),\"\")","v":""},{"$f":"IFERROR(VLOOKUP(Studentoppslag,MaiOppmøte[],32,FALSE),\"\")","v":""},{"$f":"IFERROR(VLOOKUP(Studentoppslag,MaiOppmøte[],33,FALSE),\"\")","v":""}]
[null,"Juni",1,2,3,4,5,6,7,8,9,10,11,12,13,14,15,16,17,18,19,20,21,22,23,24,25,26,27,28,29,30,null,{"$f":"COUNTIF($D37:$AH37,Kode1)","v":0},{"$f":"COUNTIF($D37:$AH37,Kode2)","v":0},{"$f":"COUNTIF($D37:$AH37,Kode3)","v":0},{"$f":"COUNTIF($D37:$AH37,Kode4)","v":0}]
[null,null,{"$f":"IFERROR(VLOOKUP(Studentoppslag,JuniOppmøte[],3,FALSE),\"\")","v":""},{"$f":"IFERROR(VLOOKUP(Studentoppslag,JuniOppmøte[],4,FALSE),\"\")","v":""},{"$f":"IFERROR(VLOOKUP(Studentoppslag,JuniOppmøte[],5,FALSE),\"\")","v":""},{"$f":"IFERROR(VLOOKUP(Studentoppslag,JuniOppmøte[],6,FALSE),\"\")","v":""},{"$f":"IFERROR(VLOOKUP(Studentoppslag,JuniOppmøte[],7,FALSE),\"\")","v":""},{"$f":"IFERROR(VLOOKUP(Studentoppslag,JuniOppmøte[],8,FALSE),\"\")","v":""},{"$f":"IFERROR(VLOOKUP(Studentoppslag,JuniOppmøte[],9,FALSE),\"\")","v":""},{"$f":"IFERROR(VLOOKUP(Studentoppslag,JuniOppmøte[],10,FALSE),\"\")","v":""},{"$f":"IFERROR(VLOOKUP(Studentoppslag,JuniOppmøte[],11,FALSE),\"\")","v":""},{"$f":"IFERROR(VLOOKUP(Studentoppslag,JuniOppmøte[],12,FALSE),\"\")","v":""},{"$f":"IFERROR(VLOOKUP(Studentoppslag,JuniOppmøte[],13,FALSE),\"\")","v":""},{"$f":"IFERROR(VLOOKUP(Studentoppslag,JuniOppmøte[],14,FALSE),\"\")","v":""},{"$f":"IFERROR(VLOOKUP(Studentoppslag,JuniOppmøte[],15,FALSE),\"\")","v":""},{"$f":"IFERROR(VLOOKUP(Studentoppslag,JuniOppmøte[],16,FALSE),\"\")","v":""},{"$f":"IFERROR(VLOOKUP(Studentoppslag,JuniOppmøte[],17,FALSE),\"\")","v":""},{"$f":"IFERROR(VLOOKUP(Studentoppslag,JuniOppmøte[],18,FALSE),\"\")","v":""},{"$f":"IFERROR(VLOOKUP(Studentoppslag,JuniOppmøte[],19,FALSE),\"\")","v":""},{"$f":"IFERROR(VLOOKUP(Studentoppslag,JuniOppmøte[],20,FALSE),\"\")","v":""},{"$f":"IFERROR(VLOOKUP(Studentoppslag,JuniOppmøte[],21,FALSE),\"\")","v":""},{"$f":"IFERROR(VLOOKUP(Studentoppslag,JuniOppmøte[],22,FALSE),\"\")","v":""},{"$f":"IFERROR(VLOOKUP(Studentoppslag,JuniOppmøte[],23,FALSE),\"\")","v":""},{"$f":"IFERROR(VLOOKUP(Studentoppslag,JuniOppmøte[],24,FALSE),\"\")","v":""},{"$f":"IFERROR(VLOOKUP(Studentoppslag,JuniOppmøte[],25,FALSE),\"\")","v":""},{"$f":"IFERROR(VLOOKUP(Studentoppslag,JuniOppmøte[],26,FALSE),\"\")","v":""},{"$f":"IFERROR(VLOOKUP(Studentoppslag,JuniOppmøte[],27,FALSE),\"\")","v":""},{"$f":"IFERROR(VLOOKUP(Studentoppslag,JuniOppmøte[],28,FALSE),\"\")","v":""},{"$f":"IFERROR(VLOOKUP(Studentoppslag,JuniOppmøte[],29,FALSE),\"\")","v":""},{"$f":"IFERROR(VLOOKUP(Studentoppslag,JuniOppmøte[],30,FALSE),\"\")","v":""},{"$f":"IFERROR(VLOOKUP(Studentoppslag,JuniOppmøte[],31,FALSE),\"\")","v":""},{"$f":"IFERROR(VLOOKUP(Studentoppslag,JuniOppmøte[],32,FALSE),\"\")","v":""}]
[null,"Juli",1,2,3,4,5,6,7,8,9,10,11,12,13,14,15,16,17,18,19,20,21,22,23,24,25,26,27,28,29,30,31,{"$f":"COUNTIF($D39:$AH39,Kode1)","v":0},{"$f":"COUNTIF($D39:$AH39,Kode2)","v":0},{"$f":"COUNTIF($D39:$AH39,Kode3)","v":0},{"$f":"COUNTIF($D39:$AH39,Kode4)","v":0}]
[null,null,{"$f":"IFERROR(VLOOKUP(Studentoppslag,JuliOppmøte[],3,FALSE),\"\")","v":""},{"$f":"IFERROR(VLOOKUP(Studentoppslag,JuliOppmøte[],4,FALSE),\"\")","v":""},{"$f":"IFERROR(VLOOKUP(Studentoppslag,JuliOppmøte[],5,FALSE),\"\")","v":""},{"$f":"IFERROR(VLOOKUP(Studentoppslag,JuliOppmøte[],6,FALSE),\"\")","v":""},{"$f":"IFERROR(VLOOKUP(Studentoppslag,JuliOppmøte[],7,FALSE),\"\")","v":""},{"$f":"IFERROR(VLOOKUP(Studentoppslag,JuliOppmøte[],8,FALSE),\"\")","v":""},{"$f":"IFERROR(VLOOKUP(Studentoppslag,JuliOppmøte[],9,FALSE),\"\")","v":""},{"$f":"IFERROR(VLOOKUP(Studentoppslag,JuliOppmøte[],10,FALSE),\"\")","v":""},{"$f":"IFERROR(VLOOKUP(Studentoppslag,JuliOppmøte[],11,FALSE),\"\")","v":""},{"$f":"IFERROR(VLOOKUP(Studentoppslag,JuliOppmøte[],12,FALSE),\"\")","v":""},{"$f":"IFERROR(VLOOKUP(Studentoppslag,JuliOppmøte[],13,FALSE),\"\")","v":""},{"$f":"IFERROR(VLOOKUP(Studentoppslag,JuliOppmøte[],14,FALSE),\"\")","v":""},{"$f":"IFERROR(VLOOKUP(Studentoppslag,JuliOppmøte[],15,FALSE),\"\")","v":""},{"$f":"IFERROR(VLOOKUP(Studentoppslag,JuliOppmøte[],16,FALSE),\"\")","v":""},{"$f":"IFERROR(VLOOKUP(Studentoppslag,JuliOppmøte[],17,FALSE),\"\")","v":""},{"$f":"IFERROR(VLOOKUP(Studentoppslag,JuliOppmøte[],18,FALSE),\"\")","v":""},{"$f":"IFERROR(VLOOKUP(Studentoppslag,JuliOppmøte[],19,FALSE),\"\")","v":""},{"$f":"IFERROR(VLOOKUP(Studentoppslag,JuliOppmøte[],20,FALSE),\"\")","v":""},{"$f":"IFERROR(VLOOKUP(Studentoppslag,JuliOppmøte[],21,FALSE),\"\")","v":""},{"$f":"IFERROR(VLOOKUP(Studentoppslag,JuliOppmøte[],22,FALSE),\"\")","v":""},{"$f":"IFERROR(VLOOKUP(Studentoppslag,JuliOppmøte[],23,FALSE),\"\")","v":""},{"$f":"IFERROR(VLOOKUP(Studentoppslag,JuliOppmøte[],24,FALSE),\"\")","v":""},{"$f":"IFERROR(VLOOKUP(Studentoppslag,JuliOppmøte[],25,FALSE),\"\")","v":""},{"$f":"IFERROR(VLOOKUP(Studentoppslag,JuliOppmøte[],26,FALSE),\"\")","v":""},{"$f":"IFERROR(VLOOKUP(Studentoppslag,JuliOppmøte[],27,FALSE),\"\")","v":""},{"$f":"IFERROR(VLOOKUP(Studentoppslag,JuliOppmøte[],28,FALSE),\"\")","v":""},{"$f":"IFERROR(VLOOKUP(Studentoppslag,JuliOppmøte[],29,FALSE),\"\")","v":""},{"$f":"IFERROR(VLOOKUP(Studentoppslag,JuliOppmøte[],30,FALSE),\"\")","v":""},{"$f":"IFERROR(VLOOKUP(Studentoppslag,JuliOppmøte[],31,FALSE),\"\")","v":""},{"$f":"IFERROR(VLOOKUP(Studentoppslag,JuliOppmøte[],32,FALSE),\"\")","v":""},{"$f":"IFERROR(VLOOKUP(Studentoppslag,JuliOppmøte[],33,FALSE),\"\")","v":""}]
[{"$nulls":30},"Totaler",null,null,{"$f":"SUM(AH16:AH39)","v":2},{"$f":"SUM(AI16:AI39)","v":1},{"$f":"SUM(AJ16:AJ39)","v":0},{"$f":"SUM(AK16:AK39)","v":19}]